Workbook

Sheet invoerblad
A1: =" "&taal!A65 -> U-waarde bepaling van Skylux lichtkoepels volgens norm EN 1873:2014+A1:2016 | G1: v.9-2024 | H1: =NOW() -> 2024-09-04T14:31:42.390 | J1: FALSE
C2: =taal!A2&" :" -> taal : | J2: 1
C3: =taal!A67&" :" -> type : | J3: 1
C4: =taal!A24&" "&taal!A36&" :" -> uitvoering lichtkoepel : | J4: 1
C5: =IF(type=1,"",taal!A8&" "&taal!A36&" :") -> vorm lichtkoepel : | J5: 1
C6: =taal!A55&" "&taal!A36&" :" -> kleur lichtkoepel : | F6: =IF(OR(glas>2,type>2,AND(glas=2,type=1)),"*",IF(OR(kleur=1,kleur=3,kleur=5)=TRUE,taal!A56,"*")) -> * | J6: 1
C7: =taal!A32&" :" -> dagmaat B : | J7: 1
C8: =taal!A15&" :" -> opstand : | F8: ='Skylux EP'!M73 -> 5 | H8: =IF(AND(OR(op=4,op=3),metaal>6),taal!A68,"")&IF(AND(OR(op=3,op=4),vorm=3),taal!$A$60,IF(AND(op=1,'Skylux EP'!R2='Skylux EP'!D5)=TRUE,taal!$A$35,IF(op=1,IF(AND(pvc=1,'Skylux EP'!$CC$1=0),taal!$A$35,IF(AND(pvc=2,'Skylux EP'!$CG$1=0),taal!$A$35,IF(AND(pvc=3,'Skylux EP'!$CK$1=0),taal!$A$35,IF(AND(pvc=4,'Skylux EP'!$BS$1=0),taal!$A$35,IF(AND(pvc=5,'Skylux EP'!$BY$1=0),taal!$A$35,"*"))))),IF(AND(op=2,prv=1,'Skylux EP'!$AT$1=0),taal!$A$35,IF(AND(op=2,prv>1,'Skylux EP'!$BC$1=0),taal!$A$35,"*"))))) -> * | J8: 1
C9: =taal!A16&" :" -> verhogingsopstand : | F9: ='Skylux EP'!M73 -> 5 | J9: 1
C10: =taal!A63&" :" -> raam : | H10: =IF(AND(OR(raam=2,raam=3),'Skylux EP'!R2='Skylux EP'!D5)=TRUE,taal!$A$35,"*") -> * | J10: 1
C11: =taal!A64&" :" -> adapterraam : | D11: 0 | H11: =IF('Skylux EP'!R2='Skylux EP'!D5,taal!$A$35,"*") -> * | J11: 1
C12: =taal!A71&" :" -> dikte dakisolatie : | D12: 5 | E12: cm | F12: =IF('Skylux EP'!O17=0,taal!A72,"") ->  | J12: 1
J13: 1
D14: =taal!B39&":" -> oppervlakte: | E14: =IF(glas>3,taal!A42,taal!A41&":") -> Ut-waarde: | F14: =taal!A70&":" -> Uup-waarde: | G14: =taal!A43&":" -> Ue-waarde: | J14: 1
C15: =IF(AND(glas=1,type<8),taal!A36,IF(AND(glas=2,type=8),taal!A38,IF(AND(glas=2,type<8),taal!A37,INDEX('Skylux EP'!B2:B7,glas)))) -> lichtkoepel | D15: ='Skylux EP'!B122 -> 1.124444103 | E15: =IF(glas=1,IF(AND(raam=4,vorm<>3,'Skylux EP'!K19>0),'Skylux EP'!D28,'Skylux EP'!B28),IF(glas=2,'Skylux EP'!C28,INDEX('Skylux EP'!C28:H28,glas))) -> 1.7 | F15: - | G15: - | J15: 1
C16: =taal!A47 -> opstand | D16: ='Skylux EP'!B75 -> 0.606915536 | E16: - | F16: =IF(OR(H8="*",metaal>6),'Skylux EP'!B74," ??? ") -> 0.61 | G16: - | J16: 1
C17: =taal!A63 -> raam | D17: =IF(AND(glas=1,raam=1),"-",'Skylux EP'!$F$95) -> - | E17: - | F17: - | G17: =IF(AND(glas=1,raam=1),"-",IF(H10="*",'Skylux EP'!$B$95,"???")) -> - | J17: 1
C18: =taal!A64 -> adapterraam | D18: =IF(adap=1,"-",'Skylux EP'!$F$99) -> - | E18: - | F18: - | G18: =IF(adap=1,"-",IF(H11="*",'Skylux EP'!$B$99,"???")) -> - | J18: =IF(adap=2,1,0) -> 0
D19: =taal!B39&" (Arc) :" -> oppervlakte (Arc) : | E19: =taal!A44&" :" -> Urc-waarde : | G19: =taal!A46&" :" -> g-waarde : | J19: 1
C20: =INDEX('Skylux EP'!O2:O8,glas)&" + "&taal!A59&IF(raam>1," + "&taal!B63," ") -> lichtkoepel + opstand | D20: =ROUND(D15,2)+ROUND(D16,2)+IF(OR(glas>1,raam>1),D17,0)+IF(adap>1,D18,0) -> 1.73 | E20: ='Skylux EP'!B143 -> 1.405700698 | G20: ='Skylux EP'!M120 -> 0.65 | J20: 1
D21: =IF(glas<3,taal!B39&" (Ap) :","") -> oppervlakte (Ap) : | E21: =IF(glas<3,taal!A45&" :","") -> Url-waarde : | J21: =IF($J$1=TRUE,1,0) -> 0
C22: =IF(glas<3,taal!A40,"") -> t.o.v. de geprojecteerde oppte | D22: =IF(glas<3,IF('Skylux EP'!K19=0,E26*E26/40000*PI(),D26*E26/10000),"") -> 1 | E22: =IF(glas<3,E20*D20/D22,"") -> 2.431862207 | J22: =IF($J$1=TRUE,1,0) -> 0
J23: 1
C24: =taal!A18&" :" -> A - maat : | D24: =IF('Skylux EP'!R2='Skylux EP'!D5,'Skylux EP'!D5,'Skylux EP'!R2+16) -> 116 | E24: ='Skylux EP'!S2+16 -> 116 | J24: =IF(glas<4,1,0) -> 1
C25: =taal!A19&" :" -> B - maat : | D25: ='Skylux EP'!R2 -> 100 | E25: ='Skylux EP'!S2 -> 100 | J25: 1
C26: =taal!A20&" :" -> C - maat : | D26: =IF('Skylux EP'!K19=0,'Skylux EP'!D5,'Skylux EP'!K19/10+'Skylux EP'!L73) -> 100 | E26: ='Skylux EP'!L19/10+'Skylux EP'!L73 -> 100 | J26: 1
J27: 1
J28: =IF(glas=1,IF(AND(op=1,prvc=3,raam=1)=TRUE,1,0),0) -> 0
J29: =IF(glas=1,IF(AND(op=1,prvc=2,raam=1)=TRUE,1,0),0) -> 0
J30: =IF(glas=1,IF(AND(op=1,prvc=1,raam=1)=TRUE,1,0),0) -> 1
J31: =IF(glas=1,IF(AND(op=1,prvc=4,raam=1)=TRUE,1,0),0) -> 0
J32: =IF(glas=1,IF(AND(op=1,prvc=5,raam=1)=TRUE,1,0),0) -> 0
J33: =IF(glas=1,IF(AND(op=2,prvc=1,raam=1)=TRUE,1,0),0) -> 0
J34: =IF(glas=1,IF(AND(op=2,prvc=2,raam=1)=TRUE,1,0),0) -> 0
J35: =IF(glas=1,IF(AND(op=2,prvc=3,raam=1)=TRUE,1,0),0) -> 0
J36: =IF(glas=1,IF(AND(op=2,prvc=4,raam=1)=TRUE,1,0),0) -> 0
J37: =IF(glas=1,IF(AND(op=2,prvc=5,raam=1)=TRUE,1,0),0) -> 0
J38: =IF(glas=1,IF(AND(op=2,prvc=6,raam=1)=TRUE,1,0),0) -> 0
J39: =IF(glas=1,IF(AND(op=3,raam=1)=TRUE,1,0),0) -> 0
J40: =IF(glas=1,IF(AND(op=4,raam=1)=TRUE,1,0),0) -> 0
J41: =IF(glas=1,IF(AND(op=2,prvc=7,raam=1)=TRUE,1,0),0) -> 0
J42: =IF(glas=1,IF(AND(op=2,prvc=8,raam=1)=TRUE,1,0),0) -> 0
J43: =IF(glas=1,IF(AND(op=1,prvc=3,raam>1,raam<>4)=TRUE,1,0),0) -> 0
J44: =IF(glas=1,IF(AND(op=1,prvc=2,raam>1,raam<>4)=TRUE,1,0),0) -> 0
J45: =IF(glas=1,IF(AND(op=1,prvc=1,raam=2)=TRUE,1,0),0) -> 0
J46: =IF(glas=1,IF(AND(op=1,prvc=4,raam>1,raam<>4)=TRUE,1,0),0) -> 0
J47: =IF(glas=1,IF(AND(op=1,prvc=5,raam>1,raam<>4)=TRUE,1,0),0) -> 0
J48: =IF(glas=1,IF(AND(op=2,prvc=1,raam>1,OR(raam<>4,'Skylux EP'!K19=0))=TRUE,1,0),0) -> 0
J49: =IF(glas=1,IF(AND(op=2,prvc=2,raam>1,OR(raam<>4,'Skylux EP'!K19=0))=TRUE,1,0),0) -> 0
J50: =IF(glas=1,IF(AND(op=2,prvc=3,raam>1,OR(raam<>4,'Skylux EP'!K19=0))=TRUE,1,0),0) -> 0
J51: =IF(glas=1,IF(AND(op=2,prvc=4,raam>1,OR(raam<>4,'Skylux EP'!K19=0))=TRUE,1,0),0) -> 0
J52: =IF(glas=1,IF(AND(op=2,prvc=5,raam>1,OR(raam<>4,'Skylux EP'!K19=0))=TRUE,1,0),0) -> 0
J53: =IF(glas=1,IF(AND(op=2,prvc=6,raam>1,OR(raam<>4,'Skylux EP'!K19=0))=TRUE,1,0),0) -> 0
J54: =IF(glas=1,IF(AND(op=2,prvc=7,raam>1,OR(raam<>4,'Skylux EP'!K19=0))=TRUE,1,0),0) -> 0
J55: =IF(glas=1,IF(AND(op=2,prvc=8,raam>1,OR(raam<>4,'Skylux EP'!K19=0))=TRUE,1,0),0) -> 0
J56: =IF(glas=1,IF(AND(op=3,raam>1,OR(raam<>4,'Skylux EP'!K19=0))=TRUE,1,0),0) -> 0
J57: =IF(glas=1,IF(AND(op=4,raam>1,OR(raam<>4,'Skylux EP'!K19=0))=TRUE,1,0),0) -> 0
J58: =IF(AND(glas=1,op=1,prvc=1,raam=4),1,0) -> 0
J59: =IF(AND(glas=1,op=1,prvc=2,raam=4),1,0) -> 0
J60: =IF(AND(glas=1,op=1,prvc=3,raam=4),1,0) -> 0
J61: =IF(AND(glas=1,op=1,prvc=4,raam=4),1,0) -> 0
J62: =IF(AND(glas=1,op=1,prvc=5,raam=4),1,0) -> 0
J63: =IF(AND(glas=1,op=2,prvc=1,raam=4),1,0) -> 0
J64: =IF(AND(glas=1,op=2,prvc=2,raam=4),1,0) -> 0
J65: =IF(AND(glas=1,op=2,prvc=3,raam=4),1,0) -> 0
J66: =IF(AND(glas=1,op=2,prvc=7,raam=4),1,0) -> 0
J67: =IF(AND(glas=1,op=2,prvc=8,raam=4),1,0) -> 0
J68: =IF(AND(glas=1,op=3,raam=4),1,0) -> 0
J69: =IF(AND(glas=1,op=4,raam=4),1,0) -> 0
J70: =IF(AND(glas=1,op=1,prvc=1,raam=3),1,0) -> 0
J71: =IF(AND(glas=1,op=1,prvc=2,raam=3),1,0) -> 0
J72: =IF(AND(glas=1,op=1,prvc=3,raam=3),1,0) -> 0
J73: =IF(AND(glas=1,op=1,prvc=4,raam=3),1,0) -> 0
J74: =IF(AND(glas=1,op=1,prvc=5,raam=3),1,0) -> 0
J75: =IF(AND(glas=1,op=2,prvc=1,raam=3),1,0) -> 0
J76: =IF(AND(glas=1,op=2,prvc=2,raam=3),1,0) -> 0
J77: =IF(AND(glas=1,op=2,prvc=3,raam=3),1,0) -> 0
J78: =IF(AND(glas=1,op=2,prvc=4,raam=3),1,0) -> 0
J79: =IF(AND(glas=1,op=2,prvc=5,raam=3),1,0) -> 0
J80: =IF(AND(glas=1,op=2,prvc=6,raam=3),1,0) -> 0
J81: =IF(AND(glas=1,op=2,prvc=7,raam=3),1,0) -> 0
J82: =IF(AND(glas=1,op=2,prvc=8,raam=3),1,0) -> 0
J83: =IF(AND(glas=1,op=3,raam=3),1,0) -> 0
J84: =IF(AND(glas=1,op=4,raam=3),1,0) -> 0
J85: =IF(AND(glas=3,op=1,prvc=2,raam=8)=TRUE,1,0) -> 0
J86: =IF(AND(glas=3,op=1,prvc=1,raam=8)=TRUE,1,0) -> 0
J87: =IF(AND(glas=3,op=1,prvc=4,raam=8)=TRUE,1,0) -> 0
J88: =IF(AND(glas=3,op=1,prvc=5,raam=8)=TRUE,1,0) -> 0
J89: =IF(AND(glas=3,op=2,prvc=1,raam=8)=TRUE,1,0) -> 0
J90: =IF(AND(glas=3,op=2,prvc=2,raam=8)=TRUE,1,0) -> 0
J91: =IF(AND(glas=3,op=2,prvc=3,raam=8)=TRUE,1,0) -> 0
J92: =IF(AND(glas=3,op=2,prvc=4,raam=8)=TRUE,1,0) -> 0
J93: =IF(AND(op=2,prvc=5,raam=8)=TRUE,1,0) -> 0
J94: =IF(AND(glas=3,op=2,prvc=6,raam=8)=TRUE,1,0) -> 0
J95: =IF(AND(glas=3,op=2,prvc=7,raam=8)=TRUE,1,0) -> 0
J96: =IF(AND(glas=3,op=2,prvc=8,raam=8)=TRUE,1,0) -> 0
J97: =IF(AND(glas=3,op=3,raam=8),1,0) -> 0
J98: =IF(AND(glas=3,op=4,raam=8),1,0) -> 0
J99: =IF(glas=3,IF(AND(op=1,pvc=3,raam=7),1,0),0) -> 0
J100: =IF(glas=3,IF(AND(op=1,pvc=2,raam=7),1,0),0) -> 0
J101: =IF(glas=3,IF(AND(op=1,pvc=1,raam=7),1,0),0) -> 0
J102: =IF(glas=3,IF(AND(op=1,pvc=4,raam=7),1,0),0) -> 0
J103: =IF(glas=3,IF(AND(op=1,pvc=5,raam=7),1,0),0) -> 0
J104: =IF(glas=2,IF(AND(op=1,pvc=1,raam=5),1,0),0) -> 0
J105: =IF(glas=2,IF(AND(op=1,pvc=2,raam=5),1,0),0) -> 0
J106: =IF(glas=2,IF(AND(op=1,pvc=4,raam=5),1,0),0) -> 0
J107: =IF(glas=2,IF(AND(op=1,pvc=5,raam=5),1,0),0) -> 0
J108: =IF(glas=2,IF(AND(op=1,pvc=1,raam=6),1,0),0) -> 0
J109: =IF(glas=2,IF(AND(op=1,pvc=2,raam=6),1,0),0) -> 0
J110: =IF(glas=2,IF(AND(op=1,pvc=4,raam=6),1,0),0) -> 0
J111: =IF(glas=2,IF(AND(op=1,pvc=5,raam=6),1,0),0) -> 0
J112: =IF(OR(glas=4,glas=6),IF(AND(op=1,pvc=3,OR(raam=7,raam=9)),1,0),0) -> 0
J113: =IF(OR(glas=4,glas=6),IF(AND(op=1,pvc=2,OR(raam=7,raam=9)),1,0),0) -> 0
J114: =IF(OR(glas=4,glas=6),IF(AND(op=1,pvc=1,OR(raam=7,raam=9)),1,0),0) -> 0
J115: =IF(OR(glas=4,glas=6),IF(AND(op=1,pvc=4,OR(raam=7,raam=9)),1,0),0) -> 0
J116: =IF(OR(glas=4,glas=6),IF(AND(op=1,pvc=5,OR(raam=7,raam=9)),1,0),0) -> 0
J117: =IF(glas=5,IF(AND(op=1,pvc=3,raam=11),1,0),0) -> 0
J118: =IF(glas=5,IF(AND(op=1,pvc=2,raam=11),1,0),0) -> 0
J119: =IF(glas=5,IF(AND(op=1,pvc=1,raam=11),1,0),0) -> 0
J120: =IF(glas=5,IF(AND(op=1,pvc=4,raam=11),1,0),0) -> 0
J121: =IF(glas=5,IF(AND(op=1,pvc=5,raam=11),1,0),0) -> 0
J122: =IF(glas=4,IF(AND(op=1,pvc=1,raam=10),1,0),0) -> 0
J123: =IF(glas=4,IF(AND(op=1,pvc=2,raam=10),1,0),0) -> 0
J124: =IF(glas=4,IF(AND(op=1,pvc=4,raam=10),1,0),0) -> 0
J125: =IF(glas=4,IF(AND(op=1,pvc=5,raam=10),1,0),0) -> 0
J126: =IF(glas=4,IF(AND(op=2,prv=1,raam=10),1,0),0) -> 0
J127: =IF(glas=4,IF(AND(op=2,prv=2,raam=10),1,0),0) -> 0
J128: =IF(glas=4,IF(AND(op=2,prv=3,raam=10),1,0),0) -> 0
J129: =IF(glas=4,IF(AND(op=2,prv=4,raam=10),1,0),0) -> 0
J130: =IF(glas=4,IF(AND(op=2,prv=5,raam=10),1,0),0) -> 0
J131: =IF(glas=4,IF(AND(op=2,prv=6,raam=10),1,0),0) -> 0
J132: =IF(glas=4,IF(AND(op=2,prv=7,raam=10),1,0),0) -> 0
J133: =IF(glas=4,IF(AND(op=2,prv=8,raam=10),1,0),0) -> 0
J134: =IF(glas=4,IF(AND(op=3,raam=10),1,0),0) -> 0
J135: =IF(glas=4,IF(AND(op=4,raam=10),1,0),0) -> 0
J136: =IF(glas=5,IF(AND(op=1,pvc=1,raam=12),1,0),0) -> 0
J137: =IF(glas=5,IF(AND(op=1,pvc=2,raam=12),1,0),0) -> 0
J138: =IF(glas=5,IF(AND(op=1,pvc=4,raam=12),1,0),0) -> 0
J139: =IF(glas=5,IF(AND(op=1,pvc=5,raam=12),1,0),0) -> 0
J140: =IF(glas=5,IF(AND(op=2,prv=1,raam=12),1,0),0) -> 0
J141: =IF(glas=5,IF(AND(op=2,prv=2,raam=12),1,0),0) -> 0
J142: =IF(glas=5,IF(AND(op=2,prv=3,raam=12),1,0),0) -> 0
J143: =IF(glas=5,IF(AND(op=2,prv=4,raam=12),1,0),0) -> 0
J144: =IF(glas=5,IF(AND(op=2,prv=5,raam=12),1,0),0) -> 0
J145: =IF(glas=5,IF(AND(op=2,prv=6,raam=12),1,0),0) -> 0
J146: =IF(glas=5,IF(AND(op=2,prv=7,raam=12),1,0),0) -> 0
J147: =IF(glas=5,IF(AND(op=2,prv=8,raam=12),1,0),0) -> 0
J148: =IF(glas=5,IF(AND(op=3,raam=12),1,0),0) -> 0
J149: =IF(glas=5,IF(AND(op=4,raam=12),1,0),0) -> 0
A150: =" "&taal!A66 -> Skylux heeft het grootste gamma CE gekeurde lichtkoepels voor elk project. | J150: 1

Sheet Skylux EP
A1: 1 | B1: 1 | C1: 5 | D1: 1 | E1: 1 | F1: 1 | G1: 1 | H1: =prvc -> 1 | I1: =prvc -> 1 | J1: =prvc -> 1 | K1: =prvc -> 1 | L1: 1 | M1: 1 | N1: 1 | O1: =glas -> 1 | P1: 1 | R1: 12 | T1: List dimensions | V1: standard dome | AB1: pyramidal dome | AF1: EP10 / EP 16 | AH1: 4 Walled | AJ1: 5 Walled | AL1: Skylux Pergotop | AN1: iDome / iWindow2 | AP1: iWindow3 | AR1: Vitria | AT1: =IF(AND(op=2,AT2>1,prv=1),1,0) -> 0 | AU1: =IF(AND(op=1,pvc=1)=TRUE,20,IF(OR(op=3,AND(op=1,pvc=2))=TRUE,0,IF(AND(op=1,pvc=3)=TRUE,20,IF(AND(op=1,pvc=4)=TRUE,30,IF(AND(op=2,prv=1)=TRUE,25,20))))) -> 20 | AV1: =IF(AND(op=1,pvc=1)=TRUE,20,IF(OR(op=3,AND(op=1,pvc=2))=TRUE,0,IF(AND(op=1,pvc=3)=TRUE,20,IF(AND(op=1,pvc=4)=TRUE,30,IF(AND(op=2,prv=1)=TRUE,25,20))))) -> 20 | AW1: Standard GRP Curbs | BC1: =IF(AND(op=2,BF2>1,prv=2)=TRUE,1,IF(AND(op=2,BG2>1,prv=3)=TRUE,1,IF(AND(op=2,BH2>1,prv=4)=TRUE,1,IF(AND(op=2,BI2>1,prv=5)=TRUE,1,IF(AND(op=2,BJ2>1,prv=6)=TRUE,1,IF(AND(op=2,BK2>1,prv=7)=TRUE,1,IF(AND(op=2,BL2>1,prv=8)=TRUE,1,0))))))) -> 0 | BD1: GRP Curbs | BF1: 15/20 | BG1: 3020 | BH1: D30 EP60 | BI1: D30 EP100 | BJ1: D50/20 | BK1: D30/00 | BL1: D50/00 | BM1: =prv -> 1 | BP1: PVC Curbs | BS1: =IF(AND(op=1,BS2>1,pvc=4),1,0) -> 0 | BT1: pvc 30/20 | BY1: =IF(AND(op=1,BY2>1,pvc=5),1,0) -> 0 | BZ1: pvc 35/30 | CC1: =IF(AND(op=1,CC2>1,pvc=1),1,0) -> 1 | CD1: pvc 20/00EP | CG1: =IF(AND(op=1,CG2>1,pvc=2),1,0) -> 0 | CH1: pvc 16/20EP | CK1: =IF(AND(op=1,CK2>1,pvc=3),1,0) -> 0 | CL1: pvc 16/00 | CQ1: Skin | CR1: skinheight | CU1: =$CU$2 -> 22 | CZ1: EP25 frame
A2: Nederlands | B2: ="Skylux"&" "&taal!A57 -> Skylux lichtkoepel | C2: =IF(glas>3,"*",taal!A25) -> EP10 koepel | D2: =IF(glas>3,"*",taal!A3) -> bol | E2: =IF(OR(type=1,type=2,type=3,type=4,glas>1),"*",taal!A5) -> vierkant | F2: =IF(K19=0,taal!A69,taal!A10) -> pvc-opstand | G2: =IF(op=1,H2,IF(op=2,I2,IF(op=3,J2,K2))) -> pvc 20/00 EP | H2: =IF(K19=0,taal!A69,"pvc 20/00 EP") -> pvc 20/00 EP | I2: =IF(F3="*","*","PO 15/25") -> PO 15/25 | J2: =IF(F4="*","*","M15") -> M15 | K2: =IF(F5="*","*","M15 EP") -> M15 EP | L2: =IF(glas=2,taal!A51,IF(glas>3,taal!A48,IF(OR(type=1,type=2),taal!A61,taal!A48&" "&taal!A53))) -> helder PMMA | M2: =IF(glas>=2,taal!A69,taal!A17) -> geen | N2: =taal!A17 -> geen | O2: =taal!A57 -> lichtkoepel | P2: =taal!A17 -> geen | Q2: =R2 &" "&S2 -> 100 100 | R2: =INDEX(R4:R150,R1) -> 100 | S2: =INDEX(S4:S150,R1) -> 100 | V2: square | X2: rectangular | Z2: round | AB2: square | AD2: rectangular | AT2: =IF(ISNA(VLOOKUP($Q$2,$AT$4:$AY$129,6,FALSE))=TRUE,0,VLOOKUP($Q$2,$AT$4:$AY$129,6,FALSE)) -> 2 | AY2: H15/25 | BF2: =IF(ISNA(VLOOKUP($Q$2,$BC$4:$BJ$123,4,FALSE))=TRUE,0,VLOOKUP($Q$2,$BC$4:$BJ$123,4,FALSE)) -> 2 | BG2: =IF(ISNA(VLOOKUP($Q$2,$BC$4:$BJ$123,5,FALSE))=TRUE,0,VLOOKUP($Q$2,$BC$4:$BJ$123,5,FALSE)) -> 2 | BH2: =IF(ISNA(VLOOKUP($Q$2,$BC$4:$BJ$123,6,FALSE))=TRUE,0,VLOOKUP($Q$2,$BC$4:$BJ$123,6,FALSE)) -> 2 | BI2: =IF(ISNA(VLOOKUP($Q$2,$BC$4:$BJ$123,7,FALSE))=TRUE,0,VLOOKUP($Q$2,$BC$4:$BJ$123,7,FALSE)) -> 2 | BJ2: =IF(ISNA(VLOOKUP($Q$2,$BC$4:$BJ$123,8,FALSE))=TRUE,0,VLOOKUP($Q$2,$BC$4:$BJ$123,8,FALSE)) -> 2 | BK2: =IF(ISNA(VLOOKUP($Q$2,$BC$4:$BK$123,9,FALSE))=TRUE,0,VLOOKUP($Q$2,$BC$4:$BK$123,9,FALSE)) -> 2 | BL2: =IF(ISNA(VLOOKUP($Q$2,$BC$4:$BL$123,10,FALSE))=TRUE,0,VLOOKUP($Q$2,$BC$4:$BL$123,10,FALSE)) -> 2 | BS2: =IF(ISNA(VLOOKUP($Q$2,$BN$4:$BS$122,6,FALSE))=TRUE,0,VLOOKUP($Q$2,$BN$4:$BS$122,6,FALSE)) -> 2 | BY2: =IF(ISNA(VLOOKUP($Q$2,$BN$4:$BY$122,12,FALSE))=TRUE,0,VLOOKUP($Q$2,$BN$4:$BY$122,12,FALSE)) -> 2 | CC2: =IF(ISNA(VLOOKUP($Q$2,$BN$4:$CC$122,16,FALSE))=TRUE,0,VLOOKUP($Q$2,$BN$4:$CC$122,16,FALSE)) -> 2 | CG2: =IF(ISNA(VLOOKUP($Q$2,$BN$4:$CG$122,20,FALSE))=TRUE,0,VLOOKUP($Q$2,$BN$4:$CG$122,20,FALSE)) -> 2 | CK2: =IF(ISNA(VLOOKUP($Q$2,$BN$4:$CK$122,24,FALSE))=TRUE,0,VLOOKUP($Q$2,$BN$4:$CK$122,24,FALSE)) -> 2 | CR2: OS | CS2: IS1 | CT2: IS2 | CU2: =IF(OR(AND(OR(type=4,type=3),K19=0),vorm=3),CU44,IF(vorm=1,CU3,IF(vorm=2,CU27,"VORM"))) -> 22 | CV2: =IF(OR(vorm=3,AND(type=3,K19=0)),CV44,IF(vorm=1,CV3,IF(vorm=2,CV27,"VORM"))) -> 15 | CW2: =IF(OR(vorm=3,AND(type=3,K19=0)),CW44,IF(vorm=1,CW3,IF(vorm=2,CW27,"VORM"))) -> 12 | CZ2: =R2&S2 -> 100100
A3: Français | B3: ="Skylux"&" "&taal!A58 -> Skylux Pergotop IP32/IP89 | C3: =IF(glas>3,"*",taal!A69) -> maak andere keuze! | D3: =IF(OR(glas>3,type=1,type=2,type=3,type=4),"*",taal!A4) -> piramide | E3: =IF(OR(type=1,type=2,type=3,type=4,glas>1),"*",taal!A6) -> rechthoekig | F3: =taal!A11 -> polyesteropstand | G3: =IF(op=1,H3,IF(op=2,I3,IF(op=3,J3,K3))) -> pvc 16/20 EP | H3: =IF(K19=0,taal!A69,"pvc 16/20 EP") -> pvc 16/20 EP | I3: =IF(F3="*","*","PO 15/20") -> PO 15/20 | J3: =IF(F4="*","*","M20") -> M20 | K3: =IF(F5="*","*","M20 EP") -> M20 EP | L3: =IF(OR(glas=2,glas=6),taal!A69,IF(glas>3,taal!A49,IF(type=2,taal!A61,taal!A49&" "&taal!A53))) -> opaal PMMA | M3: =IF(K19=0,taal!A69,IF(glas=1,A80,taal!A69)) -> pvc | N3: =IF(K19=0,taal!A17,"pvc 20/00 EP-S") -> pvc 20/00 EP-S | O3: * | P3: =IF(K19=0,taal!A17,taal!A64) -> adapterraam | AY3: fix | AZ3: st frame | BA3: EP frame | BB3: EP25 frame | BO3: DAGMAAT | BQ3: DAKOPENING | BR3: C = B + 20 | BS3: 3020 | BT3: st | BU3: ep | BV3: ep25 | BW3: DAKOPENING | BX3: C = B + 30 | BY3: 3530 | BZ3: st | CA3: ep | CB3: ep25 | CC3: 2000EP | CD3: st | CE3: ep | CF3: ep25 | CG3: 1620EP | CH3: st | CI3: ep | CJ3: ep25 | CK3: 1600 | CL3: st | CM3: ep | CN3: ep25 | CP3: Square | CQ3: 300 | CR3: 12.5 | CS3: 9 | CT3: 5 | CU3: =VLOOKUP(K19,CQ3:CT25,2) -> 22 | CV3: =VLOOKUP(K19,CQ3:CT25,3) -> 15 | CW3: =VLOOKUP(K19,CQ3:CT25,4) -> 12 | CZ3: =CZ2*1 -> 100100 | DA3: =IF(ISNA(VLOOKUP(CZ3,CZ5:DD113,4,FALSE))=TRUE,taal!A69,VLOOKUP(CZ3,CZ5:DD113,4,FALSE)&" "&taal!A49) -> pvc EP 25 opaal
A4: Deutsch | B4: Skylux iDome | C4: =IF(glas>3,"*",taal!A27) -> vijfwandig | E4: =IF(OR(type=1,type=2,type=3,type=4,glas>1),taal!A69,IF(D1=2,taal!A9,taal!A7)) -> rond | F4: =taal!A12 -> metalen opstand | G4: =IF(op=1,H4,IF(op=2,I4,IF(op=3,J4,K4))) -> pvc 16/00 | H4: =IF(K19=0,taal!A69,IF(glas>=2,taal!A69,"pvc 16/00")) -> pvc 16/00 | I4: =IF(F3="*","*","PO 30/20") -> PO 30/20 | J4: =IF(F4="*","*","M25") -> M25 | K4: =IF(F5="*","*","M25 EP") -> M25 EP | L4: =IF(OR(glas=2,glas=6),taal!A69,IF(glas>3,taal!A52,IF(OR(type=1,type=2),taal!A61,taal!A48&" "&taal!A54))) -> helder PC | M4: =IF(K19=0,taal!A69,IF(glas=1,A81,taal!A69)) -> pvc EP high | O4: iDome | Q4: =R4 &" "&S4 -> 30 30 | R4: =IF(glas=6,AR4,IF(glas=5,AP4,IF(glas>2,AN4,IF(glas>1,AL4,IF(T4=0,"",T4))))) -> 30 | S4: =IF(glas=6,AS4,IF(glas=5,AQ4,IF(glas>2,AO4,IF(glas>1,AM4,IF(U4=0,"",U4))))) -> 30 | T4: =IF(OR(type=1,type=2),AF4,IF(type=3,AJ4,IF(type=4,AH4,IF(AND(bol=1,vorm=3)=TRUE,Z4,IF(AND(bol=1,vorm=1)=TRUE,V4,IF(AND(bol=1,vorm=2)=TRUE,X4,IF(AND(bol=2,vorm=1)=TRUE,AB4,IF(AND(bol=2,vorm=2)=TRUE,AD4,"")))))))) -> 30 | U4: =IF(OR(type=1,type=2),AG4,IF(type=3,AK4,IF(type=4,AI4,IF(AND(bol=1,vorm=3)=TRUE,AA4,IF(AND(bol=1,vorm=1)=TRUE,W4,IF(AND(bol=1,vorm=2)=TRUE,Y4,IF(AND(bol=2,vorm=1)=TRUE,AC4,IF(AND(bol=2,vorm=2)=TRUE,AE4,"")))))))) -> 30 | V4: 30 | W4: 30 | X4: 30 | Y4: 80 | Z4: Ø | AA4: 40 | AB4: 40 | AC4: 40 | AD4: 40 | AE4: 70 | AF4: =IF(type=2,"*",40) -> 40 | AG4: =IF(type=2,"*",40) -> 40 | AH4: 30 | AI4: 80 | AJ4: =IF(OR(kleur=3,kleur=4),"*","Ø") -> Ø | AK4: =IF(OR(kleur=3,kleur=4),"*",40) -> 40 | AL4: 60 | AM4: 60 | AN4: 40 | AO4: 40 | AP4: 40 | AQ4: 40 | AR4: 40 | AS4: 40 | AT4: =AU4&" "&AV4 -> 30 30 | AU4: 30 | AV4: 30 | AW4: =AU4+25 -> 55 | AX4: =AV4+25 -> 55 | AY4: 2 | AZ4: 2 | BC4: =BD4-20&" "&BE4-20 -> 30 30 | BD4: 50 | BE4: 50 | BF4: 2 | BG4: 0 | BJ4: 0 | BN4: =BO4&" "&BP4 -> 30 30 | BO4: 30 | BP4: 30 | BQ4: =BO4+20 -> 50 | BR4: =BP4+20 -> 50 | BW4: =BO4+30 -> 60 | BX4: =BP4+30 -> 60 | CK4: 2 | CL4: 2 | CM4: 2 | CN4: 2 | CQ4: 400 | CR4: 15 | CS4: 9 | CT4: 5
A5: English | B5: Skylux iWindow2 | C5: =IF(glas>3,"*",taal!A28) -> vierwandig | D5: Ø | F5: =taal!A13 -> metalen opstand EP | G5: =IF(op=1,H5,IF(op=2,I5,IF(op=3,J5,K5))) -> pvc 30/20 | H5: =IF(K19=0,taal!A69,"pvc 30/20") -> pvc 30/20 | I5: =IF(F3="*","*","PO 30/20 EP60") -> PO 30/20 EP60 | J5: =IF(F4="*","*","M30") -> M30 | K5: =IF(F5="*","*","M30 EP") -> M30 EP | L5: =IF(glas=2,taal!A69,IF(glas>3,taal!A69,taal!A49&" "&taal!A54)) -> opaal PC | M5: =IF(K19=0,taal!A69,IF(glas=1,A82,taal!A69)) -> pvc EP25 high | O5: iWindow2 | Q5: =R5 &" "&S5 -> 40 40 | R5: 40 | S5: 40 | T5: 40 | U5: 40 | V5: 40 | W5: 40 | X5: 30 | Y5: 90 | Z5: Ø | AA5: 50 | AB5: 50 | AC5: 50 | AD5: 40 | AE5: 100 | AF5: =IF(type=2,"*",50) -> 50 | AG5: =IF(type=2,"*",50) -> 50 | AH5: 30 | AI5: 90 | AJ5: 40 | AK5: 40 | AL5: 60 | AM5: 80 | AN5: 40 | AO5: 70 | AP5: 40 | AQ5: 70 | AR5: 40 | AS5: 70 | AT5: =AU5&" "&AV5 -> 40 40 | AU5: 40 | AV5: 40 | AW5: =AU5+25 -> 65 | AX5: =AV5+25 -> 65 | AY5: 2 | AZ5: 2 | BA5: 2 | BB5: 2 | BC5: =BD5-20&" "&BE5-20 -> 40 40 | BD5: 60 | BE5: 60 | BF5: 2 | BG5: 2 | BH5: 2 | BI5: 2 | BJ5: 2 | BK5: 2 | BL5: 2 | BN5: =BO5&" "&BP5 -> 40 40 | BO5: 40 | BP5: 40 | BQ5: =BO5+20 -> 60 | BR5: =BP5+20 -> 60 | BS5: 2 | BT5: 2 | BU5: 2 | BV5: 2 | BW5: 70 | BX5: 70 | CC5: 2 | CD5: 2 | CE5: 2 | CF5: 2 | CG5: 2 | CH5: 2 | CI5: 2 | CJ5: 2 | CK5: 2 | CL5: 2 | CM5: 2 | CN5: 2 | CQ5: 450 | CR5: 14 | CS5: 10 | CT5: 6
A6: Hrvatski | B6: Skylux iWindow3 | C6: =IF(glas>3,"*",taal!A29) -> driewandig | F6: =taal!A14 -> eigen opstand | G6: =IF(op=1,H6,IF(op=2,I6,IF(op=3,J6,K6))) -> pvc 35/30 | H6: =IF(K19=0,taal!A69,"pvc 35/30") -> pvc 35/30 | I6: =IF(F3="*","*","PO 30/20 EP100") -> PO 30/20 EP100 | J6: =IF(F4="*","*","M40") -> M40 | K6: =IF(F5="*","*","M40 EP") -> M40 EP | L6: =IF(glas=2,taal!A69,IF(glas>3,taal!A69,IF(type=3,taal!A69,IF(OR(type=1,type=2),taal!A61,taal!A50&" "&taal!A54&IF(type<7," "&taal!A49," "))))) -> heatstop PC opaal | M6: =IF(K19=0,taal!A69,IF(glas=2,A83,taal!A69)) -> maak andere keuze! | N6: 1 | O6: iWindow3 | Q6: 45 45 | R6: 45 | S6: 45 | T6: 45 | U6: 45 | V6: 45 | W6: 45 | X6: 30 | Y6: 130 | Z6: Ø | AA6: 60 | AB6: 60 | AC6: 60 | AD6: 50 | AE6: 80 | AF6: 60 | AG6: 60 | AH6: 30 | AI6: 130 | AJ6: 40 | AK6: 70 | AL6: 60 | AM6: 90 | AN6: 40 | AO6: 100 | AP6: 50 | AQ6: 50 | AR6: 40 | AS6: 100 | AT6: 50 50 | AU6: 50 | AV6: 50 | AW6: 75 | AX6: 75 | AY6: 2 | AZ6: 2 | BA6: 2 | BB6: 2 | BC6: 50 50 | BD6: 70 | BE6: 70 | BF6: 2 | BG6: 2 | BH6: 2 | BI6: 2 | BJ6: 2 | BL6: 2 | BN6: 45 45 | BO6: 45 | BP6: 45 | BQ6: 65 | BR6: 65 | BS6: 2 | BT6: 2 | BU6: 2 | BV6: 2 | BW6: 75 | BX6: 75 | CG6: 2 | CH6: 2 | CI6: 2 | CJ6: 2 | CK6: 2 | CL6: 2 | CM6: 2 | CN6: 2 | CQ6: 500 | CR6: 17.5 | CS6: 10 | CT6: 6 | CZ6: =(DA6&DB6)*1 -> 4040 | DA6: 40 | DB6: 40 | DC6: pvc EP 25
A7: Polski | B7: Vitria | C7: =IF(glas>3,"*",taal!A30) -> dubbelwandig | G7: =IF(op=1,H7,IF(op=2,I7,IF(op=3,J7,K7))) -> maak andere keuze! | H7: =taal!A69 -> maak andere keuze! | I7: =IF(F3="*","*","PO 50/20") -> PO 50/20 | J7: =IF(F4="*","*","M50") -> M50 | K7: =IF(F5="*","*","M50 EP") -> M50 EP | M7: =IF(K19=0,taal!A69,IF(glas=2,A84,taal!A69)) -> maak andere keuze! | N7: 0 | Q7: 50 50 | R7: 50 | S7: 50 | T7: 50 | U7: 50 | V7: 50 | W7: 50 | X7: 40 | Y7: 70 | Z7: Ø | AA7: 70 | AB7: 70 | AC7: 70 | AD7: 50 | AE7: 110 | AF7: 70 | AG7: 70 | AH7: Ø | AI7: 40 | AJ7: 40 | AK7: 100 | AL7: 60 | AM7: 120 | AN7: 40 | AO7: 130 | AP7: 55 | AQ7: 55 | AR7: 50 | AS7: 50 | AT7: 55 55 | AU7: 55 | AV7: 55 | AW7: 80 | AX7: 80 | AY7: 2 | AZ7: 2 | BA7: 2 | BB7: 2 | BC7: 55 55 | BD7: 75 | BE7: 75 | BF7: 2 | BG7: 2 | BH7: 2 | BI7: 2 | BJ7: 2 | BK7: 2 | BL7: 2 | BN7: 50 50 | BO7: 50 | BP7: 50 | BQ7: 70 | BR7: 70 | BS7: 2 | BT7: 2 | BU7: 2 | BV7: 2 | BW7: 80 | BX7: 80 | BY7: 2 | BZ7: 2 | CA7: 2 | CB7: 2 | CC7: 2 | CD7: 2 | CE7: 2 | CF7: 2 | CG7: 2 | CH7: 2 | CI7: 2 | CJ7: 2 | CK7: 2 | CL7: 2 | CM7: 2 | CN7: 2 | CQ7: 550 | CR7: 17 | CS7: 12 | CT7: 8 | CZ7: =(DA7&DB7)*1 -> 4545 | DA7: 45 | DB7: 45 | DC7: pvc EP 25
A8: Czech | C8: =IF(glas>3,"*",taal!A31) -> enkelwandig | G8: maak andere keuze! | H8: =taal!A69 -> maak andere keuze! | I8: =IF(F3="*","*","PO 30/00") -> PO 30/00 | J8: =IF(F4="*","*","M60") -> M60 | K8: =IF(F5="*","*","M60 EP") -> M60 EP | M8: =IF(glas=1,taal!A69,IF(AND(OR(glas=3,glas=6),op<5),A85,taal!A69)) -> maak andere keuze! | N8: =IF(K19=0,taal!A17,"1 (+20 cm)") -> 1 (+20 cm) | Q8: 55 55 | R8: 55 | S8: 55 | T8: 55 | U8: 55 | V8: 55 | W8: 55 | X8: 40 | Y8: 100 | Z8: Ø | AA8: 80 | AB8: 75 | AC8: 75 | AD8: =IF(kleur>2,"",60) -> 60 | AE8: =IF(kleur>2,"",90) -> 90 | AF8: 70 | AG8: 100 | AH8: 40 | AI8: 40 | AJ8: =IF(OR(kleur=3,kleur=4),"*",40) -> 40 | AK8: =IF(OR(kleur=3,kleur=4),"*",140) -> 140 | AL8: 60 | AM8: 130 | AN8: 40 | AO8: 140 | AP8: 60 | AQ8: 60 | AR8: 60 | AS8: 60 | AT8: 60 60 | AU8: 60 | AV8: 60 | AW8: 85 | AX8: 85 | AY8: 2 | AZ8: 2 | BA8: 2 | BB8: 2 | BC8: 60 60 | BD8: 80 | BE8: 80 | BF8: 2 | BG8: 2 | BH8: 2 | BI8: 2 | BJ8: 2 | BK8: 2 | BL8: 2 | BN8: 55 55 | BO8: 55 | BP8: 55 | BQ8: 75 | BR8: 75 | BS8: 2 | BT8: 2 | BU8: 2 | BV8: 2 | BW8: 85 | BX8: 85 | BY8: 2 | BZ8: 2 | CA8: 2 | CB8: 2 | CG8: 2 | CH8: 2 | CI8: 2 | CJ8: 2 | CK8: 2 | CL8: 2 | CM8: 2 | CN8: 2 | CQ8: 600 | CR8: 17.5 | CS8: 12 | CT8: 8 | CZ8: 5050 | DA8: 50 | DB8: 50 | DC8: pvc EP 25
A9: Latvian | C9: =taal!A69 -> maak andere keuze! | G9: maak andere keuze! | H9: =taal!A69 -> maak andere keuze! | I9: =IF(F3="*","*","PO 50/00") -> PO 50/00 | J9: =IF(F4="*","*","M70") -> M70 | K9: =IF(F5="*","*","M70 EP") -> M70 EP | M9: =IF(glas=1,taal!A69,IF(glas=3,A86,taal!A69)) -> maak andere keuze! | N9: =IF(K19=0,taal!A17,"2 (+ 40 cm)") -> 2 (+ 40 cm) | Q9: 60 60 | R9: 60 | S9: 60 | T9: 60 | U9: 60 | V9: 60 | W9: 60 | X9: 40 | Y9: 130 | Z9: Ø | AA9: 90 | AB9: 80 | AC9: 80 | AD9: =IF(kleur>2,"",60) -> 60 | AE9: =IF(kleur>2,"",120) -> 120 | AF9: 75 | AG9: 75 | AH9: 40 | AI9: 70 | AJ9: =IF(OR(kleur=3,kleur=4),"*","Ø") -> Ø | AK9: =IF(OR(kleur=3,kleur=4),"*",50) -> 50 | AL9: =IF(raam=5,taal!$A$69,60) -> 60 | AM9: =IF(raam=5,"",150) -> 150 | AN9: 40 | AO9: 160 | AP9: 60 | AQ9: 90 | AR9: 60 | AS9: 80 | AT9: 70 70 | AU9: 70 | AV9: 70 | AW9: 95 | AX9: 95 | AY9: 2 | AZ9: 2 | BA9: 2 | BB9: 2 | BC9: 70 70 | BD9: 90 | BE9: 90 | BF9: 2 | BG9: 2 | BH9: 2 | BI9: 2 | BJ9: 2 | BK9: 2 | BL9: 2 | BN9: 60 60 | BO9: 60 | BP9: 60 | BQ9: 80 | BR9: 80 | BS9: 2 | BT9: 2 | BU9: 2 | BV9: 2 | BW9: 90 | BX9: 90 | BY9: 2 | BZ9: 2 | CA9: 2 | CB9: 2 | CC9: 2 | CD9: 2 | CE9: 2 | CF9: 2 | CG9: 2 | CH9: 2 | CI9: 2 | CJ9: 2 | CK9: 2 | CL9: 2 | CM9: 2 | CN9: 2 | CQ9: 700 | CR9: 18.5 | CS9: 15 | CT9: 12 | CZ9: 5555 | DA9: 55 | DB9: 55 | DC9: pvc EP 25
G10: maak andere keuze! | H10: =taal!A69 -> maak andere keuze! | I10: =taal!A69 -> maak andere keuze! | J10: =IF(F4="*","*","M80") -> M80 | K10: =IF(F5="*","*","M80 EP") -> M80 EP | M10: =IF(glas=1,taal!A69,IF(AND(glas=4,op<5),A87,taal!A69)) -> maak andere keuze! | N10: =IF(K19=0,taal!A17,"3 (+ 60 cm)") -> 3 (+ 60 cm) | Q10: 70 70 | R10: 70 | S10: 70 | T10: 70 | U10: 70 | V10: 70 | W10: 70 | X10: 40 | Y10: 140 | Z10: Ø | AA10: 100 | AB10: 90 | AC10: 90 | AD10: 70 | AE10: 100 | AF10: 80 | AG10: 80 | AH10: 40 | AI10: 100 | AJ10: 50 | AK10: 50 | AL10: =IF(raam=5,taal!$A$69,60) -> 60 | AM10: =IF(raam=5,"",180) -> 180 | AN10: 40 | AO10: 190 | AP10: 70 | AQ10: 70 | AR10: 60 | AS10: 90 | AT10: 75 75 | AU10: 75 | AV10: 75 | AW10: 100 | AX10: 100 | AY10: 2 | AZ10: 2 | BA10: 2 | BB10: 2 | BC10: 80 80 | BD10: 100 | BE10: 100 | BF10: 2 | BG10: 2 | BH10: 2 | BI10: 2 | BJ10: 2 | BK10: 2 | BL10: 2 | BN10: 70 70 | BO10: 70 | BP10: 70 | BQ10: 90 | BR10: 90 | BS10: 2 | BT10: 2 | BU10: 2 | BV10: 2 | BW10: 100 | BX10: 100 | BY10: 2 | BZ10: 2 | CA10: 2 | CB10: 2 | CC10: 2 | CD10: 2 | CE10: 2 | CF10: 2 | CG10: 2 | CH10: 2 | CI10: 2 | CJ10: 2 | CK10: 2 | CL10: 2 | CM10: 2 | CN10: 2 | CQ10: 750 | CR10: 17.5 | CS10: 14 | CT10: 10 | CZ10: 6060 | DA10: 60 | DB10: 60 | DC10: pvc EP 25
G11: maak andere keuze! | H11: =taal!A69 -> maak andere keuze! | I11: =taal!A69 -> maak andere keuze! | J11: =IF(F4="*","*","M90") -> M90 | K11: =IF(F5="*","*","M90 EP") -> M90 EP | M11: =IF(glas=1,taal!A69,IF(glas=4,A88,taal!A69)) -> maak andere keuze! | Q11: 75 75 | R11: 75 | S11: 75 | T11: 75 | U11: 75 | V11: 75 | W11: 75 | X11: 40 | Y11: 160 | Z11: Ø | AA11: 110 | AB11: 100 | AC11: 100 | AD11: 75 | AE11: 125 | AF11: 80 | AG11: 130 | AH11: 40 | AI11: 130 | AJ11: 50 | AK11: 70 | AL11: 70 | AM11: 70 | AN11: 40 | AO11: 220 | AP11: 70 | AQ11: 100 | AR11: 60 | AS11: 120 | AT11: 80 80 | AU11: 80 | AV11: 80 | AW11: 105 | AX11: 105 | AY11: 2 | AZ11: 2 | BA11: 2 | BB11: 2 | BC11: 90 90 | BD11: 110 | BE11: 110 | BF11: 2 | BG11: 2 | BH11: 2 | BI11: 2 | BK11: 2 | BL11: 2 | BN11: 75 75 | BO11: 75 | BP11: 75 | BQ11: 95 | BR11: 95 | BS11: 2 | BT11: 2 | BU11: 2 | BV11: 2 | BW11: 105 | BX11: 105 | BY11: 2 | BZ11: 2 | CA11: 2 | CB11: 2 | CC11: 2 | CD11: 2 | CE11: 2 | CF11: 2 | CG11: 2 | CH11: 2 | CI11: 2 | CJ11: 2 | CK11: 2 | CL11: 2 | CM11: 2 | CN11: 2 | CQ11: 800 | CR11: 19 | CS11: 14 | CT11: 10 | CZ11: 7070 | DA11: 70 | DB11: 70 | DC11: pvc EP 25
G12: maak andere keuze! | H12: =taal!A69 -> maak andere keuze! | I12: =taal!A69 -> maak andere keuze! | J12: =IF(F4="*","*","M100") -> M100 | K12: =IF(F5="*","*","M100 EP") -> M100 EP | M12: =IF(glas=1,taal!A69,IF(AND(glas=5,op<5),A89,taal!A69)) -> maak andere keuze! | Q12: 80 80 | R12: 80 | S12: 80 | T12: 80 | U12: 80 | V12: 80 | W12: 80 | X12: 40 | Y12: 190 | Z12: Ø | AA12: 120 | AB12: 110 | AC12: 110 | AD12: 75 | AE12: 175 | AF12: 90 | AG12: 90 | AH12: 40 | AI12: 140 | AJ12: 50 | AK12: 80 | AL12: 70 | AM12: 100 | AN12: 40 | AO12: 280 | AP12: 75 | AQ12: 75 | AR12: 70 | AS12: 70 | AT12: 90 90 | AU12: 90 | AV12: 90 | AW12: 115 | AX12: 115 | AY12: 2 | AZ12: 2 | BA12: 2 | BB12: 2 | BC12: 100 100 | BD12: 120 | BE12: 120 | BF12: 2 | BG12: 2 | BH12: 2 | BI12: 2 | BJ12: 2 | BK12: 2 | BL12: 2 | BN12: 80 80 | BO12: 80 | BP12: 80 | BQ12: 100 | BR12: 100 | BS12: 2 | BT12: 2 | BU12: 2 | BV12: 2 | BW12: 110 | BX12: 110 | BY12: 2 | BZ12: 2 | CA12: 2 | CB12: 2 | CC12: 2 | CD12: 2 | CE12: 2 | CF12: 2 | CG12: 2 | CH12: 2 | CI12: 2 | CJ12: 2 | CK12: 2 | CL12: 2 | CM12: 2 | CN12: 2 | CQ12: 850 | CR12: 19 | CS12: 14 | CT12: 10 | CZ12: 7575 | DA12: 75 | DB12: 75 | DC12: pvc EP 25
M13: =IF(glas=1,taal!A69,IF(glas=5,A90,taal!A69)) -> maak andere keuze! | Q13: 85 85 | R13: 85 | S13: 85 | T13: 85 | U13: 85 | V13: 85 | W13: 85 | X13: 40 | Y13: 220 | Z13: Ø | AA13: 130 | AB13: 120 | AC13: 120 | AD13: 80 | AE13: 110 | AF13: 100 | AG13: 100 | AH13: 40 | AI13: 160 | AJ13: 50 | AK13: 110 | AL13: 70 | AM13: 130 | AN13: 45 | AO13: 105 | AP13: 80 | AQ13: 80 | AR13: 70 | AS13: 100 | AT13: 100 100 | AU13: 100 | AV13: 100 | AW13: 125 | AX13: 125 | AY13: 2 | AZ13: 2 | BA13: 2 | BB13: 2 | BC13: 105 105 | BD13: 125 | BE13: 125 | BF13: 2 | BG13: 2 | BH13: 2 | BI13: 2 | BJ13: 2 | BN13: 85 85 | BO13: 85 | BP13: 85 | BQ13: =BO13+20 -> 105 | BR13: =BP13+20 -> 105 | BS13: 2 | BT13: 2 | BU13: 2 | BV13: 2 | BW13: =BO13+30 -> 115 | BX13: =BP13+30 -> 115 | BY13: 2 | BZ13: 2 | CA13: 2 | CB13: 2 | CC13: 2 | CD13: 2 | CE13: 2 | CF13: 2 | CG13: 2 | CH13: 2 | CI13: 2 | CJ13: 2 | CK13: 2 | CL13: 2 | CM13: 2 | CN13: 2 | CQ13: 900 | CR13: 19 | CS13: 14 | CT13: 10 | CZ13: 8080 | DA13: 80 | DB13: 80 | DC13: pvc EP 25
M14: =IF(AND(glas=1,K19=0),A91,taal!A69) -> maak andere keuze! | Q14: 90 90 | R14: 90 | S14: 90 | T14: =IF(OR(type=1,type=2),AF14,IF(type=3,AJ14,IF(type=4,AH14,IF(AND(bol=1,vorm=3)=TRUE,Z14,IF(AND(bol=1,vorm=1)=TRUE,V14,IF(AND(bol=1,vorm=2)=TRUE,X14,IF(AND(bol=2,vorm=1)=TRUE,AB14,IF(AND(bol=2,vorm=2)=TRUE,AD14,"")))))))) -> 90 | U14: 90 | V14: 90 | W14: 90 | X14: 40 | Y14: 280 | Z14: Ø | AA14: 140 | AB14: 130 | AC14: 130 | AD14: 80 | AE14: 130 | AF14: 100 | AG14: 130 | AH14: 40 | AI14: 190 | AJ14: 55 | AK14: 55 | AL14: =IF(raam=5,taal!$A$69,70) -> 70 | AM14: =IF(raam=5,"",150) -> 150 | AN14: 50 | AO14: 50 | AP14: 80 | AQ14: 130 | AR14: 70 | AS14: 130 | AT14: 105 105 | AU14: 105 | AV14: 105 | AW14: 130 | AX14: 130 | AY14: 2 | AZ14: 2 | BA14: 2 | BB14: 2 | BC14: 120 120 | BD14: 140 | BE14: 140 | BF14: 2 | BG14: 2 | BH14: 2 | BI14: 2 | BJ14: 2 | BK14: 2 | BL14: 2 | BN14: 90 90 | BO14: 90 | BP14: 90 | BQ14: 110 | BR14: 110 | BS14: 2 | BT14: 2 | BU14: 2 | BV14: 2 | BW14: 120 | BX14: 120 | BY14: 2 | BZ14: 2 | CA14: 2 | CB14: 2 | CC14: 2 | CD14: 2 | CE14: 2 | CF14: 2 | CG14: 2 | CH14: 2 | CI14: 2 | CJ14: 2 | CK14: 2 | CL14: 2 | CM14: 2 | CN14: 2 | CQ14: 1000 | CR14: 22 | CS14: 15 | CT14: 12 | CZ14: =(DA14&DB14)*1 -> 8585 | DA14: 85 | DB14: 85 | DC14: pvc EP 25
Q15: 100 100 | R15: 100 | S15: 100 | T15: 100 | U15: 100 | V15: 100 | W15: 100 | X15: 45 | Y15: 75 | Z15: Ø | AA15: 160 | AB15: 140 | AC15: 140 | AD15: 80 | AE15: 180 | AF15: 100 | AG15: 150 | AH15: 45 | AI15: 45 | AJ15: =IF(OR(kleur=3,kleur=4),"*","Ø") -> Ø | AK15: =IF(OR(kleur=3,kleur=4),"*",60) -> 60 | AL15: 75 | AM15: 75 | AN15: 50 | AO15: 70 | AP15: 80 | AQ15: 180 | AR15: 75 | AS15: 75 | AT15: 110 110 | AU15: 110 | AV15: 110 | AW15: 135 | AX15: 135 | AY15: 2 | AZ15: 2 | BA15: 2 | BB15: 2 | BC15: 130 130 | BD15: 150 | BE15: 150 | BF15: 2 | BG15: 2 | BH15: 2 | BI15: 2 | BJ15: 2 | BK15: 2 | BL15: 2 | BN15: 100 100 | BO15: 100 | BP15: 100 | BQ15: 120 | BR15: 120 | BS15: 2 | BT15: 2 | BU15: 2 | BV15: 2 | BW15: 130 | BX15: 130 | BY15: 2 | BZ15: 2 | CA15: 2 | CB15: 2 | CC15: 2 | CD15: 2 | CE15: 2 | CF15: 2 | CG15: 2 | CH15: 2 | CI15: 2 | CJ15: 2 | CK15: 2 | CL15: 2 | CM15: 2 | CN15: 2 | CQ15: 1050 | CR15: 21 | CS15: 14 | CT15: 10 | CZ15: 9090 | DA15: 90 | DB15: 90 | DC15: pvc EP 25
B16: =INDEX(B2:B12,glas) -> Skylux lichtkoepel | C16: =INDEX(C2:C12,type) -> driewandig | F16: =INDEX(F2:F12,op) -> pvc-opstand | G16: =INDEX(G2:G12,prvc) -> pvc 20/00 EP | L16: =INDEX(L2:L12,kleur) -> helder PMMA | M16: =INDEX(M2:M14,raam) -> geen | Q16: 105 105 | R16: 105 | S16: 105 | T16: 105 | U16: 105 | V16: 105 | W16: 105 | X16: 45 | Y16: 105 | Z16: Ø | AA16: 170 | AB16: =IF(kleur>2,"",150) -> 150 | AC16: =IF(kleur>2,"",150) -> 150 | AD16: 100 | AE16: 130 | AF16: 100 | AG16: 160 | AH16: 45 | AI16: 75 | AJ16: 60 | AK16: 60 | AL16: 75 | AM16: 105 | AN16: 50 | AO16: 80 | AP16: 90 | AQ16: 90 | AR16: 80 | AS16: 80 | AT16: 120 120 | AU16: 120 | AV16: 120 | AW16: 145 | AX16: 145 | AY16: 2 | AZ16: 2 | BA16: 2 | BB16: 2 | BC16: 140 140 | BD16: 160 | BE16: 160 | BK16: 2 | BL16: 2 | BN16: 105 105 | BO16: 105 | BP16: 105 | BQ16: 125 | BR16: 125 | BS16: 2 | BT16: 2 | BU16: 2 | BV16: 2 | BW16: 135 | BX16: 135 | BY16: 2 | BZ16: 2 | CA16: 2 | CB16: 2 | CC16: 2 | CD16: 2 | CE16: 2 | CF16: 2 | CG16: 2 | CH16: 2 | CI16: 2 | CJ16: 2 | CK16: 2 | CL16: 2 | CM16: 2 | CN16: 2 | CQ16: 1100 | CR16: 22 | CS16: 14 | CT16: 10 | CZ16: 100100 | DA16: 100 | DB16: 100 | DC16: pvc EP 25
B17: =IF(B16=taal!$A$69,0,1) -> 1 | C17: =IF(C16=taal!$A$69,0,1) -> 1 | F17: =IF(F16=taal!$A$69,0,1) -> 1 | G17: =IF(G16=taal!$A$69,0,1) -> 1 | L17: =IF(L16=taal!$A$61,0,1) -> 1 | M17: =IF(OR(M16=taal!$A$69,AND(glas>=3,M16=taal!A17)),0,1) -> 1 | O17: =C17*F17*G17*L17*M17 -> 1 | Q17: 110 110 | R17: 110 | S17: 110 | T17: 110 | U17: 110 | V17: 110 | W17: 110 | X17: 50 | Y17: 70 | Z17: Ø | AA17: 180 | AB17: =IF(kleur>2,"",160) -> 160 | AC17: =IF(kleur>2,"",160) -> 160 | AD17: 100 | AE17: 160 | AF17: 100 | AG17: 200 | AH17: 45 | AI17: 105 | AJ17: 60 | AK17: 90 | AL17: 75 | AM17: 125 | AN17: 50 | AO17: 100 | AP17: 90 | AQ17: 120 | AR17: 80 | AS17: 110 | AT17: 130 130 | AU17: 130 | AV17: 130 | AW17: 155 | AX17: 155 | AY17: 2 | AZ17: 2 | BA17: 2 | BB17: 2 | BC17: 150 150 | BD17: 170 | BE17: 170 | BG17: 2 | BH17: 2 | BI17: 2 | BJ17: 2 | BN17: 110 110 | BO17: 110 | BP17: 110 | BQ17: 130 | BR17: 130 | BS17: 2 | BT17: 2 | BU17: 2 | BV17: 2 | BW17: 140 | BX17: 140 | BY17: 2 | BZ17: 2 | CA17: 2 | CB17: 2 | CC17: 2 | CD17: 2 | CE17: 2 | CF17: 2 | CG17: 2 | CH17: 2 | CI17: 2 | CJ17: 2 | CK17: 2 | CL17: 2 | CM17: 2 | CN17: 2 | CQ17: 1200 | CR17: 22.5 | CS17: 16 | CT17: 12 | CZ17: 105105 | DA17: 105 | DB17: 105 | DC17: pvc EP 25
Q18: 120 120 | R18: 120 | S18: 120 | T18: 120 | U18: 120 | V18: 120 | W18: 120 | X18: 50 | Y18: 80 | Z18: Ø | AA18: 200 | AB18: =IF(kleur>2,"",180) -> 180 | AC18: =IF(kleur>2,"",180) -> 180 | AD18: 100 | AE18: 200 | AF18: 100 | AG18: 220 | AH18: Ø | AI18: 50 | AJ18: 60 | AK18: 120 | AL18: 80 | AM18: 80 | AN18: 50 | AO18: 110 | AP18: 100 | AQ18: 100 | AR18: 80 | AS18: 130 | AT18: 140 140 | AU18: 140 | AV18: 140 | AW18: 165 | AX18: 165 | AY18: 2 | AZ18: 2 | BA18: 2 | BB18: 2 | BC18: 160 160 | BD18: 180 | BE18: 180 | BF18: 2 | BG18: 2 | BH18: 2 | BI18: 2 | BJ18: 2 | BK18: 2 | BL18: 2 | BN18: 120 120 | BO18: 120 | BP18: 120 | BQ18: 140 | BR18: 140 | BS18: 2 | BT18: 2 | BU18: 2 | BV18: 2 | BW18: 150 | BX18: 150 | BY18: 2 | BZ18: 2 | CA18: 2 | CB18: 2 | CC18: 2 | CD18: 2 | CE18: 2 | CF18: 2 | CG18: 2 | CH18: 2 | CI18: 2 | CJ18: 2 | CK18: 2 | CL18: 2 | CM18: 2 | CN18: 2 | CQ18: 1300 | CR18: 23 | CS18: 16 | CT18: 12 | CZ18: 110110 | DA18: 110 | DB18: 110 | DC18: pvc EP 25
A19: Types of dome | B19: U dome | C19: U + IP32/89 | D19: U + EP25 | E19: iDome | F19: iWindow2 | G19: iWindow3 | H19: Vitria | J19: daylight size | K19: =IF(R2='Skylux EP'!D5,0,R2*10) -> 1000 | L19: =S2*10 -> 1000 | M19: 2 | Q19: 130 130 | R19: 130 | S19: 130 | T19: 130 | U19: 130 | V19: 130 | W19: 130 | X19: 50 | Y19: 100 | AB19: =IF(kleur>2,"",200) -> 200 | AC19: =IF(kleur>2,"",200) -> 200 | AD19: 100 | AE19: 220 | AF19: 105 | AG19: 105 | AH19: 50 | AI19: 50 | AJ19: =IF(OR(kleur=3,kleur=4),"*","Ø") -> Ø | AK19: =IF(OR(kleur=3,kleur=4),"*",70) -> 70 | AL19: 80 | AM19: 110 | AN19: 50 | AO19: 140 | AP19: 100 | AQ19: 130 | AR19: 80 | AS19: 180 | AT19: 150 150 | AU19: 150 | AV19: 150 | AW19: 175 | AX19: 175 | AY19: 2 | AZ19: 2 | BA19: 2 | BB19: 2 | BC19: 180 180 | BD19: 200 | BE19: 200 | BF19: 2 | BG19: 2 | BH19: 2 | BI19: 2 | BJ19: 2 | BK19: 2 | BL19: 2 | BN19: 130 130 | BO19: 130 | BP19: 130 | BQ19: 150 | BR19: 150 | BS19: 2 | BT19: 2 | BU19: 2 | BV19: 2 | BW19: 160 | BX19: 160 | BY19: 2 | BZ19: 2 | CA19: 2 | CB19: 2 | CC19: 2 | CD19: 2 | CE19: 2 | CF19: 2 | CG19: 2 | CH19: 2 | CI19: 2 | CJ19: 2 | CK19: 2 | CL19: 2 | CM19: 2 | CN19: 2 | CQ19: 1400 | CR19: 25.5 | CS19: 18 | CT19: 14 | CZ19: 120120 | DA19: 120 | DB19: 120 | DC19: pvc EP 25
A20: EP10 | B20: 1.3 | C20: =IF(raam=6,0.3,IF(raam=5,0.55,0.6)) -> 0.6 | D20: 0.71 | E20: 0.6 | F20: 1 | G20: 0.5 | H20: 1.1 | J20: dome size | Q20: 140 140 | R20: 140 | S20: 140 | T20: 140 | U20: 140 | V20: 140 | W20: 140 | X20: 50 | Y20: 110 | AD20: 110 | AE20: 170 | AF20: 110 | AG20: 110 | AH20: 50 | AI20: 70 | AJ20: 70 | AK20: 70 | AL20: =IF(raam=5,taal!$A$69,80) -> 80 | AM20: =IF(raam=5,"",130) -> 130 | AN20: 50 | AO20: 170 | AP20: 100 | AQ20: 150 | AR20: 80 | AS20: 200 | AT20: 160 160 | AU20: 160 | AV20: 160 | AW20: 185 | AX20: 185 | AY20: 2 | AZ20: 2 | BA20: 2 | BB20: 2 | BC20: 200 200 | BD20: 220 | BE20: 220 | BF20: 2 | BG20: 2 | BH20: 2 | BI20: 2 | BJ20: 2 | BK20: 2 | BN20: 140 140 | BO20: 140 | BP20: 140 | BQ20: 160 | BR20: 160 | BS20: 2 | BT20: 2 | BU20: 2 | BV20: 2 | BW20: 170 | BX20: 170 | BY20: 2 | BZ20: 2 | CA20: 2 | CB20: 2 | CC20: 2 | CD20: 2 | CE20: 2 | CF20: 2 | CG20: 2 | CH20: 2 | CI20: 2 | CJ20: 2 | CK20: 2 | CL20: 2 | CM20: 2 | CN20: 2 | CQ20: 1500 | CR20: 25 | CS20: 18 | CT20: 14 | CZ20: 130130 | DA20: 130 | DB20: 130 | DC20: pvc EP 25
A21: EP16 | B21: 0.87 | C21: =IF(raam=6,0.26,IF(raam=5,0.48,0.5)) -> 0.5 | D21: 0.57 | E21: 0.5 | F21: 1 | G21: 0.5 | H21: 1.1 | Q21: 150 150 | R21: 150 | S21: 150 | T21: 150 | U21: 150 | V21: 150 | W21: 150 | X21: 50 | Y21: 140 | AD21: 130 | AE21: 230 | AF21: 110 | AG21: 170 | AH21: 50 | AI21: 80 | AJ21: 70 | AK21: 100 | AL21: =IF(raam=5,taal!$A$69,80) -> 80 | AM21: =IF(raam=5,"",140) -> 140 | AN21: 50 | AO21: 200 | AP21: 105 | AQ21: 105 | AR21: 90 | AS21: 90 | AT21: 180 180 | AU21: 180 | AV21: 180 | AW21: 205 | AX21: 205 | AY21: 2 | AZ21: 2 | BA21: 2 | BB21: 2 | BC21: 30 80 | BD21: 50 | BE21: 100 | BF21: 2 | BG21: 2 | BH21: 2 | BI21: 2 | BJ21: 2 | BN21: 150 150 | BO21: 150 | BP21: 150 | BQ21: 170 | BR21: 170 | BS21: 2 | BT21: 2 | BU21: 2 | BV21: 2 | BW21: 180 | BX21: 180 | BY21: 2 | BZ21: 2 | CA21: 2 | CB21: 2 | CC21: 2 | CD21: 2 | CE21: 2 | CF21: 2 | CG21: 2 | CH21: 2 | CI21: 2 | CJ21: 2 | CK21: 2 | CL21: 2 | CM21: 2 | CN21: 2 | CQ21: 1550 | CR21: 22.5 | CS21: 20 | CT21: 16 | CZ21: 140140 | DA21: 140 | DB21: 140 | DC21: pvc EP 25
A22: 5W | B22: 0.99 | C22: =IF(raam=6,0.28,IF(raam=5,0.5,0.55)) -> 0.55 | D22: 0.63 | E22: 0.55 | F22: 1 | G22: 0.5 | H22: 1.1 | Q22: 155 155 | R22: 155 | S22: 155 | T22: 155 | U22: 155 | V22: 155 | W22: 155 | X22: 50 | Y22: 170 | AF22: 120 | AG22: 120 | AH22: 50 | AI22: 100 | AJ22: 70 | AK22: 130 | AL22: 90 | AM22: 90 | AN22: 50 | AO22: 230 | AP22: 110 | AQ22: 110 | AR22: 90 | AS22: 120 | AT22: 200 200 | AU22: 200 | AV22: 200 | AW22: 225 | AX22: 225 | AY22: 2 | AZ22: 2 | BA22: 2 | BB22: 2 | BC22: 30 130 | BD22: 50 | BE22: 150 | BF22: 2 | BG22: 2 | BH22: 2 | BI22: 2 | BJ22: 2 | BN22: 155 155 | BO22: 155 | BP22: 155 | BQ22: 175 | BR22: 175 | BS22: 2 | BT22: 2 | BU22: 2 | BV22: 2 | BW22: 185 | BX22: 185 | BY22: 2 | BZ22: 2 | CA22: 2 | CB22: 2 | CC22: 2 | CD22: 2 | CE22: 2 | CF22: 2 | CG22: 2 | CH22: 2 | CI22: 2 | CJ22: 2 | CK22: 2 | CL22: 2 | CM22: 2 | CN22: 2 | CQ22: 1600 | CR22: 25 | CS22: 20 | CT22: 16 | CZ22: 150150 | DA22: 150 | DB22: 150 | DC22: pvc EP 25
A23: 4W | B23: 1.28 | C23: =IF(raam=6,0.3,IF(raam=5,0.56,0.61)) -> 0.61 | D23: 0.72 | E23: 0.61 | F23: 1 | G23: 0.5 | H23: 1.1 | Q23: 160 160 | R23: 160 | S23: 160 | T23: 160 | U23: 160 | V23: 160 | W23: 160 | X23: 50 | Y23: 200 | AF23: 130 | AG23: 130 | AH23: 50 | AI23: 110 | AJ23: 70 | AK23: 160 | AL23: 100 | AM23: 100 | AN23: 55 | AO23: 55 | AP23: 120 | AQ23: 120 | AR23: 90 | AS23: 150 | AT23: 30 80 | AU23: 30 | AV23: 80 | AW23: 55 | AX23: 105 | AY23: 2 | AZ23: 2 | BC23: 40 70 | BD23: 60 | BE23: 90 | BF23: 2 | BG23: 2 | BH23: 2 | BI23: 2 | BJ23: 2 | BN23: 160 160 | BO23: 160 | BP23: 160 | BQ23: 180 | BR23: 180 | BS23: 2 | BT23: 2 | BU23: 2 | BV23: 2 | BW23: 190 | BX23: 190 | BY23: 2 | BZ23: 2 | CA23: 2 | CB23: 2 | CC23: 2 | CD23: 2 | CE23: 2 | CF23: 2 | CG23: 2 | CH23: 2 | CI23: 2 | CJ23: 2 | CK23: 2 | CL23: 2 | CM23: 2 | CN23: 2 | CQ23: 1700 | CR23: 28 | CS23: 20 | CT23: 16 | CZ23: 155155 | DA23: 155 | DB23: 155 | DC23: pvc EP 25
A24: 3W | B24: 1.7 | C24: =IF(raam=6,0.32,IF(raam=5,0.62,0.69)) -> 0.69 | D24: 0.83 | E24: 0.69 | F24: 1 | G24: 0.5 | H24: 1.1 | J24: thickness insulation | K24: =invoerblad!$D$12 -> 5 | Q24: 170 170 | R24: 170 | S24: 170 | T24: 170 | U24: 170 | V24: 170 | W24: 170 | X24: 50 | Y24: 230 | AF24: 130 | AG24: 160 | AH24: 50 | AI24: 140 | AJ24: 75 | AK24: 75 | AL24: =IF(raam=5,taal!$A$69,105) -> 105 | AM24: =IF(raam=5,"",105) -> 105 | AN24: 60 | AO24: 60 | AR24: 100 | AS24: 100 | AT24: 30 130 | AU24: 30 | AV24: 130 | AW24: 55 | AX24: 155 | AY24: 2 | AZ24: 2 | BC24: 40 100 | BD24: 60 | BE24: 120 | BF24: 2 | BG24: 2 | BH24: 2 | BI24: 2 | BN24: 170 170 | BO24: 170 | BP24: 170 | BQ24: 190 | BR24: 190 | BS24: 2 | BT24: 2 | BU24: 2 | BV24: 2 | BW24: 200 | BX24: 200 | BY24: 2 | BZ24: 2 | CA24: 2 | CB24: 2 | CC24: 2 | CD24: 2 | CE24: 2 | CF24: 2 | CG24: 2 | CH24: 2 | CI24: 2 | CJ24: 2 | CK24: 2 | CL24: 2 | CM24: 2 | CN24: 2 | CQ24: 1800 | CR24: 29.5 | CS24: 20 | CT24: 16 | CZ24: 160160 | DA24: 160 | DB24: 160 | DC24: pvc EP 25
A25: 2W | B25: 2.9 | C25: =IF(raam=6,0.34,IF(raam=5,0.7,0.79)) -> 0.79 | D25: 0.98 | E25: 0.79 | F25: 1 | G25: 0.5 | H25: 1.1 | Q25: 180 180 | R25: 180 | S25: 180 | T25: 180 | U25: 180 | V25: 180 | W25: 180 | X25: 60 | Y25: 80 | Z25: =taal!$A$62 -> selecteer hoger | AB25: =taal!$A$62 -> selecteer hoger | AD25: =taal!$A$62 -> selecteer hoger | AF25: 130 | AG25: 220 | AH25: 50 | AI25: 170 | AJ25: 75 | AK25: 105 | AN25: 60 | AO25: 80 | AR25: 100 | AS25: 130 | AT25: 40 70 | AU25: 40 | AV25: 70 | AW25: 65 | AX25: 95 | AY25: 2 | AZ25: 2 | BA25: 2 | BB25: 2 | BC25: 60 90 | BD25: 80 | BE25: 110 | BK25: 2 | BL25: 2 | BN25: 180 180 | BO25: 180 | BP25: 180 | BQ25: 200 | BR25: 200 | BS25: 2 | BT25: 2 | BU25: 2 | BV25: 2 | BW25: 210 | BX25: 210 | BY25: 2 | BZ25: 2 | CA25: 2 | CB25: 2 | CC25: 2 | CD25: 2 | CE25: 2 | CF25: 2 | CG25: 2 | CH25: 2 | CI25: 2 | CJ25: 2 | CK25: 2 | CL25: 2 | CM25: 2 | CN25: 2 | CQ25: 2000 | CR25: 30 | CS25: 23 | CT25: 18 | CZ25: 170170 | DA25: 170 | DB25: 170 | DC25: pvc EP 25
A26: 1W | B26: 5.17 | C26: =IF(raam=6,0.36,IF(raam=5,0.81,0.93)) -> 0.93 | D26: 1.19 | E26: 0.93 | F26: 1 | G26: 0.5 | H26: 1.1 | Q26: 200 200 | R26: 200 | S26: 200 | T26: 200 | U26: 200 | V26: 200 | W26: 200 | X26: 60 | Y26: 90 | AF26: 130 | AG26: 230 | AH26: 50 | AI26: 200 | AJ26: 75 | AK26: 125 | AL26: =taal!$A$62 -> selecteer hoger | AN26: 60 | AO26: 90 | AP26: selecteer hoger | AR26: 100 | AS26: 150 | AT26: 40 100 | AU26: 40 | AV26: 100 | AW26: 65 | AX26: 125 | AY26: 2 | AZ26: 2 | BA26: 2 | BB26: 2 | BC26: =BD26-20&" "&BE26-20 -> 60 130 | BD26: 80 | BE26: 150 | BF26: 2 | BG26: 2 | BH26: 2 | BI26: 2 | BN26: 200 200 | BO26: 200 | BP26: 200 | BQ26: 220 | BR26: 220 | BS26: 2 | BT26: 2 | BW26: 230 | BX26: 230 | BY26: 2 | BZ26: 2 | CA26: 2 | CB26: 2 | CC26: 2 | CD26: 2 | CE26: 2 | CF26: 2 | CG26: 2 | CH26: 2 | CI26: 2 | CJ26: 2 | CK26: 2 | CL26: 2 | CM26: 2 | CN26: 2 | CZ26: 180180 | DA26: 180 | DB26: 180 | DC26: pvc EP 25
A27: no dome | B27: ??? | C27: 1 | D27: ??? | E27: 1 | F27: 1 | G27: 0.5 | H27: 1.1 | T27: 0 | U27: 0 | X27: 60 | Y27: 120 | AF27: 140 | AG27: 140 | AH27: 55 | AI27: 55 | AJ27: 75 | AK27: 175 | AN27: 60 | AO27: 120 | AR27: 100 | AS27: 160 | AT27: 40 190 | AU27: 40 | AV27: 190 | AW27: 65 | AX27: 215 | AY27: 2 | AZ27: 2 | BA27: 2 | BB27: 2 | BC27: =BD27-20&" "&BE27-20 -> 70 100 | BD27: 90 | BE27: 120 | BF27: 2 | BG27: 2 | BH27: 2 | BI27: 2 | BJ27: 2 | BK27: 2 | BL27: 2 | BN27: 30 80 | BO27: 30 | BP27: 80 | BQ27: 50 | BR27: 100 | BW27: 60 | BX27: 110 | CK27: 2 | CL27: 2 | CM27: 2 | CN27: 2 | CP27: Rectangle | CQ27: 300 | CR27: 11.5 | CS27: 9 | CT27: 5 | CU27: =VLOOKUP(K19,CQ27:CT42,2) -> 18 | CV27: =VLOOKUP(K19,CQ27:CT42,3) -> 14 | CW27: =VLOOKUP(K19,CQ27:CT42,4) -> 10 | CZ27: 200200 | DA27: 200 | DB27: 200 | DC27: pvc EP 25
A28: Result dome: | B28: =INDEX(B20:B27,type) -> 1.7 | C28: 0.69 | D28: 0.83 | E28: 0.69 | F28: 1 | G28: 0.5 | H28: 1.1 | I28: = (Ut) | T28: 0 | U28: 0 | X28: 60 | Y28: 130 | AF28: 160 | AG28: 160 | AH28: Ø | AI28: 60 | AJ28: =IF(OR(kleur=3,kleur=4),"*","Ø") -> Ø | AK28: =IF(OR(kleur=3,kleur=4),"*",80) -> 80 | AN28: 60 | AO28: 130 | AR28: 100 | AS28: 200 | AT28: 50 70 | AU28: 50 | AV28: 70 | AW28: 75 | AX28: 95 | AY28: 2 | AZ28: 2 | BA28: 2 | BB28: 2 | BC28: 80 130 | BD28: 100 | BE28: 150 | BF28: 2 | BG28: 2 | BH28: 2 | BI28: 2 | BJ28: 2 | BK28: 2 | BL28: 2 | BN28: 30 90 | BO28: 30 | BP28: 90 | BQ28: 50 | BR28: 110 | BW28: 60 | BX28: 120 | CK28: 2 | CL28: 2 | CM28: 2 | CN28: 2 | CQ28: 400 | CR28: 13.5 | CS28: 9 | CT28: 5
T29: 0 | U29: 0 | X29: 60 | Y29: 150 | AF29: 180 | AG29: 180 | AH29: 60 | AI29: 60 | AJ29: 80 | AK29: 80 | AN29: 60 | AO29: 150 | AR29: 100 | AS29: 220 | AT29: 50 80 | AU29: 50 | AV29: 80 | AW29: 75 | AX29: 105 | AY29: 2 | AZ29: 2 | BA29: 2 | BB29: 2 | BC29: 80 160 | BD29: 100 | BE29: 180 | BG29: 2 | BH29: 2 | BI29: 2 | BN29: 30 130 | BO29: 30 | BP29: 130 | BQ29: 50 | BR29: 150 | BW29: 60 | BX29: 160 | CK29: 2 | CL29: 2 | CM29: 2 | CN29: 2 | CQ29: 450 | CR29: 13 | CS29: 10 | CT29: 6
A30: Types of curb | T30: 0 | U30: 0 | X30: 60 | Y30: 180 | AH30: 60 | AI30: 80 | AJ30: 80 | AK30: 110 | AN30: 60 | AO30: 180 | AR30: 110 | AS30: 110 | AT30: 50 100 | AU30: 50 | AV30: 100 | AW30: 75 | AX30: 125 | AY30: 2 | AZ30: 2 | BA30: 2 | BB30: 2 | BC30: 80 180 | BD30: 100 | BE30: 200 | BF30: 2 | BG30: 2 | BH30: 2 | BI30: 2 | BJ30: 2 | BN30: 40 70 | BO30: 40 | BP30: 70 | BQ30: 60 | BR30: 90 | BS30: 2 | BT30: 2 | BU30: 2 | BV30: 2 | BW30: 70 | BX30: 100 | CC30: 2 | CD30: 2 | CE30: 2 | CF30: 2 | CG30: 2 | CH30: 2 | CI30: 2 | CJ30: 2 | CK30: 2 | CL30: 2 | CM30: 2 | CN30: 2 | CQ30: 500 | CR30: 17 | CS30: 10 | CT30: 6
A31: PVC | B31: Uup | C31: Pup | D31: Pup (z daylight-1side) | E31: eup | F31: Aup | J31: free hight | K31: inclination | L31: roofopening C-B | M31: isolatiehoogte | T31: 0 | U31: 0 | X31: 60 | Y31: 200 | AF31: selecteer hoger | AH31: 60 | AI31: 90 | AJ31: 80 | AK31: 130 | AN31: 60 | AO31: 200 | AR31: 120 | AS31: 120 | AT31: 60 90 | AU31: 60 | AV31: 90 | AW31: 85 | AX31: 115 | AY31: 2 | AZ31: 2 | BA31: 2 | BB31: 2 | BC31: 80 220 | BD31: 100 | BE31: 240 | BF31: 2 | BG31: 2 | BH31: 2 | BI31: 2 | BJ31: 2 | BN31: 40 100 | BO31: 40 | BP31: 100 | BQ31: 60 | BR31: 120 | BS31: 2 | BT31: 2 | BU31: 2 | BV31: 2 | BW31: 70 | BX31: 130 | CC31: 2 | CD31: 2 | CE31: 2 | CF31: 2 | CG31: 2 | CH31: 2 | CI31: 2 | CJ31: 2 | CK31: 2 | CL31: 2 | CM31: 2 | CN31: 2 | CQ31: 600 | CR31: 17 | CS31: 12 | CT31: 8 | CZ31: =(DA31&DB31)*1 -> 4070 | DA31: 40 | DB31: 70 | DC31: pvc EP 25
A32: 20/00 EP | B32: =0.61 -> 0.61 | C32: =IF(vorm<3,((($K$19+$L$19)*2/1000)+8*$D32),($L$19+2*$D32)/1000*3.14) -> 4.47248 | D32: 0.05906 | E32: 0.1857 | F32: =C32*E32*(J32/E32) -> 0.606915536 | J32: =E32-($K$24/100) -> 0.1357 | K32: 90 | L32: 0 | M32: 5 | T32: 0 | U32: 0 | X32: 70 | Y32: 100 | AH32: 60 | AI32: 120 | AJ32: 80 | AK32: 180 | AN32: 70 | AO32: 70 | AR32: 130 | AS32: 130 | AT32: 60 120 | AU32: 60 | AV32: 120 | AW32: 85 | AX32: 145 | AY32: 2 | AZ32: 2 | BA32: 2 | BB32: 2 | BC32: 80 230 | BD32: 100 | BE32: 250 | BF32: 2 | BG32: 2 | BH32: 2 | BI32: 2 | BJ32: 2 | BN32: 40 130 | BO32: 40 | BP32: 130 | BQ32: 60 | BR32: 150 | BS32: 2 | BT32: 2 | BU32: 2 | BV32: 2 | BW32: 70 | BX32: 160 | CC32: 2 | CD32: 2 | CE32: 2 | CF32: 2 | CG32: 2 | CH32: 2 | CI32: 2 | CJ32: 2 | CK32: 2 | CL32: 2 | CM32: 2 | CN32: 2 | CQ32: 700 | CR32: 18 | CS32: 15 | CT32: 12 | CZ32: =(DA32&DB32)*1 -> 40100 | DA32: 40 | DB32: 100 | DC32: pvc EP 25
A33: 16/20 EP | B33: =0.89 -> 0.89 | C33: =IF(vorm<3,((($K$19+$L$19)*2/1000)+8*$D33),($L$19+2*$D33)/1000*3.14) -> 4.7796 | D33: 0.09745 | E33: 0.143 | F33: =C33*E33*(J33/E33) -> 0.4445028 | J33: =E33-($K$24/100) -> 0.093 | K33: 45 | L33: 20 | M33: 0 | T33: 0 | U33: 0 | X33: 70 | Y33: 130 | AH33: 60 | AI33: 130 | AJ33: =IF(OR(kleur=3,kleur=4),"*",85) -> 85 | AK33: =IF(OR(kleur=3,kleur=4),"*",85) -> 85 | AN33: 70 | AO33: 100 | AR33: 140 | AS33: 140 | AT33: 60 130 | AU33: 60 | AV33: 130 | AW33: 85 | AX33: 155 | AY33: 2 | AZ33: 2 | BA33: 2 | BB33: 2 | BC33: 80 280 | BD33: 100 | BE33: 300 | BF33: 2 | BG33: 2 | BH33: 2 | BI33: 2 | BJ33: 2 | BN33: =BO33&" "&BP33 -> 40 140 | BO33: 40 | BP33: 140 | BQ33: =BO33+20 -> 60 | BR33: =BP33+20 -> 160 | BS33: 2 | BT33: 2 | BU33: 2 | BV33: 2 | BW33: 70 | BX33: 170 | CC33: 2 | CD33: 2 | CE33: 2 | CF33: 2 | CG33: 2 | CH33: 2 | CI33: 2 | CJ33: 2 | CK33: 2 | CL33: 2 | CM33: 2 | CN33: 2 | CQ33: 750 | CR33: 19 | CS33: 14 | CT33: 10 | CZ33: 40130 | DA33: 40 | DB33: 130 | DC33: pvc EP 25
A34: 16/00 | B34: =1 -> 1 | C34: =IF(vorm<3,((($K$19+$L$19)*2/1000)+8*$D34),($L$19+2*$D34)/1000*3.14) -> 4.34968 | D34: 0.04371 | E34: 0.138 | F34: 0.38277184 | J34: =E34-($K$24/100) -> 0.088 | K34: 90 | L34: 0 | M34: 0 | T34: 0 | U34: 0 | X34: 70 | Y34: 150 | AH34: 60 | AI34: 150 | AJ34: =IF(OR(kleur=3,kleur=4),"*","Ø") -> Ø | AK34: =IF(OR(kleur=3,kleur=4),"*",90) -> 90 | AN34: 70 | AO34: 130 | AR34: 150 | AS34: 150 | AT34: 70 100 | AU34: 70 | AV34: 100 | AW34: 95 | AX34: 125 | AY34: 2 | AZ34: 2 | BA34: 2 | BB34: 2 | BC34: 100 130 | BD34: 120 | BE34: 150 | BF34: 2 | BG34: 2 | BH34: 2 | BI34: 2 | BJ34: 2 | BK34: 2 | BL34: 2 | BN34: =BO34&" "&BP34 -> 40 160 | BO34: 40 | BP34: 160 | BQ34: =BO34+20 -> 60 | BR34: =BP34+20 -> 180 | BS34: 2 | BT34: 2 | BU34: 2 | BV34: 2 | BW34: 70 | BX34: 190 | CC34: 2 | CD34: 2 | CE34: 2 | CF34: 2 | CG34: 2 | CH34: 2 | CI34: 2 | CJ34: 2 | CK34: 2 | CL34: 2 | CM34: 2 | CN34: 2 | CQ34: 800 | CR34: 17.5 | CS34: 14 | CT34: 10 | CZ34: 40160 | DA34: 40 | DB34: 160 | DC34: pvc EP 25
A35: 30/20 | B35: =1 -> 1 | C35: =IF(vorm<3,((($K$19+$L$19)*2/1000)+8*$D35),($L$19+2*$D35)/1000*3.14) -> 4.58872 | D35: 0.07359 | E35: 0.28 | F35: 1.0554056 | J35: =E35-($K$24/100) -> 0.23 | K35: 58 | L35: 20 | M35: 15 | Q35: selecteer hoger | R35: selecteer hoger | T35: selecteer hoger | V35: =taal!$A$62 -> selecteer hoger | X35: 70 | Y35: 160 | Z35: =taal!$A$62 -> selecteer hoger | AB35: =taal!$A$62 -> selecteer hoger | AD35: =taal!$A$62 -> selecteer hoger | AF35: =taal!$A$62 -> selecteer hoger | AH35: 60 | AI35: 180 | AJ35: 90 | AK35: 90 | AL35: =taal!$A$62 -> selecteer hoger | AN35: 70 | AO35: 150 | AP35: =taal!$A$62 -> selecteer hoger | AR35: =taal!$A$62 -> selecteer hoger | AT35: 70 130 | AU35: 70 | AV35: 130 | AW35: 95 | AX35: 155 | AY35: 2 | AZ35: 2 | BA35: 2 | BB35: 2 | BC35: 100 150 | BD35: 120 | BE35: 170 | BL35: 2 | BN35: 40 190 | BO35: 40 | BP35: 190 | BQ35: 60 | BR35: 210 | BS35: 2 | BT35: 2 | BU35: 2 | BV35: 2 | BW35: 70 | BX35: 220 | CC35: 2 | CD35: 2 | CE35: 2 | CF35: 2 | CG35: 2 | CH35: 2 | CI35: 2 | CJ35: 2 | CK35: 2 | CL35: 2 | CM35: 2 | CN35: 2 | CQ35: 900 | CR35: 19.5 | CS35: 14 | CT35: 10 | CZ35: 40190 | DA35: 40 | DB35: 190 | DC35: pvc EP 25
A36: 35/30 | B36: =0.86 -> 0.86 | C36: =IF(vorm<3,((($K$19+$L$19)*2/1000)+8*$D36),($L$19+2*$D36)/1000*3.14) -> 5.2736 | D36: 0.1592 | E36: 0.339 | F36: 1.5240704 | J36: =E36-($K$24/100) -> 0.289 | K36: 90 | L36: 30 | M36: 20 | R36: =IF(glas=6,AR36,IF(glas=5,AP36,IF(glas>2,AN36,IF(glas>1,AL36,IF(T36=0,"",T36))))) ->  | S36: =IF(glas=6,AS36,IF(glas=5,AQ36,IF(glas>2,AO36,IF(glas>1,AM36,IF(U36=0,"",U36))))) ->  | T36: =IF(OR(type=1,type=2),AF36,IF(type=3,AJ36,IF(type=4,AH36,IF(AND(bol=1,vorm=3)=TRUE,Z36,IF(AND(bol=1,vorm=1)=TRUE,V36,IF(AND(bol=1,vorm=2)=TRUE,X36,IF(AND(bol=2,vorm=1)=TRUE,AB36,IF(AND(bol=2,vorm=2)=TRUE,AD36,"")))))))) -> 0 | U36: =IF(OR(type=1,type=2),AG36,IF(type=3,AK36,IF(type=4,AI36,IF(AND(bol=1,vorm=3)=TRUE,AA36,IF(AND(bol=1,vorm=1)=TRUE,W36,IF(AND(bol=1,vorm=2)=TRUE,Y36,IF(AND(bol=2,vorm=1)=TRUE,AC36,IF(AND(bol=2,vorm=2)=TRUE,AE36,"")))))))) -> 0 | X36: 70 | Y36: 200 | AH36: 60 | AI36: 200 | AJ36: 90 | AK36: 120 | AN36: 70 | AO36: 160 | AT36: 75 125 | AU36: 75 | AV36: 125 | AW36: 100 | AX36: 150 | AY36: 2 | AZ36: 2 | BA36: 2 | BB36: 2 | BC36: 100 160 | BD36: 120 | BE36: 180 | BF36: 2 | BG36: 2 | BH36: 2 | BI36: 2 | BJ36: 2 | BL36: 2 | BN36: 40 220 | BO36: 40 | BP36: 220 | BQ36: 60 | BR36: 240 | BS36: 2 | BT36: 2 | BU36: 2 | BV36: 2 | BW36: 70 | BX36: 250 | CC36: 2 | CD36: 2 | CE36: 2 | CF36: 2 | CG36: 2 | CH36: 2 | CI36: 2 | CJ36: 2 | CK36: 2 | CL36: 2 | CM36: 2 | CN36: 2 | CQ36: 1000 | CR36: 18 | CS36: 14 | CT36: 10 | CZ36: 40220 | DA36: 40 | DB36: 220 | DC36: pvc EP 25
G37: Rond Aup | H37: Rond Pup | T37: 0 | U37: 0 | X37: 70 | Y37: 220 | AH37: Ø | AI37: 70 | AJ37: 90 | AK37: 150 | AN37: 70 | AO37: 200 | AT37: 75 175 | AU37: 75 | AV37: 175 | AW37: 100 | AX37: 200 | AY37: 2 | AZ37: 2 | BA37: 2 | BB37: 2 | BC37: 100 190 | BD37: 120 | BE37: 210 | BG37: 2 | BH37: 2 | BI37: 2 | BJ37: 0 | BN37: 40 280 | BO37: 40 | BP37: 280 | BQ37: 60 | BR37: 300 | BS37: 2 | BT37: 2 | BU37: 2 | BV37: 2 | BW37: =BO37+30 -> 70 | BX37: =BP37+30 -> 310 | CC37: 2 | CD37: 2 | CE37: 2 | CF37: 2 | CG37: 2 | CH37: 2 | CI37: 2 | CJ37: 2 | CK37: 2 | CL37: 2 | CM37: 2 | CN37: 2 | CQ37: 1050 | CR37: 18 | CS37: 14 | CT37: 10 | CZ37: 40280 | DA37: 40 | DB37: 280 | DC37: pvc EP 25
A38: H15/25 | B38: =1.32 -> 1.32 | C38: =IF(vorm<3,((($K$19+$L$19)*2/1000)+8*$D38),($L$19+2*$D38)/1000*3.14) -> 4.5452 | D38: 0.06815 | E38: 0.1387 | F38: =C38*E38*(J38/E38) -> 0.40315924 | G38: =H38*E38*(J38/E38) -> 0.3164800034 | H38: =(($L$19/1000)+2*$D38)*3.14 -> 3.567982 | J38: =E38-($K$24/100) -> 0.0887 | K38: 41 | L38: 25 | M38: 0 | T38: 0 | U38: 0 | X38: 75 | Y38: 105 | AH38: 70 | AI38: 70 | AJ38: =IF(OR(kleur=3,kleur=4),"*","Ø") -> Ø | AK38: =IF(OR(kleur=3,kleur=4),"*",100) -> 100 | AN38: 70 | AO38: 220 | AT38: 75 225 | AU38: 75 | AV38: 225 | AW38: 100 | AX38: 250 | AY38: 2 | AZ38: 2 | BA38: 2 | BB38: 2 | BC38: 100 200 | BD38: 120 | BE38: 220 | BF38: 2 | BG38: 2 | BH38: 2 | BI38: 2 | BJ38: 2 | BK38: 2 | BL38: 2 | BN38: 45 75 | BO38: 45 | BP38: 75 | BQ38: 65 | BR38: 95 | BS38: 2 | BT38: 2 | BU38: 2 | BV38: 2 | BW38: 75 | BX38: 105 | CG38: 2 | CH38: 2 | CI38: 2 | CJ38: 2 | CK38: 2 | CL38: 2 | CM38: 2 | CN38: 2 | CQ38: 1100 | CR38: 18 | CS38: 14 | CT38: 10 | CZ38: 4575 | DA38: 45 | DB38: 75 | DC38: pvc EP 25
A39: D15/20 | B39: =0.8 -> 0.8 | C39: 4.4972 | D39: 0.06215 | E39: 0.141 | F39: =C39*E39*(J39/E39) -> 0.4092452 | G39: =H39*E39*(J39/E39) -> 0.321257482 | H39: 3.530302 | J39: 0.091 | K39: 48 | L39: 20 | M39: 0 | T39: 0 | U39: 0 | X39: 75 | Y39: 125 | AH39: 70 | AI39: 100 | AJ39: 100 | AK39: 100 | AN39: 75 | AO39: 75 | AT39: 80 130 | AU39: 80 | AV39: 130 | AW39: 105 | AX39: 155 | AY39: 2 | AZ39: 2 | BA39: 2 | BB39: 2 | BC39: 100 220 | BD39: 120 | BE39: 240 | BF39: 2 | BG39: 2 | BH39: 2 | BI39: 2 | BJ39: 2 | BK39: 2 | BN39: 45 105 | BO39: 45 | BP39: 105 | BQ39: 65 | BR39: 125 | BS39: 2 | BT39: 2 | BU39: 2 | BV39: 2 | BW39: 75 | BX39: 135 | CG39: 2 | CH39: 2 | CI39: 2 | CJ39: 2 | CK39: 2 | CL39: 2 | CM39: 2 | CN39: 2 | CQ39: 1200 | CR39: 18 | CS39: 16 | CT39: 12 | CZ39: 45105 | DA39: 45 | DB39: 105 | DC39: pvc EP 25
A40: D30/20 | B40: =0.8 -> 0.8 | C40: 4.56144 | D40: 0.07018 | E40: 0.291 | F40: 1.09930704 | G40: 0.8629560264 | H40: 3.5807304 | J40: 0.241 | K40: 70 | L40: 20 | M40: 15 | T40: 0 | U40: 0 | X40: 75 | Y40: 165 | AH40: 70 | AI40: 130 | AJ40: 100 | AK40: 130 | AN40: 75 | AO40: 105 | AT40: 80 180 | AU40: 80 | AV40: 180 | AW40: 105 | AX40: 205 | AY40: 2 | AZ40: 2 | BA40: 2 | BB40: 2 | BC40: 100 230 | BD40: 120 | BE40: 250 | BF40: 2 | BG40: 2 | BH40: 2 | BI40: 2 | BJ40: 2 | BN40: 50 70 | BO40: 50 | BP40: 70 | BQ40: 70 | BR40: 90 | BS40: 2 | BT40: 2 | BU40: 2 | BV40: 2 | BW40: 80 | BX40: 100 | BY40: 2 | BZ40: 2 | CA40: 2 | CB40: 2 | CC40: 2 | CD40: 2 | CE40: 2 | CF40: 2 | CG40: 2 | CH40: 2 | CI40: 2 | CJ40: 2 | CK40: 2 | CL40: 2 | CM40: 2 | CN40: 2 | CQ40: 1300 | CR40: 27.5 | CS40: 16 | CT40: 12 | CZ40: 5070 | DA40: 50 | DB40: 70 | DC40: pvc EP 25
A41: D30/20 EP60 | B41: =0.35 -> 0.35 | C41: 4.8272 | D41: 0.1034 | E41: 0.2907 | F41: 1.16190704 | G41: 0.9120970264 | H41: 3.789352 | J41: 0.2407 | K41: 69 | L41: 20 | M41: 15 | T41: 0 | U41: 0 | X41: 75 | Y41: 175 | AH41: 70 | AI41: 150 | AJ41: 100 | AK41: 150 | AN41: 75 | AO41: 125 | AT41: 80 220 | AU41: 80 | AV41: 220 | AW41: 105 | AX41: 245 | AY41: 2 | AZ41: 2 | BA41: 2 | BB41: 2 | BC41: 100 250 | BD41: 120 | BE41: 270 | BF41: 2 | BG41: 2 | BH41: 2 | BI41: 2 | BJ41: 2 | BK41: 2 | BN41: 50 80 | BO41: 50 | BP41: 80 | BQ41: 70 | BR41: 100 | BS41: 2 | BT41: 2 | BU41: 2 | BV41: 2 | BW41: 80 | BX41: 110 | BY41: 2 | BZ41: 2 | CA41: 2 | CB41: 2 | CC41: 2 | CD41: 2 | CE41: 2 | CF41: 2 | CG41: 2 | CH41: 2 | CI41: 2 | CJ41: 2 | CK41: 2 | CL41: 2 | CM41: 2 | CN41: 2 | CQ41: 1450 | CR41: 20 | CS41: 18 | CT41: 14 | CZ41: 5080 | DA41: 50 | DB41: 80 | DC41: pvc EP 25
A42: D30/20 EP100 | B42: =0.23 -> 0.23 | C42: 5.1096 | D42: 0.1387 | E42: 0.2911 | F42: 1.23192456 | G42: 0.9670607796 | H42: 4.011036 | J42: 0.2411 | K42: 69 | L42: 20 | M42: 15 | T42: 0 | U42: 0 | X42: 75 | Y42: 225 | AH42: 70 | AI42: 160 | AJ42: 100 | AK42: 160 | AN42: 75 | AO42: 165 | AT42: 80 230 | AU42: 80 | AV42: 230 | AW42: 105 | AX42: 255 | AY42: 2 | AZ42: 2 | BA42: 2 | BB42: 2 | BC42: 120 210 | BD42: 140 | BE42: 230 | BF42: 2 | BG42: 0 | BJ42: 0 | BN42: 50 100 | BO42: 50 | BP42: 100 | BQ42: 70 | BR42: 120 | BS42: 2 | BT42: 2 | BU42: 2 | BV42: 2 | BW42: 80 | BX42: 130 | BY42: 2 | BZ42: 2 | CA42: 2 | CB42: 2 | CC42: 2 | CD42: 2 | CE42: 2 | CF42: 2 | CG42: 2 | CH42: 2 | CI42: 2 | CJ42: 2 | CK42: 2 | CL42: 2 | CM42: 2 | CN42: 2 | CQ42: 1600 | CR42: 21 | CS42: 20 | CT42: 16 | CZ42: 50100 | DA42: 50 | DB42: 100 | DC42: pvc EP 25
A43: D50/20 | B43: =0.8 -> 0.8 | C43: 4.58784 | D43: 0.07348 | E43: 0.491 | F43: 2.02323744 | G43: 1.58824139 | H43: 3.6014544 | J43: 0.441 | K43: 78 | L43: 20 | M43: 35 | T43: 0 | U43: 0 | X43: 80 | Y43: 110 | AH43: 70 | AI43: 200 | AJ43: =IF(OR(kleur=3,kleur=4),"*",100) -> 100 | AK43: =IF(OR(kleur=3,kleur=4),"*",180) -> 180 | AN43: 75 | AO43: 175 | AT43: 80 280 | AU43: 80 | AV43: 280 | AW43: 105 | AX43: 305 | AY43: 2 | AZ43: 2 | BA43: 2 | BB43: 2 | BC43: 130 160 | BD43: 150 | BE43: 180 | BF43: 2 | BG43: 2 | BH43: 2 | BI43: 2 | BJ43: 2 | BL43: 2 | BN43: 50 110 | BO43: 50 | BP43: 110 | BQ43: 70 | BR43: 130 | BS43: 2 | BT43: 2 | BU43: 2 | BV43: 2 | BW43: 80 | BX43: 140 | BY43: 2 | BZ43: 2 | CA43: 2 | CB43: 2 | CC43: 2 | CD43: 2 | CE43: 2 | CF43: 2 | CG43: 2 | CH43: 2 | CI43: 2 | CJ43: 2 | CK43: 2 | CL43: 2 | CM43: 2 | CN43: 2 | CZ43: 50110 | DA43: 50 | DB43: 110 | DC43: pvc EP 25
A44: D30/00 | B44: =0.8 -> 0.8 | C44: 4.208 | D44: 0.026 | E44: 0.2925 | F44: 1.02044 | G44: 0.8010454 | H44: 3.30328 | J44: 0.2425 | K44: 90 | L44: 0 | M44: 15 | T44: 0 | U44: 0 | X44: 80 | Y44: 130 | AH44: 70 | AI44: 220 | AJ44: 100 | AK44: 200 | AN44: 75 | AO44: 225 | AT44: 90 120 | AU44: 90 | AV44: 120 | AW44: 115 | AX44: 145 | AY44: 2 | AZ44: 2 | BA44: 2 | BB44: 2 | BC44: 130 190 | BD44: 150 | BE44: 210 | BF44: 2 | BG44: 2 | BH44: 2 | BI44: 2 | BJ44: 2 | BL44: 2 | BN44: 50 140 | BO44: 50 | BP44: 140 | BQ44: 70 | BR44: 160 | BS44: 2 | BT44: 2 | BU44: 2 | BV44: 2 | BW44: 80 | BX44: 170 | BY44: 2 | BZ44: 2 | CA44: 2 | CB44: 2 | CC44: 2 | CD44: 2 | CE44: 2 | CF44: 2 | CG44: 2 | CH44: 2 | CI44: 2 | CJ44: 2 | CK44: 2 | CL44: 2 | CM44: 2 | CN44: 2 | CP44: Round | CQ44: 400 | CR44: 13 | CS44: 9 | CT44: 5 | CU44: =VLOOKUP((L19),CQ44:CT58,2) -> 17.5 | CV44: =VLOOKUP((L19),CQ44:CT58,3) -> 14 | CW44: =VLOOKUP((L19),CQ44:CT58,4) -> 10 | CZ44: 50140 | DA44: 50 | DB44: 140 | DC44: pvc EP 25
A45: D50/00 | B45: =0.8 -> 0.8 | C45: 4.208 | D45: 0.026 | E45: 0.4925 | F45: 1.86204 | G45: 1.4617014 | H45: 3.30328 | J45: 0.4425 | K45: 90 | L45: 0 | M45: 35 | Q45: selecteer hoger | R45: selecteer hoger | T45: selecteer hoger | V45: =taal!$A$62 -> selecteer hoger | X45: 80 | Y45: 140 | Z45: =taal!$A$62 -> selecteer hoger | AB45: =taal!$A$62 -> selecteer hoger | AD45: =taal!$A$62 -> selecteer hoger | AF45: =taal!$A$62 -> selecteer hoger | AH45: 75 | AI45: 75 | AJ45: =IF(OR(kleur=3,kleur=4),"*",100) -> 100 | AK45: =IF(OR(kleur=3,kleur=4),"*",220) -> 220 | AL45: =taal!$A$62 -> selecteer hoger | AN45: 80 | AO45: 80 | AP45: =taal!$A$62 -> selecteer hoger | AR45: =taal!$A$62 -> selecteer hoger | AT45: 90 150 | AU45: 90 | AV45: 150 | AW45: 115 | AX45: 175 | AY45: 2 | AZ45: 2 | BA45: 2 | BB45: 2 | BC45: 130 220 | BD45: 150 | BE45: 240 | BF45: 2 | BG45: 2 | BH45: 2 | BI45: 2 | BJ45: 2 | BK45: 2 | BN45: 50 170 | BO45: 50 | BP45: 170 | BQ45: 70 | BR45: 190 | BS45: 2 | BT45: 2 | BU45: 2 | BV45: 2 | BW45: 80 | BX45: 200 | BY45: 2 | BZ45: 2 | CA45: 2 | CB45: 2 | CC45: 2 | CD45: 2 | CE45: 2 | CF45: 2 | CG45: 2 | CH45: 2 | CI45: 2 | CJ45: 2 | CK45: 2 | CL45: 2 | CM45: 2 | CN45: 2 | CQ45: 500 | CR45: 13.5 | CS45: 10 | CT45: 6 | CZ45: 50170 | DA45: 50 | DB45: 170 | DC45: pvc EP 25
T46: 0 | U46: 0 | X46: 80 | Y46: 160 | AH46: 75 | AI46: 105 | AJ46: 105 | AK46: 105 | AN46: 80 | AO46: 110 | AT46: 90 180 | AU46: 90 | AV46: 180 | AW46: 115 | AX46: 205 | AY46: 2 | AZ46: 2 | BA46: 2 | BB46: 2 | BC46: 130 230 | BD46: 150 | BE46: 250 | BF46: 2 | BG46: 2 | BH46: 2 | BI46: 2 | BJ46: 2 | BN46: 50 200 | BO46: 50 | BP46: 200 | BQ46: 70 | BR46: 220 | BS46: 2 | BT46: 2 | BU46: 2 | BV46: 2 | BW46: 80 | BX46: 230 | BY46: 2 | BZ46: 2 | CA46: 2 | CB46: 2 | CC46: 2 | CD46: 2 | CE46: 2 | CF46: 2 | CG46: 2 | CH46: 2 | CI46: 2 | CJ46: 2 | CK46: 2 | CL46: 2 | CM46: 2 | CN46: 2 | CQ46: 600 | CR46: 14.5 | CS46: 12 | CT46: 8 | CZ46: 50200 | DA46: 50 | DB46: 200 | DC46: pvc EP 25
A47: 15 | B47: =0.84 -> 0.84 | C47: =IF(vorm<3,((($K$19+$L$19)*2/1000)+8*$D47),($L$19+2*$D47)/1000*3.14) -> 4.332 | D47: 0.0415 | E47: =$E$50-(($A$50-$A47)/100) -> 0.147 | F47: =C47*E47*(J47/E47) -> 0.420204 | G47: =H47*E47*(J47/E47) -> 0.32986014 | H47: =(($L$19/1000)+2*$D47)*3.14 -> 3.40062 | J47: =E47-($K$24/100) -> 0.097 | K47: 90 | L47: 0 | M47: 0 | T47: 0 | U47: 0 | X47: 80 | Y47: 170 | AH47: 75 | AI47: 125 | AJ47: =IF(OR(kleur=3,kleur=4),"*","Ø") -> Ø | AK47: =IF(OR(kleur=3,kleur=4),"*",110) -> 110 | AN47: 80 | AO47: 130 | AT47: 100 130 | AU47: 100 | AV47: 130 | AW47: 125 | AX47: 155 | AY47: 2 | AZ47: 2 | BA47: 2 | BB47: 2 | BC47: 130 250 | BD47: 150 | BE47: 270 | BF47: 2 | BG47: 2 | BH47: 2 | BI47: 2 | BN47: 50 230 | BO47: 50 | BP47: 230 | BQ47: 70 | BR47: 250 | BS47: 2 | BT47: 2 | BU47: 2 | BV47: 2 | BW47: 80 | BX47: 260 | BY47: 2 | BZ47: 2 | CA47: 2 | CB47: 2 | CC47: 2 | CD47: 2 | CE47: 2 | CF47: 2 | CG47: 2 | CH47: 2 | CI47: 2 | CJ47: 2 | CK47: 2 | CL47: 2 | CM47: 2 | CN47: 2 | CQ47: 700 | CR47: 16.5 | CS47: 14 | CT47: 10 | CZ47: 50230 | DA47: 50 | DB47: 230 | DC47: pvc EP 25
A48: 20 | B48: 0.84 | C48: 4.332 | D48: 0.0415 | E48: =$E$50-(($A$50-$A48)/100) -> 0.197 | F48: 0.636804 | G48: 0.49989114 | H48: 3.40062 | J48: 0.147 | K48: 90 | L48: 0 | M48: 5 | T48: 0 | U48: 0 | X48: 80 | Y48: 180 | AH48: 75 | AI48: 165 | AJ48: =IF(OR(kleur=3,kleur=4),"*",110) -> 110 | AK48: =IF(OR(kleur=3,kleur=4),"*",110) -> 110 | AN48: 80 | AO48: 140 | AT48: 100 150 | AU48: 100 | AV48: 150 | AW48: 125 | AX48: 175 | AY48: 2 | AZ48: 2 | BA48: 2 | BB48: 2 | BC48: 130 280 | BD48: 150 | BE48: 300 | BF48: 2 | BG48: 2 | BH48: 2 | BI48: 2 | BJ48: 0 | BK48: 2 | BL48: 2 | BN48: 60 80 | BO48: 60 | BP48: 80 | BQ48: 80 | BR48: 100 | BS48: 2 | BT48: 2 | BU48: 2 | BV48: 2 | BW48: 90 | BX48: 110 | BY48: 2 | BZ48: 2 | CA48: 2 | CB48: 2 | CC48: 2 | CD48: 2 | CE48: 2 | CF48: 2 | CG48: 2 | CH48: 2 | CI48: 2 | CJ48: 2 | CK48: 2 | CL48: 2 | CM48: 2 | CN48: 2 | CQ48: 800 | CR48: 16.5 | CS48: 14 | CT48: 10 | CZ48: 6080 | DA48: 60 | DB48: 80 | DC48: pvc EP 25
A49: 25 | B49: 0.84 | C49: 4.332 | D49: 0.0415 | E49: =$E$50-(($A$50-$A49)/100) -> 0.247 | F49: 0.853404 | G49: 0.66992214 | H49: 3.40062 | J49: 0.197 | K49: 90 | L49: 0 | M49: 10 | T49: 0 | U49: 0 | X49: 80 | Y49: 200 | AH49: 75 | AI49: 175 | AJ49: =IF(OR(kleur=3,kleur=4),"*",110) -> 110 | AK49: =IF(OR(kleur=3,kleur=4),"*",170) -> 170 | AN49: 80 | AO49: 160 | AT49: 100 160 | AU49: 100 | AV49: 160 | AW49: 125 | AX49: 185 | AY49: 2 | AZ49: 2 | BA49: 2 | BB49: 2 | BC49: 160 220 | BD49: 180 | BE49: 240 | BF49: 2 | BG49: 2 | BH49: 2 | BI49: 2 | BJ49: 2 | BN49: 60 90 | BO49: 60 | BP49: 90 | BQ49: 80 | BR49: 110 | BS49: 2 | BT49: 2 | BU49: 2 | BV49: 2 | BW49: 90 | BX49: 120 | BY49: 2 | BZ49: 2 | CA49: 2 | CB49: 2 | CC49: 2 | CD49: 2 | CE49: 2 | CF49: 2 | CG49: 2 | CH49: 2 | CI49: 2 | CJ49: 2 | CK49: 2 | CL49: 2 | CM49: 2 | CN49: 2 | CQ49: 900 | CR49: 16.5 | CS49: 14 | CT49: 10 | CZ49: 6090 | DA49: 60 | DB49: 90 | DC49: pvc EP 25
A50: 30 | B50: 0.84 | C50: 4.332 | D50: 0.0415 | E50: 0.297 | F50: 1.070004 | G50: 0.83995314 | H50: 3.40062 | J50: 0.247 | K50: 90 | L50: 0 | M50: 15 | T50: 0 | U50: 0 | X50: 80 | Y50: 220 | AH50: 75 | AI50: 225 | AJ50: =IF(OR(kleur=3,kleur=4),"*","Ø") -> Ø | AK50: =IF(OR(kleur=3,kleur=4),"*",120) -> 120 | AN50: 80 | AO50: 170 | AT50: 100 190 | AU50: 100 | AV50: 190 | AW50: 125 | AX50: 215 | AY50: 2 | AZ50: 2 | BA50: 2 | BB50: 2 | BC50: 160 230 | BD50: 180 | BE50: 250 | BF50: 2 | BG50: 2 | BH50: 2 | BI50: 2 | BJ50: 0 | BN50: 60 120 | BO50: 60 | BP50: 120 | BQ50: 80 | BR50: 140 | BS50: 2 | BT50: 2 | BU50: 2 | BV50: 2 | BW50: 90 | BX50: 150 | BY50: 2 | BZ50: 2 | CA50: 2 | CB50: 2 | CC50: 2 | CD50: 2 | CE50: 2 | CF50: 2 | CG50: 2 | CH50: 2 | CI50: 2 | CJ50: 2 | CK50: 2 | CL50: 2 | CM50: 2 | CN50: 2 | CQ50: 1000 | CR50: 17.5 | CS50: 14 | CT50: 10 | CZ50: 60120 | DA50: 60 | DB50: 120 | DC50: pvc EP 25
A51: 40 | B51: 0.84 | C51: 4.332 | D51: 0.0415 | E51: =$E$50+(($A51-$A$50)/100) -> 0.397 | F51: 1.503204 | G51: 1.18001514 | H51: 3.40062 | J51: 0.347 | K51: 90 | L51: 0 | M51: 25 | T51: 0 | U51: 0 | X51: 80 | Y51: 230 | AH51: Ø | AI51: 80 | AJ51: =IF(OR(kleur=3,kleur=4),"*",120) -> 120 | AK51: =IF(OR(kleur=3,kleur=4),"*",120) -> 120 | AN51: 80 | AO51: 180 | AT51: 100 200 | AU51: 100 | AV51: 200 | AW51: 125 | AX51: 225 | AY51: 2 | AZ51: 2 | BA51: 2 | BB51: 2 | BC51: 160 250 | BD51: 180 | BE51: 270 | BF51: 2 | BG51: 2 | BH51: 2 | BI51: 2 | BJ51: 2 | BK51: 2 | BN51: 60 130 | BO51: 60 | BP51: 130 | BQ51: 80 | BR51: 150 | BS51: 2 | BT51: 2 | BU51: 2 | BV51: 2 | BW51: 90 | BX51: 160 | BY51: 2 | BZ51: 2 | CA51: 2 | CB51: 2 | CC51: 2 | CD51: 2 | CE51: 2 | CF51: 2 | CG51: 2 | CH51: 2 | CI51: 2 | CJ51: 2 | CK51: 2 | CL51: 2 | CM51: 2 | CN51: 2 | CQ51: 1100 | CR51: 17.5 | CS51: 14 | CT51: 10 | CZ51: 60130 | DA51: 60 | DB51: 130 | DC51: pvc EP 25
A52: 50 | B52: 0.84 | C52: 4.332 | D52: 0.0415 | E52: 0.497 | F52: 1.936404 | G52: 1.52007714 | H52: 3.40062 | J52: 0.447 | K52: 90 | L52: 0 | M52: 35 | T52: 0 | U52: 0 | X52: 80 | Y52: 250 | AH52: 80 | AI52: 80 | AJ52: =IF(OR(kleur=3,kleur=4),"*",120) -> 120 | AK52: =IF(OR(kleur=3,kleur=4),"*",240) -> 240 | AN52: 80 | AO52: 200 | AT52: 100 220 | AU52: 100 | AV52: 220 | AW52: 125 | AX52: 245 | AY52: 2 | AZ52: 2 | BA52: 2 | BB52: 2 | BC52: 160 280 | BD52: 180 | BE52: 300 | BG52: 2 | BH52: 2 | BI52: 2 | BJ52: 2 | BL52: 2 | BN52: 60 150 | BO52: 60 | BP52: 150 | BQ52: 80 | BR52: 170 | BS52: 2 | BT52: 2 | BU52: 2 | BV52: 2 | BW52: 90 | BX52: 180 | BY52: 2 | BZ52: 2 | CA52: 2 | CB52: 2 | CC52: 2 | CD52: 2 | CE52: 2 | CF52: 2 | CG52: 2 | CH52: 2 | CI52: 2 | CJ52: 2 | CK52: 2 | CL52: 2 | CM52: 2 | CN52: 2 | CQ52: 1200 | CR52: 17.5 | CS52: 16 | CT52: 12 | CZ52: 60150 | DA52: 60 | DB52: 150 | DC52: pvc EP 25
A53: 60 | B53: 0.84 | C53: 4.332 | D53: 0.0415 | E53: 0.597 | F53: 2.369604 | G53: 1.86013914 | H53: 3.40062 | J53: 0.547 | K53: 90 | L53: 0 | M53: 45 | T53: 0 | U53: 0 | X53: 80 | Y53: 280 | AH53: 80 | AI53: 110 | AJ53: =IF(OR(kleur=3,kleur=4),"*","Ø") -> Ø | AK53: =IF(OR(kleur=3,kleur=4),"*",130) -> 130 | AN53: 80 | AO53: 220 | AT53: 100 250 | AU53: 100 | AV53: 250 | AW53: 125 | AX53: 275 | AY53: 2 | AZ53: 2 | BA53: 2 | BB53: 2 | BC53: =BD53&" "&BE53-20 -> Ø 40 | BD53: Ø | BE53: 60 | BF53: 2 | BG53: 2 | BJ53: 2 | BK53: 2 | BL53: 2 | BN53: 60 180 | BO53: 60 | BP53: 180 | BQ53: 80 | BR53: 200 | BS53: 2 | BT53: 2 | BU53: 2 | BV53: 2 | BW53: 90 | BX53: 210 | BY53: 2 | BZ53: 2 | CA53: 2 | CB53: 2 | CC53: 2 | CD53: 2 | CE53: 2 | CF53: 2 | CG53: 2 | CH53: 2 | CI53: 2 | CJ53: 2 | CK53: 2 | CL53: 2 | CM53: 2 | CN53: 2 | CQ53: 1300 | CR53: 20.5 | CS53: 16 | CT53: 12 | CZ53: 60180 | DA53: 60 | DB53: 180 | DC53: pvc EP 25
A54: 70 | B54: 0.84 | C54: 4.332 | D54: 0.0415 | E54: 0.697 | F54: 2.802804 | G54: 2.20020114 | H54: 3.40062 | J54: 0.647 | K54: 90 | L54: 0 | M54: 55 | T54: 0 | U54: 0 | X54: 90 | Y54: 120 | AH54: 80 | AI54: 130 | AJ54: =IF(OR(kleur=3,kleur=4),"*",130) -> 130 | AK54: =IF(OR(kleur=3,kleur=4),"*",130) -> 130 | AN54: 80 | AO54: 230 | AT54: 120 150 | AU54: 120 | AV54: 150 | AW54: 145 | AX54: 175 | AY54: 2 | AZ54: 2 | BA54: 2 | BB54: 2 | BC54: Ø 50 | BD54: Ø | BE54: 70 | BF54: 2 | BG54: 2 | BJ54: 2 | BK54: 2 | BL54: 2 | BN54: 60 200 | BO54: 60 | BP54: 200 | BQ54: 80 | BR54: 220 | BS54: 2 | BT54: 2 | BU54: 2 | BV54: 2 | BW54: 90 | BX54: 230 | BY54: 2 | BZ54: 2 | CA54: 2 | CB54: 2 | CC54: 2 | CD54: 2 | CE54: 2 | CF54: 2 | CG54: 2 | CH54: 2 | CI54: 2 | CJ54: 2 | CK54: 2 | CL54: 2 | CM54: 2 | CN54: 2 | CQ54: 1400 | CR54: 20.5 | CS54: 18 | CT54: 14 | CZ54: 60200 | DA54: 60 | DB54: 200 | DC54: pvc EP 25
A55: 80 | B55: 0.84 | C55: 4.332 | D55: 0.0415 | E55: 0.797 | F55: 3.236004 | G55: 2.54026314 | H55: 3.40062 | J55: 0.747 | K55: 90 | L55: 0 | M55: 65 | Q55: selecteer hoger | R55: selecteer hoger | T55: selecteer hoger | V55: =taal!$A$62 -> selecteer hoger | X55: 90 | Y55: 150 | Z55: =taal!$A$62 -> selecteer hoger | AB55: =taal!$A$62 -> selecteer hoger | AD55: =taal!$A$62 -> selecteer hoger | AF55: =taal!$A$62 -> selecteer hoger | AH55: 80 | AI55: 140 | AJ55: =IF(OR(kleur=3,kleur=4),taal!$A$62,130) -> 130 | AK55: =IF(OR(kleur=3,kleur=4),"*",160) -> 160 | AL55: =taal!$A$62 -> selecteer hoger | AN55: 80 | AO55: 250 | AP55: =taal!$A$62 -> selecteer hoger | AR55: =taal!$A$62 -> selecteer hoger | AT55: 120 180 | AU55: 120 | AV55: 180 | AW55: 145 | AX55: 205 | AY55: 2 | AZ55: 2 | BA55: 2 | BB55: 2 | BC55: Ø 60 | BD55: Ø | BE55: 80 | BF55: 2 | BG55: 2 | BJ55: 2 | BK55: 2 | BL55: 2 | BN55: 70 100 | BO55: 70 | BP55: 100 | BQ55: 90 | BR55: 120 | BS55: 2 | BT55: 2 | BU55: 2 | BV55: 2 | BW55: 100 | BX55: 130 | BY55: 2 | BZ55: 2 | CA55: 2 | CB55: 2 | CC55: 2 | CD55: 2 | CE55: 2 | CF55: 2 | CG55: 2 | CH55: 2 | CI55: 2 | CJ55: 2 | CK55: 2 | CL55: 2 | CM55: 2 | CN55: 2 | CQ55: 1600 | CR55: 23.5 | CS55: 20 | CT55: 16 | CZ55: 70100 | DA55: 70 | DB55: 100 | DC55: pvc EP 25
A56: 90 | B56: 0.84 | C56: 4.332 | D56: 0.0415 | E56: 0.897 | F56: 3.669204 | G56: 2.88032514 | H56: 3.40062 | J56: 0.847 | K56: 90 | L56: 0 | M56: 75 | T56: 0 | U56: 0 | X56: 90 | Y56: 180 | AH56: 80 | AI56: * | AJ56: =IF(OR(kleur=3,kleur=4),"*",130) -> 130 | AK56: =IF(OR(kleur=3,kleur=4),"*",220) -> 220 | AN56: 80 | AO56: 280 | AT56: 120 210 | AU56: 120 | AV56: 210 | AW56: 145 | AX56: 235 | AY56: 2 | AZ56: 2 | BA56: 2 | BB56: 2 | BC56: Ø 70 | BD56: Ø | BE56: 90 | BF56: 2 | BG56: 2 | BJ56: 2 | BK56: 2 | BL56: 2 | BN56: 70 130 | BO56: 70 | BP56: 130 | BQ56: 90 | BR56: 150 | BS56: 2 | BT56: 2 | BU56: 2 | BV56: 2 | BW56: 100 | BX56: 160 | BY56: 2 | BZ56: 2 | CA56: 2 | CB56: 2 | CC56: 2 | CD56: 2 | CE56: 2 | CF56: 2 | CG56: 2 | CH56: 2 | CI56: 2 | CJ56: 2 | CK56: 2 | CL56: 2 | CM56: 2 | CN56: 2 | CQ56: 1700 | CR56: 23.5 | CS56: 20 | CT56: 16 | CZ56: 70130 | DA56: 70 | DB56: 130 | DC56: pvc EP 25
A57: 100 | B57: 0.84 | C57: 4.332 | D57: 0.0415 | E57: 0.997 | F57: 4.102404 | G57: 3.22038714 | H57: 3.40062 | J57: 0.947 | K57: 90 | L57: 0 | M57: 85 | T57: 0 | U57: 0 | X57: 90 | Y57: 210 | AH57: 80 | AI57: 170 | AJ57: =IF(OR(kleur=3,kleur=4),"*",130) -> 130 | AK57: =IF(OR(kleur=3,kleur=4),"*",230) -> 230 | AN57: 85 | AO57: 85 | AT57: 130 160 | AU57: 130 | AV57: 160 | AW57: 155 | AX57: 185 | AY57: 2 | AZ57: 2 | BA57: 2 | BB57: 2 | BC57: Ø 80 | BD57: Ø | BE57: 100 | BF57: 2 | BG57: 2 | BJ57: 2 | BK57: 2 | BL57: 2 | BN57: 70 150 | BO57: 70 | BP57: 150 | BQ57: 90 | BR57: 170 | BS57: 2 | BT57: 2 | BU57: 2 | BV57: 2 | BW57: 100 | BX57: 180 | BY57: 2 | BZ57: 2 | CA57: 2 | CB57: 2 | CC57: 2 | CD57: 2 | CE57: 2 | CF57: 2 | CG57: 2 | CH57: 2 | CI57: 2 | CJ57: 2 | CK57: 2 | CL57: 2 | CM57: 2 | CN57: 2 | CQ57: 1800 | CR57: 21.5 | CS57: 20 | CT57: 16 | CZ57: 70150 | DA57: 70 | DB57: 150 | DC57: pvc EP 25
T58: 0 | U58: 0 | X58: 100 | Y58: 130 | AH58: 80 | AI58: 180 | AJ58: =IF(OR(kleur=3,kleur=4),"*",130) -> 130 | AK58: =IF(OR(kleur=3,kleur=4),"*",250) -> 250 | AN58: 90 | AO58: 90 | AT58: 130 190 | AU58: 130 | AV58: 190 | AW58: 155 | AX58: 215 | AY58: 2 | AZ58: 2 | BA58: 2 | BB58: 2 | BC58: Ø 90 | BD58: Ø | BE58: 110 | BF58: 2 | BG58: 2 | BJ58: 2 | BL58: 2 | BN58: 70 160 | BO58: 70 | BP58: 160 | BQ58: 90 | BR58: 180 | BS58: 2 | BT58: 2 | BU58: 2 | BV58: 2 | BW58: 100 | BX58: 190 | BY58: 2 | BZ58: 2 | CA58: 2 | CB58: 2 | CC58: 2 | CD58: 2 | CE58: 2 | CF58: 2 | CG58: 2 | CH58: 2 | CI58: 2 | CJ58: 2 | CK58: 2 | CL58: 2 | CM58: 2 | CN58: 2 | CQ58: 2000 | CR58: 21.5 | CS58: 23 | CT58: 18 | CZ58: 70160 | DA58: 70 | DB58: 160 | DC58: pvc EP 25
A59: 15 | B59: =0.51 -> 0.51 | C59: =IF(vorm<3,((($K$19+$L$19)*2/1000)+8*$D59),($L$19+2*$D59)/1000*3.14) -> 4.412 | D59: 0.0515 | E59: =$E$62-(($A$62-$A59)/100) -> 0.147 | F59: =C59*E59*(J59/E59) -> 0.427964 | G59: =H59*E59*(J59/E59) -> 0.33595174 | H59: =(($L$19/1000)+2*$D59)*3.14 -> 3.46342 | J59: =E59-($K$24/100) -> 0.097 | K59: 90 | L59: 0 | M59: 0 | T59: 0 | U59: 0 | X59: 100 | Y59: 150 | AH59: 80 | AI59: 200 | AJ59: =IF(OR(kleur=3,kleur=4),"*",130) -> 130 | AK59: =IF(OR(kleur=3,kleur=4),"*",280) -> 280 | AN59: 90 | AO59: 120 | AT59: 130 200 | AU59: 130 | AV59: 200 | AW59: 155 | AX59: 225 | AY59: 2 | AZ59: 2 | BA59: 2 | BB59: 2 | BC59: Ø 100 | BD59: Ø | BE59: 120 | BF59: 2 | BG59: 2 | BJ59: 2 | BK59: 2 | BL59: 2 | BN59: 70 200 | BO59: 70 | BP59: 200 | BQ59: 90 | BR59: 220 | BS59: 2 | BT59: 2 | BU59: 2 | BV59: 2 | BW59: 100 | BX59: 230 | BY59: 2 | BZ59: 2 | CA59: 2 | CB59: 2 | CC59: 2 | CD59: 2 | CE59: 2 | CF59: 2 | CG59: 2 | CH59: 2 | CI59: 2 | CJ59: 2 | CK59: 2 | CL59: 2 | CM59: 2 | CN59: 2 | CZ59: 70200 | DA59: 70 | DB59: 200 | DC59: pvc EP 25
A60: 20 | B60: 0.51 | C60: 4.412 | D60: 0.0515 | E60: =$E$62-(($A$62-$A60)/100) -> 0.197 | F60: 0.648564 | G60: 0.50912274 | H60: 3.46342 | J60: 0.147 | K60: 90 | L60: 0 | M60: 5 | T60: 0 | U60: 0 | X60: 100 | Y60: 160 | AH60: 80 | AI60: 220 | AJ60: =IF(OR(kleur=3,kleur=4),"*","Ø") -> Ø | AK60: =IF(OR(kleur=3,kleur=4),"*",140) -> 140 | AN60: 90 | AO60: 150 | AT60: 130 220 | AU60: 130 | AV60: 220 | AW60: 155 | AX60: 245 | AY60: 2 | AZ60: 2 | BA60: 2 | BB60: 2 | BC60: Ø 110 | BD60: Ø | BE60: 130 | BG60: 2 | BJ60: 2 | BL60: 2 | BN60: 70 220 | BO60: 70 | BP60: 220 | BQ60: 90 | BR60: 240 | BS60: 2 | BT60: 2 | BU60: 2 | BV60: 2 | BW60: 100 | BX60: 250 | BY60: 2 | BZ60: 2 | CA60: 2 | CB60: 2 | CC60: 2 | CD60: 2 | CE60: 2 | CF60: 2 | CG60: 2 | CH60: 2 | CI60: 2 | CJ60: 2 | CK60: 2 | CL60: 2 | CM60: 2 | CN60: 2 | CZ60: 70220 | DA60: 70 | DB60: 220 | DC60: pvc EP 25
A61: 25 | B61: 0.51 | C61: 4.412 | D61: 0.0515 | E61: =$E$62-(($A$62-$A61)/100) -> 0.247 | F61: 0.869164 | G61: 0.68229374 | H61: 3.46342 | J61: 0.197 | K61: 90 | L61: 0 | M61: 10 | T61: 0 | U61: 0 | X61: 100 | Y61: 180 | AH61: 80 | AI61: 230 | AJ61: =IF(OR(kleur=3,kleur=4),"*",140) -> 140 | AK61: =IF(OR(kleur=3,kleur=4),"*",140) -> 140 | AN61: 90 | AO61: 180 | AT61: 130 230 | AU61: 130 | AV61: 230 | AW61: 155 | AX61: 255 | AY61: 2 | AZ61: 2 | BA61: 2 | BB61: 2 | BC61: Ø 120 | BD61: Ø | BE61: 140 | BF61: 2 | BG61: 2 | BJ61: 2 | BK61: 2 | BL61: 2 | BN61: 75 105 | BO61: 75 | BP61: 105 | BQ61: 95 | BR61: 125 | BS61: 2 | BT61: 2 | BU61: 2 | BV61: 2 | BW61: 105 | BX61: 135 | BY61: 2 | BZ61: 2 | CA61: 2 | CB61: 2 | CC61: 2 | CD61: 2 | CE61: 2 | CF61: 2 | CG61: 2 | CH61: 2 | CI61: 2 | CJ61: 2 | CK61: 2 | CL61: 2 | CM61: 2 | CN61: 2 | CZ61: 75105 | DA61: 75 | DB61: 105 | DC61: pvc EP 25
A62: 30 | B62: 0.51 | C62: 4.412 | D62: 0.0515 | E62: 0.297 | F62: 1.089764 | G62: 0.85546474 | H62: 3.46342 | J62: 0.247 | K62: 90 | L62: 0 | M62: 15 | T62: 0 | U62: 0 | X62: 100 | Y62: 190 | AH62: 85 | AI62: 85 | AJ62: =IF(OR(kleur=3,kleur=4),"*",150) -> 150 | AK62: =IF(OR(kleur=3,kleur=4),"*",150) -> 150 | AN62: 90 | AO62: 210 | AT62: 130 250 | AU62: 130 | AV62: 250 | AW62: 155 | AX62: 275 | AY62: 2 | AZ62: 2 | BA62: 2 | BB62: 2 | BC62: Ø 130 | BD62: Ø | BE62: 150 | BF62: 2 | BG62: 2 | BJ62: 2 | BK62: 2 | BL62: 2 | BN62: 75 125 | BO62: 75 | BP62: 125 | BQ62: 95 | BR62: 145 | BS62: 2 | BT62: 2 | BU62: 2 | BV62: 2 | BW62: 105 | BX62: 155 | BY62: 2 | BZ62: 2 | CA62: 2 | CB62: 2 | CC62: 2 | CD62: 2 | CE62: 2 | CF62: 2 | CG62: 2 | CH62: 2 | CI62: 2 | CJ62: 2 | CK62: 2 | CL62: 2 | CM62: 2 | CN62: 2 | CZ62: 75125 | DA62: 75 | DB62: 125 | DC62: pvc EP 25
A63: 40 | B63: 0.51 | C63: 4.412 | D63: 0.0515 | E63: =$E$62+(($A63-$A$62)/100) -> 0.397 | F63: 1.530964 | G63: 1.20180674 | H63: 3.46342 | J63: 0.347 | K63: 90 | L63: 0 | M63: 25 | T63: 0 | U63: 0 | X63: 100 | Y63: 200 | AH63: Ø | AI63: 90 | AJ63: =IF(OR(kleur=3,kleur=4),"*","Ø") -> Ø | AK63: =IF(OR(kleur=3,kleur=4),"*",160) -> 160 | AN63: 100 | AO63: 100 | AT63: 130 280 | AU63: 130 | AV63: 280 | AW63: 155 | AX63: 305 | AY63: 2 | AZ63: 2 | BA63: 2 | BB63: 2 | BC63: Ø 140 | BD63: Ø | BE63: 160 | BG63: 2 | BK63: 2 | BL63: 2 | BN63: 75 165 | BO63: 75 | BP63: 165 | BQ63: 95 | BR63: 185 | BS63: 2 | BT63: 2 | BU63: 2 | BV63: 2 | BW63: 105 | BX63: 195 | BY63: 2 | BZ63: 2 | CA63: 2 | CB63: 2 | CC63: 2 | CD63: 2 | CE63: 2 | CF63: 2 | CG63: 2 | CH63: 2 | CI63: 2 | CJ63: 2 | CK63: 2 | CL63: 2 | CM63: 2 | CN63: 2 | CZ63: 75165 | DA63: 75 | DB63: 165 | DC63: pvc EP 25
A64: 50 | B64: 0.51 | C64: 4.412 | D64: 0.0515 | E64: 0.497 | F64: 1.972164 | G64: 1.54814874 | H64: 3.46342 | J64: 0.447 | K64: 90 | L64: 0 | M64: 35 | T64: 0 | U64: 0 | X64: 100 | Y64: 220 | AH64: 90 | AI64: 90 | AJ64: =IF(OR(kleur=3,kleur=4),"*",160) -> 160 | AK64: =IF(OR(kleur=3,kleur=4),"*",160) -> 160 | AN64: 100 | AO64: 130 | AT64: 145 170 | AU64: 145 | AV64: 170 | AW64: 170 | AX64: 195 | AY64: 2 | AZ64: 2 | BA64: 2 | BB64: 2 | BC64: Ø 160 | BD64: Ø | BE64: 180 | BF64: 2 | BG64: 2 | BJ64: 2 | BK64: 2 | BL64: 2 | BN64: 75 175 | BO64: 75 | BP64: 175 | BQ64: 95 | BR64: 195 | BS64: 2 | BT64: 2 | BU64: 2 | BV64: 2 | BW64: 105 | BX64: 205 | BY64: 2 | BZ64: 2 | CA64: 2 | CB64: 2 | CC64: 2 | CD64: 2 | CE64: 2 | CF64: 2 | CG64: 2 | CH64: 2 | CI64: 2 | CJ64: 2 | CK64: 2 | CL64: 2 | CM64: 2 | CN64: 2 | CZ64: 75175 | DA64: 75 | DB64: 175 | DC64: pvc EP 25
A65: 60 | B65: 0.51 | C65: 4.412 | D65: 0.0515 | E65: 0.597 | F65: 2.413364 | G65: 1.89449074 | H65: 3.46342 | J65: 0.547 | K65: 90 | L65: 0 | M65: 45 | Q65: selecteer hoger | R65: selecteer hoger | T65: selecteer hoger | V65: =taal!$A$62 -> selecteer hoger | X65: 100 | Y65: 230 | Z65: =taal!$A$62 -> selecteer hoger | AB65: =taal!$A$62 -> selecteer hoger | AD65: =taal!$A$62 -> selecteer hoger | AF65: =taal!$A$62 -> selecteer hoger | AH65: 90 | AI65: 120 | AJ65: =IF(OR(kleur=3,kleur=4),taal!$A$62,"Ø") -> Ø | AK65: =IF(OR(kleur=3,kleur=4),"*",170) -> 170 | AL65: =taal!$A$62 -> selecteer hoger | AN65: 100 | AO65: 150 | AP65: =taal!$A$62 -> selecteer hoger | AR65: =taal!$A$62 -> selecteer hoger | AT65: 160 200 | AU65: 160 | AV65: 200 | AW65: 185 | AX65: 225 | AY65: 2 | AZ65: 2 | BA65: 2 | BB65: 2 | BC65: Ø 170 | BD65: Ø | BE65: 190 | BL65: 2 | BN65: 75 225 | BO65: 75 | BP65: 225 | BQ65: 95 | BR65: 245 | BS65: 2 | BT65: 2 | BU65: 2 | BV65: 2 | BW65: 105 | BX65: 255 | BY65: 2 | BZ65: 2 | CA65: 2 | CB65: 2 | CC65: 2 | CD65: 2 | CE65: 2 | CF65: 2 | CG65: 2 | CH65: 2 | CI65: 2 | CJ65: 2 | CK65: 2 | CL65: 2 | CM65: 2 | CN65: 2 | CZ65: 75225 | DA65: 75 | DB65: 225 | DC65: pvc EP 25
A66: 70 | B66: 0.51 | C66: 4.412 | D66: 0.0515 | E66: 0.697 | F66: 2.854564 | G66: 2.24083274 | H66: 3.46342 | J66: 0.647 | K66: 90 | L66: 0 | M66: 55 | T66: 0 | U66: 0 | X66: 100 | Y66: 250 | AH66: 90 | AI66: 150 | AJ66: =IF(OR(kleur=3,kleur=4),"*",170) -> 170 | AK66: =IF(OR(kleur=3,kleur=4),"*",170) -> 170 | AN66: 100 | AO66: 160 | AT66: 160 220 | AU66: 160 | AV66: 220 | AW66: 185 | AX66: 245 | AY66: 2 | AZ66: 2 | BA66: 2 | BB66: 2 | BC66: Ø 180 | BD66: Ø | BE66: 200 | BF66: 2 | BG66: 2 | BJ66: 2 | BK66: 2 | BL66: 2 | BN66: 80 110 | BO66: 80 | BP66: 110 | BQ66: 100 | BR66: 130 | BS66: 2 | BT66: 2 | BU66: 2 | BV66: 2 | BW66: 110 | BX66: 140 | BY66: 2 | BZ66: 2 | CA66: 2 | CB66: 2 | CC66: 2 | CD66: 2 | CE66: 2 | CF66: 2 | CG66: 2 | CH66: 2 | CI66: 2 | CJ66: 2 | CK66: 2 | CL66: 2 | CM66: 2 | CN66: 2 | CZ66: 80110 | DA66: 80 | DB66: 110 | DC66: pvc EP 25
A67: 80 | B67: 0.51 | C67: 4.412 | D67: 0.0515 | E67: 0.797 | F67: 3.295764 | G67: 2.58717474 | H67: 3.46342 | J67: 0.747 | K67: 90 | L67: 0 | M67: 65 | T67: 0 | U67: 0 | X67: 100 | Y67: 280 | AH67: 90 | AI67: 180 | AJ67: =IF(OR(kleur=3,kleur=4),"*","Ø") -> Ø | AK67: =IF(OR(kleur=3,kleur=4),"*",180) -> 180 | AN67: 100 | AO67: 180 | AT67: 160 250 | AU67: 160 | AV67: 250 | AW67: 185 | AX67: 275 | AY67: 2 | AZ67: 2 | BA67: 2 | BB67: 2 | BC67: Ø 200 | BD67: Ø | BE67: 220 | BF67: 2 | BG67: 2 | BJ67: 2 | BK67: 2 | BL67: 2 | BN67: 80 130 | BO67: 80 | BP67: 130 | BQ67: 100 | BR67: 150 | BS67: 2 | BT67: 2 | BU67: 2 | BV67: 2 | BW67: 110 | BX67: 160 | BY67: 2 | BZ67: 2 | CA67: 2 | CB67: 2 | CC67: 2 | CD67: 2 | CE67: 2 | CF67: 2 | CG67: 2 | CH67: 2 | CI67: 2 | CJ67: 2 | CK67: 2 | CL67: 2 | CM67: 2 | CN67: 2 | CZ67: 80130 | DA67: 80 | DB67: 130 | DC67: pvc EP 25
A68: 90 | B68: 0.51 | C68: 4.412 | D68: 0.0515 | E68: 0.897 | F68: 3.736964 | G68: 2.93351674 | H68: 3.46342 | J68: 0.847 | K68: 90 | L68: 0 | M68: 75 | R68: =IF(glas=6,AR68,IF(glas=5,AP68,IF(glas>2,AN68,IF(glas>1,AL68,IF(T68=0,"",T68))))) ->  | S68: =IF(glas=6,AS68,IF(glas=5,AQ68,IF(glas>2,AO68,IF(glas>1,AM68,IF(U68=0,"",U68))))) ->  | T68: =IF(OR(type=1,type=2),AF68,IF(type=3,AJ68,IF(type=4,AH68,IF(AND(bol=1,vorm=3)=TRUE,Z68,IF(AND(bol=1,vorm=1)=TRUE,V68,IF(AND(bol=1,vorm=2)=TRUE,X68,IF(AND(bol=2,vorm=1)=TRUE,AB68,IF(AND(bol=2,vorm=2)=TRUE,AD68,"")))))))) -> 0 | U68: =IF(OR(type=1,type=2),AG68,IF(type=3,AK68,IF(type=4,AI68,IF(AND(bol=1,vorm=3)=TRUE,AA68,IF(AND(bol=1,vorm=1)=TRUE,W68,IF(AND(bol=1,vorm=2)=TRUE,Y68,IF(AND(bol=2,vorm=1)=TRUE,AC68,IF(AND(bol=2,vorm=2)=TRUE,AE68,"")))))))) -> 0 | X68: 100 | Y68: 300 | AH68: 90 | AI68: 210 | AJ68: =IF(OR(kleur=3,kleur=4),"*",180) -> 180 | AK68: =IF(OR(kleur=3,kleur=4),"*",180) -> 180 | AN68: 100 | AO68: 200 | AT68: 160 280 | AU68: 160 | AV68: 280 | AW68: 185 | AX68: 305 | AY68: 2 | AZ68: 2 | BA68: 2 | BB68: 2 | BN68: 80 140 | BO68: 80 | BP68: 140 | BQ68: 100 | BR68: 160 | BS68: 2 | BT68: 2 | BU68: 2 | BV68: 2 | BW68: 110 | BX68: 170 | BY68: 2 | BZ68: 2 | CA68: 2 | CB68: 2 | CC68: 2 | CD68: 2 | CE68: 2 | CF68: 2 | CG68: 2 | CH68: 2 | CI68: 2 | CJ68: 2 | CK68: 2 | CL68: 2 | CM68: 2 | CN68: 2 | CZ68: 80140 | DA68: 80 | DB68: 140 | DC68: pvc EP 25
A69: 100 | B69: 0.51 | C69: 4.412 | D69: 0.0515 | E69: 0.997 | F69: 4.178164 | G69: 3.27985874 | H69: 3.46342 | J69: 0.947 | K69: 90 | L69: 0 | M69: 85 | Q69: =R69 &" "&S69 ->  | T69: 0 | U69: 0 | X69: 105 | Y69: 165 | AH69: Ø | AI69: 100 | AJ69: =IF(OR(kleur=3,kleur=4),"*","Ø") -> Ø | AK69: =IF(OR(kleur=3,kleur=4),"*",200) -> 200 | AN69: 100 | AO69: 220 | AT69: =AU69&" "&AV69 -> Ø 40 | AU69: Ø | AV69: 40 | AW69: Ø | AX69: =AV69+25 -> 65 | AY69: 2 | BN69: 80 160 | BO69: 80 | BP69: 160 | BQ69: 100 | BR69: 180 | BS69: 2 | BT69: 2 | BU69: 2 | BV69: 2 | BW69: =BO69+30 -> 110 | BX69: =BP69+30 -> 190 | BY69: 2 | BZ69: 2 | CA69: 2 | CB69: 2 | CC69: 2 | CD69: 2 | CE69: 2 | CF69: 2 | CG69: 2 | CH69: 2 | CI69: 2 | CJ69: 2 | CK69: 2 | CL69: 2 | CM69: 2 | CN69: 2 | CZ69: 80160 | DA69: 80 | DB69: 160 | DC69: pvc EP 25
T70: 0 | U70: 0 | X70: 105 | Y70: 225 | AH70: 100 | AI70: 100 | AJ70: =IF(OR(kleur=3,kleur=4),"*",200) -> 200 | AK70: =IF(OR(kleur=3,kleur=4),"*",200) -> 200 | AN70: 100 | AO70: 230 | AT70: Ø 50 | AU70: Ø | AV70: 50 | AW70: Ø | AX70: 75 | AY70: 2 | BN70: 80 170 | BO70: 80 | BP70: 170 | BQ70: 100 | BR70: 190 | BS70: 2 | BT70: 2 | BU70: 2 | BV70: 2 | BW70: 110 | BX70: 200 | BY70: 2 | BZ70: 2 | CA70: 2 | CB70: 2 | CC70: 2 | CD70: 2 | CE70: 2 | CF70: 2 | CG70: 2 | CH70: 2 | CI70: 2 | CJ70: 2 | CK70: 2 | CL70: 2 | CM70: 2 | CN70: 2 | CZ70: 80170 | DA70: 80 | DB70: 170 | DC70: pvc EP 25
A71: Verhogingsopstand pvc 20/00 EP-S | B71: 0.61 | C71: =IF(vorm<3,((($K$19+$L$19)*2/1000)+8*$D32),($L$19+2*$D32)/1000*3.14) -> 4.47248 | E71: =0.2*IF(AND(K19<>0,N1=2),(N6-1),0) -> 0 | F71: =$C71*$E71 -> 0 | T71: 0 | U71: 0 | X71: 110 | Y71: 140 | AH71: 100 | AI71: 130 | AN71: 100 | AO71: 250 | AT71: Ø 60 | AU71: Ø | AV71: 60 | AW71: Ø | AX71: 85 | AY71: 2 | BN71: =BO71&" "&BP71 -> 80 180 | BO71: 80 | BP71: 180 | BQ71: =BO71+20 -> 100 | BR71: =BP71+20 -> 200 | BS71: 2 | BT71: 2 | BU71: 2 | BV71: 2 | BW71: 110 | BX71: 210 | BY71: 2 | BZ71: 2 | CA71: 2 | CB71: 2 | CC71: 2 | CD71: 2 | CE71: 2 | CF71: 2 | CG71: 2 | CH71: 2 | CI71: 2 | CJ71: 2 | CK71: 2 | CL71: 2 | CM71: 2 | CN71: 2 | CZ71: 80180 | DA71: 80 | DB71: 180 | DC71: pvc EP 25
T72: 0 | U72: 0 | X72: 110 | Y72: 170 | AH72: 100 | AI72: 150 | AN72: 100 | AO72: 280 | AT72: Ø 70 | AU72: Ø | AV72: 70 | AW72: Ø | AX72: 95 | AY72: 2 | BN72: 80 200 | BO72: 80 | BP72: 200 | BQ72: 100 | BR72: 220 | BS72: 2 | BT72: 2 | BU72: 2 | BV72: 2 | BW72: 110 | BX72: 230 | BY72: 2 | BZ72: 2 | CA72: 2 | CB72: 2 | CC72: 2 | CD72: 2 | CE72: 2 | CF72: 2 | CG72: 2 | CH72: 2 | CI72: 2 | CJ72: 2 | CK72: 2 | CL72: 2 | CM72: 2 | CN72: 2 | CZ72: 80200 | DA72: 80 | DB72: 200 | DC72: pvc EP 25
A73: Result curb: | B73: =IF(AND(op=3,vorm=3),"?",IF(op=1,INDEX(B32:B36,prvc),IF(op=2,INDEX('Skylux EP'!B38:B45,prvc),IF(op=3,INDEX('Skylux EP'!B47:B57,prvc),IF(op=4,INDEX('Skylux EP'!B59:B69,prvc)))))) -> 0.61 | C73: = (Uup) | F73: =IF(op=1,INDEX(F32:F36,G1),IF(op=2,INDEX('Skylux EP'!F38:F45,G1),IF(op=3,INDEX('Skylux EP'!F47:F57,G1),IF(op=4,INDEX('Skylux EP'!F59:F69,G1))))) -> 0.606915536 | G73: =IF(op=2,INDEX('Skylux EP'!G38:G45,G1),IF(op=3,INDEX('Skylux EP'!G47:G57,G1),IF(op=4,INDEX('Skylux EP'!G59:G69,G1),"?"))) -> ? | L73: =IF(op=1,INDEX(L32:L36,H1),IF(op=2,INDEX('Skylux EP'!L38:L45,I1),IF(op=3,INDEX('Skylux EP'!L47:L57,J1),IF(op=4,INDEX('Skylux EP'!L59:L69,J1))))) -> 0 | M73: =IF(op=1,INDEX(M32:M36,I1),IF(op=2,INDEX('Skylux EP'!M38:M45,J1),IF(op=3,INDEX('Skylux EP'!M47:M57,K1),IF(op=4,INDEX('Skylux EP'!M59:M69,K1)))))+E71*100 -> 5 | T73: 0 | U73: 0 | X73: 110 | Y73: 230 | AH73: 100 | AI73: 160 | AN73: 100 | AO73: 300 | AT73: Ø 80 | AU73: Ø | AV73: 80 | AW73: Ø | AX73: 105 | AY73: 2 | BN73: 80 220 | BO73: 80 | BP73: 220 | BQ73: 100 | BR73: 240 | BS73: 2 | BT73: 2 | BU73: 2 | BV73: 2 | BW73: 110 | BX73: 250 | BY73: 2 | BZ73: 2 | CA73: 2 | CB73: 2 | CC73: 2 | CD73: 2 | CE73: 2 | CF73: 2 | CG73: 2 | CH73: 2 | CI73: 2 | CJ73: 2 | CK73: 2 | CL73: 2 | CM73: 2 | CN73: 2 | CZ73: 80220 | DA73: 80 | DB73: 220 | DC73: pvc EP 25
A74: Result with raised curb : | B74: =IF(op=5,0,(B71*F71+B73*F73)/F74) -> 0.61 | C74: = (Uup) | F74: =F73+F71 -> 0.606915536 | T74: 0 | U74: 0 | X74: 120 | Y74: 140 | AH74: 100 | AI74: 180 | AN74: 105 | AO74: 105 | AT74: Ø 90 | AU74: Ø | AV74: 90 | AW74: Ø | AX74: 115 | AY74: 2 | BN74: 80 230 | BO74: 80 | BP74: 230 | BQ74: 100 | BR74: 250 | BS74: 2 | BT74: 2 | BU74: 2 | BV74: 2 | BW74: 110 | BX74: 260 | BY74: 2 | BZ74: 2 | CA74: 2 | CB74: 2 | CC74: 2 | CD74: 2 | CE74: 2 | CF74: 2 | CG74: 2 | CH74: 2 | CI74: 2 | CJ74: 2 | CK74: 2 | CL74: 2 | CM74: 2 | CN74: 2 | CZ74: 80230 | DA74: 80 | DB74: 230 | DC74: pvc EP 25
B75: =IF(K19=0,G73,F74) -> 0.606915536 | C75: = (Aup) | Q75: selecteer hoger | R75: selecteer hoger | T75: selecteer hoger | V75: =taal!$A$62 -> selecteer hoger | X75: 120 | Y75: 150 | Z75: =taal!$A$62 -> selecteer hoger | AB75: =taal!$A$62 -> selecteer hoger | AD75: =taal!$A$62 -> selecteer hoger | AF75: =taal!$A$62 -> selecteer hoger | AH75: 100 | AI75: 190 | AJ75: =taal!$A$62 -> selecteer hoger | AL75: =taal!$A$62 -> selecteer hoger | AN75: 105 | AO75: 165 | AP75: =taal!$A$62 -> selecteer hoger | AR75: =taal!$A$62 -> selecteer hoger | AT75: Ø 100 | AU75: Ø | AV75: 100 | AW75: Ø | AX75: 125 | AY75: 2 | BN75: 80 250 | BO75: 80 | BP75: 250 | BQ75: 100 | BR75: 270 | BS75: 2 | BT75: 2 | BU75: 2 | BV75: 2 | BW75: 110 | BX75: 280 | BY75: 2 | BZ75: 2 | CA75: 2 | CB75: 2 | CC75: 2 | CD75: 2 | CE75: 2 | CF75: 2 | CG75: 2 | CH75: 2 | CI75: 2 | CJ75: 2 | CK75: 2 | CL75: 2 | CM75: 2 | CN75: 2 | CZ75: 80250 | DA75: 80 | DB75: 250 | DC75: pvc EP 25
B76: =L73 -> 0 | C76: (C-B) | T76: 0 | U76: 0 | X76: 120 | Y76: 180 | AH76: 100 | AI76: 200 | AN76: 105 | AO76: 225 | AT76: Ø 110 | AU76: Ø | AV76: 110 | AW76: Ø | AX76: 135 | AY76: 2 | BN76: 80 280 | BO76: 80 | BP76: 280 | BQ76: 100 | BR76: 300 | BS76: 2 | BT76: 2 | BU76: 2 | BV76: 2 | BW76: 110 | BX76: 310 | BY76: 2 | BZ76: 2 | CA76: 2 | CB76: 2 | CC76: 2 | CD76: 2 | CE76: 2 | CF76: 2 | CG76: 2 | CH76: 2 | CI76: 2 | CJ76: 2 | CK76: 2 | CL76: 2 | CM76: 2 | CN76: 2 | CZ76: 80280 | DA76: 80 | DB76: 280 | DC76: pvc EP 25
T77: 0 | U77: 0 | X77: 120 | Y77: 210 | AH77: 100 | AI77: 220 | AN77: 110 | AO77: 110 | AT77: =AU77&" "&AV77 -> Ø 120 | AU77: Ø | AV77: 120 | AW77: Ø | AX77: 145 | AY77: 2 | BN77: 90 120 | BO77: 90 | BP77: 120 | BQ77: 110 | BR77: 140 | BS77: 2 | BT77: 2 | BU77: 2 | BV77: 2 | BW77: 120 | BX77: 150 | BY77: 2 | BZ77: 2 | CA77: 2 | CB77: 2 | CC77: 2 | CD77: 2 | CE77: 2 | CF77: 2 | CG77: 2 | CH77: 2 | CI77: 2 | CJ77: 2 | CK77: 2 | CL77: 2 | CM77: 2 | CN77: 2 | CZ77: 90120 | DA77: 90 | DB77: 120 | DC77: pvc EP 25
A78: Types of frame | T78: 0 | U78: 0 | X78: 120 | Y78: 240 | AH78: 100 | AI78: 230 | AN78: 110 | AO78: 140 | AT78: Ø 130 | AU78: Ø | AV78: 130 | AW78: Ø | AX78: 155 | AY78: 2 | BN78: 90 150 | BO78: 90 | BP78: 150 | BQ78: 110 | BR78: 170 | BS78: 2 | BT78: 2 | BU78: 2 | BV78: 2 | BW78: 120 | BX78: 180 | BY78: 2 | BZ78: 2 | CA78: 2 | CB78: 2 | CC78: 2 | CD78: 2 | CE78: 2 | CF78: 2 | CG78: 2 | CH78: 2 | CI78: 2 | CJ78: 2 | CK78: 2 | CL78: 2 | CM78: 2 | CN78: 2 | CZ78: 90150 | DA78: 90 | DB78: 150 | DC78: pvc EP 25
B79: Ue | C79: Pe | D79: Pe (z daglight-1side) | E79: ee | F79: Ae | T79: 0 | U79: 0 | X79: 130 | Y79: 160 | AH79: 100 | AI79: 250 | AN79: 110 | AO79: 170 | AT79: Ø 160 | AU79: Ø | AV79: 160 | AW79: Ø | AX79: 185 | AY79: 2 | BN79: 90 180 | BO79: 90 | BP79: 180 | BQ79: 110 | BR79: 200 | BS79: 2 | BT79: 2 | BU79: 2 | BV79: 2 | BW79: 120 | BX79: 210 | BY79: 2 | BZ79: 2 | CA79: 2 | CB79: 2 | CC79: 2 | CD79: 2 | CE79: 2 | CF79: 2 | CG79: 2 | CH79: 2 | CI79: 2 | CJ79: 2 | CK79: 2 | CL79: 2 | CM79: 2 | CN79: 2 | CZ79: 90180 | DA79: 90 | DB79: 180 | DC79: pvc EP 25
A80: pvc | B80: 1.5 | C80: =IF(vorm<3,((($K$19+$L$19)*2/1000)+8*$D80),($L$19+2*$D80)/1000*3.14) -> 4.354 | D80: 0.04425 | E80: 0.1004 | F80: =$C80*$E80 -> 0.4371416 | T80: 0 | U80: 0 | X80: 130 | Y80: 190 | AH80: 100 | AI80: 280 | AN80: 110 | AO80: 230 | AT80: Ø 170 | AU80: Ø | AV80: 170 | AW80: Ø | AX80: 195 | AY80: 2 | BN80: 90 210 | BO80: 90 | BP80: 210 | BQ80: 110 | BR80: 230 | BS80: 2 | BT80: 2 | BU80: 2 | BV80: 2 | BW80: 120 | BX80: 240 | BY80: 2 | BZ80: 2 | CA80: 2 | CB80: 2 | CC80: 2 | CD80: 2 | CE80: 2 | CF80: 2 | CG80: 2 | CH80: 2 | CI80: 2 | CJ80: 2 | CK80: 2 | CL80: 2 | CM80: 2 | CN80: 2 | CZ80: 90210 | DA80: 90 | DB80: 210 | DC80: pvc EP 25
A81: pvc EP high | B81: 0.75 | C81: =IF(vorm<3,((($K$19+$L$19)*2/1000)+8*$D81),($L$19+2*$D81)/1000*3.14) -> 4.354 | D81: 0.04425 | E81: =(144.43+10+46.4)/1000 -> 0.20083 | F81: =$C81*$E81 -> 0.87441382 | T81: 0 | U81: 0 | X81: 130 | Y81: 200 | AH81: 100 | AI81: 300 | AN81: 120 | AO81: 120 | AT81: =AU81&" "&AV81 -> Ø 180 | AU81: Ø | AV81: 180 | AW81: Ø | AX81: 205 | AY81: 2 | BN81: 100 130 | BO81: 100 | BP81: 130 | BQ81: 120 | BR81: 150 | BS81: 2 | BT81: 2 | BU81: 2 | BV81: 2 | BW81: 130 | BX81: 160 | BY81: 2 | BZ81: 2 | CA81: 2 | CB81: 2 | CC81: 2 | CD81: 2 | CE81: 2 | CF81: 2 | CG81: 2 | CH81: 2 | CI81: 2 | CJ81: 2 | CK81: 2 | CL81: 2 | CM81: 2 | CN81: 2 | CZ81: 100130 | DA81: 100 | DB81: 130 | DC81: pvc EP 25
A82: pvc EP25 high | B82: 0.75 | C82: =IF(vorm<3,((($K$19+$L$19)*2/1000)+8*$D82),($L$19+2*$D82)/1000*3.14) -> 4.354 | D82: 0.04425 | E82: =(144.43+10+37.25)/1000 -> 0.19168 | F82: 0.83457472 | T82: 0 | U82: 0 | X82: 130 | Y82: 220 | AH82: 105 | AI82: 105 | AN82: 120 | AO82: 140 | AT82: Ø 200 | AU82: Ø | AV82: 200 | AW82: Ø | AX82: =AV82+25 -> 225 | AY82: 2 | BN82: 100 150 | BO82: 100 | BP82: 150 | BQ82: 120 | BR82: 170 | BS82: 2 | BT82: 2 | BU82: 2 | BV82: 2 | BW82: 130 | BX82: 180 | BY82: 2 | BZ82: 2 | CA82: 2 | CB82: 2 | CC82: 2 | CD82: 2 | CE82: 2 | CF82: 2 | CG82: 2 | CH82: 2 | CI82: 2 | CJ82: 2 | CK82: 2 | CL82: 2 | CM82: 2 | CN82: 2 | CZ82: 100150 | DA82: 100 | DB82: 150 | DC82: pvc EP 25
A83: pvc IP32 high | B83: 0.75 | C83: =IF(vorm<3,((($K$19+$L$19)*2/1000)+8*$D83),($L$19+2*$D83)/1000*3.14) -> 4.354 | D83: 0.04425 | E83: =(144.43+10+37.25)/1000 -> 0.19168 | F83: 0.83457472 | T83: 0 | U83: 0 | X83: 130 | Y83: 230 | AH83: 105 | AI83: 165 | AN83: 120 | AO83: 150 | BN83: 100 160 | BO83: 100 | BP83: 160 | BQ83: 120 | BR83: 180 | BS83: 2 | BT83: 2 | BU83: 2 | BV83: 2 | BW83: 130 | BX83: 190 | BY83: 2 | BZ83: 2 | CA83: 2 | CB83: 2 | CC83: 2 | CD83: 2 | CE83: 2 | CF83: 2 | CG83: 2 | CH83: 2 | CI83: 2 | CJ83: 2 | CK83: 2 | CL83: 2 | CM83: 2 | CN83: 2 | CZ83: 100160 | DA83: 100 | DB83: 160 | DC83: pvc EP 25
A84: pvc IP89 high | B84: 0.75 | C84: =IF(vorm<3,((($K$19+$L$19)*2/1000)+8*$D84),($L$19+2*$D84)/1000*3.14) -> 4.354 | D84: 0.04425 | E84: =(144.43+10+37.25)/1000 -> 0.19168 | F84: 0.83457472 | T84: 0 | U84: 0 | X84: 130 | Y84: 250 | AH84: 105 | AI84: 225 | AN84: 120 | AO84: 180 | BN84: =BO84&" "&BP84 -> 100 180 | BO84: 100 | BP84: 180 | BQ84: =BO84+20 -> 120 | BR84: =BP84+20 -> 200 | BS84: 2 | BT84: 2 | BU84: 2 | BV84: 2 | BW84: =BO84+30 -> 130 | BX84: =BP84+30 -> 210 | BY84: 2 | BZ84: 2 | CA84: 2 | CB84: 2 | CC84: 2 | CD84: 2 | CE84: 2 | CF84: 2 | CG84: 2 | CH84: 2 | CI84: 2 | CJ84: 2 | CK84: 2 | CL84: 2 | CM84: 2 | CN84: 2 | CZ84: 100190 | DA84: 100 | DB84: 190 | DC84: pvc EP 25
A85: =IF(glas=6,"pvc Vitria low","pvc iDome low") -> pvc iDome low | B85: 1.08 | C85: =IF(vorm<3,((($K$19+$L$19)*2/1000)+8*$D85),($L$19+2*$D85)/1000*3.14) -> 4.354 | D85: 0.04425 | E85: 0.09525 | F85: 0.4147185 | Q85: selecteer hoger | R85: selecteer hoger | T85: selecteer hoger | V85: =taal!$A$62 -> selecteer hoger | X85: 130 | Y85: 280 | Z85: =taal!$A$62 -> selecteer hoger | AB85: =taal!$A$62 -> selecteer hoger | AD85: =taal!$A$62 -> selecteer hoger | AF85: =taal!$A$62 -> selecteer hoger | AH85: Ø | AI85: 110 | AJ85: =taal!$A$62 -> selecteer hoger | AL85: =taal!$A$62 -> selecteer hoger | AN85: 120 | AO85: 210 | AP85: =taal!$A$62 -> selecteer hoger | AR85: =taal!$A$62 -> selecteer hoger | BN85: 100 190 | BO85: 100 | BP85: 190 | BQ85: 120 | BR85: 210 | BS85: 2 | BT85: 2 | BU85: 2 | BV85: 2 | BW85: 130 | BX85: 220 | BY85: 2 | BZ85: 2 | CA85: 2 | CB85: 2 | CC85: 2 | CD85: 2 | CE85: 2 | CF85: 2 | CG85: 2 | CH85: 2 | CI85: 2 | CJ85: 2 | CK85: 2 | CL85: 2 | CM85: 2 | CN85: 2 | CZ85: 100200 | DA85: 100 | DB85: 200 | DC85: pvc EP 25
A86: pvc iDome high | B86: 0.49 | C86: 4.24 | D86: 0.03 | E86: =(144.43+8+20)/1000 -> 0.17243 | F86: 0.7311032 | T86: 0 | U86: 0 | X86: 145 | Y86: 170 | AH86: 110 | AI86: 110 | AN86: 130 | AO86: 130 | BN86: 100 200 | BO86: 100 | BP86: 200 | BQ86: 120 | BR86: 220 | BS86: 2 | BT86: 2 | BU86: 2 | BV86: 2 | BW86: 130 | BX86: 230 | BY86: 2 | BZ86: 2 | CA86: 2 | CB86: 2 | CC86: 2 | CD86: 2 | CE86: 2 | CF86: 2 | CG86: 2 | CH86: 2 | CI86: 2 | CJ86: 2 | CK86: 2 | CL86: 2 | CM86: 2 | CN86: 2 | CZ86: 100220 | DA86: 100 | DB86: 220 | DC86: pvc EP 25
A87: pvc iWindow2 low | B87: 1.08 | C87: 4.354 | D87: 0.04425 | E87: 0.09235 | F87: =$C87*$E87 -> 0.4020919 | T87: 0 | U87: 0 | X87: 160 | Y87: 200 | AH87: 110 | AI87: 140 | AN87: 130 | AO87: 160 | BN87: 100 220 | BO87: 100 | BP87: 220 | BQ87: 120 | BR87: 240 | BS87: 2 | BT87: 2 | BU87: 2 | BV87: 2 | BW87: 130 | BX87: 250 | BY87: 2 | BZ87: 2 | CA87: 2 | CB87: 2 | CC87: 2 | CD87: 2 | CE87: 2 | CF87: 2 | CG87: 2 | CH87: 2 | CI87: 2 | CJ87: 2 | CK87: 2 | CL87: 2 | CM87: 2 | CN87: 2 | CZ87: 100230 | DA87: 100 | DB87: 230 | DC87: pvc EP 25
A88: pvc iWindow2 high | B88: 0.49 | C88: 4.24 | D88: 0.03 | E88: =(154.01+16.5)/1000 -> 0.17051 | F88: 0.7229624 | T88: 0 | U88: 0 | X88: 160 | Y88: 220 | AH88: 110 | AI88: 170 | AN88: 140 | AO88: 140 | BN88: 100 230 | BO88: 100 | BP88: 230 | BQ88: 120 | BR88: 250 | BS88: 2 | BT88: 2 | BU88: 2 | BV88: 2 | BW88: 130 | BX88: 260 | BY88: 2 | BZ88: 2 | CA88: 2 | CB88: 2 | CC88: 2 | CD88: 2 | CE88: 2 | CF88: 2 | CG88: 2 | CH88: 2 | CI88: 2 | CJ88: 2 | CK88: 2 | CL88: 2 | CM88: 2 | CN88: 2 | CZ88: 100250 | DA88: 100 | DB88: 250 | DC88: pvc EP 25
A89: pvc iWindow3 low | B89: 1.08 | C89: 4.354 | D89: 0.04425 | E89: 0.09195 | F89: =$C89*$E89 -> 0.4003503 | Q89: =R89 &" "&S89 ->  | T89: 0 | U89: 0 | X89: 160 | Y89: 230 | AH89: 110 | AI89: 230 | AN89: 150 | AO89: 150 | BN89: 100 250 | BO89: 100 | BP89: 250 | BQ89: 120 | BR89: 270 | BS89: 2 | BT89: 2 | BU89: 2 | BV89: 2 | BW89: 130 | BX89: 280 | BY89: 2 | BZ89: 2 | CA89: 2 | CB89: 2 | CC89: 2 | CD89: 2 | CE89: 2 | CF89: 2 | CG89: 2 | CH89: 2 | CI89: 2 | CJ89: 2 | CK89: 2 | CL89: 2 | CM89: 2 | CN89: 2 | CZ89: 100280 | DA89: 100 | DB89: 280 | DC89: pvc EP 25
A90: pvc iWindow3 high | B90: 0.49 | C90: 4.354 | D90: 0.04425 | E90: =(176.7+0)/1000 -> 0.1767 | F90: 0.7693518 | T90: 0 | U90: 0 | X90: 160 | Y90: 250 | AH90: Ø | AI90: 120 | BN90: 100 280 | BO90: 100 | BP90: 280 | BQ90: 120 | BR90: 300 | BS90: 2 | BT90: 2 | BU90: 2 | BV90: 2 | BW90: 130 | BX90: 310 | BY90: 2 | BZ90: 2 | CA90: 2 | CB90: 2 | CC90: 2 | CD90: 2 | CE90: 2 | CF90: 2 | CG90: 2 | CH90: 2 | CI90: 2 | CJ90: 2 | CK90: 2 | CL90: 2 | CM90: 2 | CN90: 2 | CZ90: =(DA90&DB90)*1 -> 105165 | DA90: 105 | DB90: 165 | DC90: pvc EP 25
A91: Polyester | B91: 0.32 | C91: 4.354 | D91: 0.04425 | E91: 0.0858 | F91: =$C91*$E91 -> 0.3735732 | G91: (GRP = round) | T91: 0 | U91: 0 | X91: 160 | Y91: 280 | AH91: 120 | AI91: 120 | AN91: =taal!$A$62 -> selecteer hoger | BN91: =BO91&" "&BP91 -> 100 300 | BO91: 100 | BP91: 300 | BQ91: =BO91+20 -> 120 | BR91: =BP91+20 -> 320 | CC91: 2 | CG91: 2 | CH91: 2 | CZ91: =(DA91&DB91)*1 -> 105225 | DA91: 105 | DB91: 225 | DC91: pvc EP 25
T92: 0 | U92: 0 | AH92: 120 | AI92: 140 | BN92: =BO92&" "&BP92 -> 105 165 | BO92: 105 | BP92: 165 | BQ92: =BO92+20 -> 125 | BR92: =BP92+20 -> 185 | BS92: 2 | BT92: 2 | BU92: 2 | BV92: 2 | BW92: =BO92+30 -> 135 | BX92: =BP92+30 -> 195 | BY92: 2 | BZ92: 2 | CA92: 2 | CB92: 2 | CC92: 2 | CD92: 2 | CE92: 2 | CF92: 2 | CG92: 2 | CH92: 2 | CI92: 2 | CJ92: 2 | CK92: 2 | CL92: 2 | CM92: 2 | CN92: 2 | CZ92: =(DA92&DB92)*1 -> 110140 | DA92: 110 | DB92: 140 | DC92: pvc EP 25
T93: 0 | U93: 0 | AH93: 120 | AI93: 150 | BN93: 105 225 | BO93: 105 | BP93: 225 | BQ93: 125 | BR93: 245 | BS93: 2 | BT93: 2 | BU93: 2 | BV93: 2 | BW93: 135 | BX93: 255 | BY93: 2 | BZ93: 2 | CA93: 2 | CB93: 2 | CC93: 2 | CD93: 2 | CE93: 2 | CF93: 2 | CG93: 2 | CH93: 2 | CI93: 2 | CJ93: 2 | CK93: 2 | CL93: 2 | CM93: 2 | CN93: 2 | CZ93: =(DA93&DB93)*1 -> 110170 | DA93: 110 | DB93: 170 | DC93: pvc EP 25
A94: Aluminium | B94: 9 | C94: =IF(vorm<3,((($K$19+$L$19)*2/1000)+8*$D94),($L$19+2*$D94)/1000*3.14) -> 4.354 | D94: 0.04425 | E94: 0.07282 | F94: =$C94*$E94 -> 0.31705828 | T94: 0 | U94: 0 | AH94: 120 | AI94: 180 | AJ94: =taal!$A$62 -> selecteer hoger | BN94: 110 140 | BO94: 110 | BP94: 140 | BQ94: 130 | BR94: 160 | BS94: 2 | BT94: 2 | BU94: 2 | BV94: 2 | BW94: 140 | BX94: 170 | BY94: 2 | BZ94: 2 | CA94: 2 | CB94: 2 | CC94: 2 | CD94: 2 | CE94: 2 | CF94: 2 | CG94: 2 | CH94: 2 | CI94: 2 | CJ94: 2 | CK94: 2 | CL94: 2 | CM94: 2 | CN94: 2 | CZ94: =(DA94&DB94)*1 -> 110230 | DA94: 110 | DB94: 230 | DC94: pvc EP 25
A95: Result edge profile | B95: =INDEX(B80:B91,raam-1) ->  | C95: = (Ue) | F95: =INDEX(F80:F91,raam-1) ->  | G95: = (Ae) | T95: 0 | U95: 0 | AH95: 120 | AI95: 210 | BN95: 110 170 | BO95: 110 | BP95: 170 | BQ95: 130 | BR95: 190 | BS95: 2 | BT95: 2 | BU95: 2 | BV95: 2 | BW95: 140 | BX95: 200 | BY95: 2 | BZ95: 2 | CA95: 2 | CB95: 2 | CC95: 2 | CD95: 2 | CE95: 2 | CF95: 2 | CG95: 2 | CH95: 2 | CI95: 2 | CJ95: 2 | CK95: 2 | CL95: 2 | CM95: 2 | CN95: 2 | CZ95: =(DA95&DB95)*1 -> 120140 | DA95: 120 | DB95: 140 | DC95: pvc EP 25
T96: 0 | U96: 0 | AH96: 120 | AI96: 240 | BN96: 110 230 | BO96: 110 | BP96: 230 | BQ96: 130 | BR96: 250 | BS96: 2 | BT96: 2 | BU96: 2 | BV96: 2 | BW96: 140 | BX96: 260 | BY96: 2 | BZ96: 2 | CA96: 2 | CB96: 2 | CC96: 2 | CD96: 2 | CE96: 2 | CF96: 2 | CG96: 2 | CH96: 2 | CI96: 2 | CJ96: 2 | CK96: 2 | CL96: 2 | CM96: 2 | CN96: 2 | CZ96: 120150 | DA96: 120 | DB96: 150 | DC96: pvc EP 25
A97: Adapter frame | T97: 0 | U97: 0 | AH97: Ø | AI97: 130 | BN97: 120 140 | BO97: 120 | BP97: 140 | BQ97: 140 | BR97: 160 | BS97: 2 | BT97: 2 | BU97: 2 | BV97: 2 | BW97: 150 | BX97: 170 | BY97: 2 | BZ97: 2 | CA97: 2 | CB97: 2 | CC97: 2 | CD97: 2 | CE97: 2 | CF97: 2 | CG97: 2 | CH97: 2 | CI97: 2 | CJ97: 2 | CK97: 2 | CL97: 2 | CM97: 2 | CN97: 2 | CZ97: 120180 | DA97: 120 | DB97: 180 | DC97: pvc EP 25
B98: Ue | C98: Pe | D98: Pe (z daglight-1side) | E98: ee | F98: Ae | T98: 0 | U98: 0 | AH98: 130 | AI98: 130 | AN98: =taal!$A$62 -> selecteer hoger | BN98: 120 150 | BO98: 120 | BP98: 150 | BQ98: 140 | BR98: 170 | BS98: 2 | BT98: 2 | BU98: 2 | BV98: 2 | BW98: 150 | BX98: 180 | BY98: 2 | BZ98: 2 | CA98: 2 | CB98: 2 | CC98: 2 | CD98: 2 | CE98: 2 | CF98: 2 | CG98: 2 | CH98: 2 | CI98: 2 | CJ98: 2 | CK98: 2 | CL98: 2 | CM98: 2 | CN98: 2 | CZ98: 120210 | DA98: 120 | DB98: 210 | DC98: pvc EP 25
A99: pvc adapterframe | B99: 0.82 | C99: =IF(vorm<3,((($K$19+$L$19)*2/1000)+8*$D99),($L$19+2*$D99)/1000*3.14) -> 4.36 | D99: 0.045 | E99: =IF(raam=1,0.101,0.056) -> 0.101 | F99: =$C99*$E99 -> 0.44036 | T99: 0 | U99: 0 | AH99: 130 | AI99: 160 | BN99: 120 180 | BO99: 120 | BP99: 180 | BQ99: 140 | BR99: 200 | BS99: 2 | BT99: 2 | BU99: 2 | BV99: 2 | BW99: 150 | BX99: 210 | BY99: 2 | BZ99: 2 | CA99: 2 | CB99: 2 | CC99: 2 | CD99: 2 | CE99: 2 | CF99: 2 | CG99: 2 | CH99: 2 | CI99: 2 | CJ99: 2 | CK99: 2 | CL99: 2 | CM99: 2 | CN99: 2 | CZ99: 120240 | DA99: 120 | DB99: 240 | DC99: pvc EP 25
R100: =IF(glas=6,AR100,IF(glas=5,AP100,IF(glas>2,AN100,IF(glas>1,AL100,IF(T100=0,"",T100))))) ->  | S100: =IF(glas=6,AS100,IF(glas=5,AQ100,IF(glas>2,AO100,IF(glas>1,AM100,IF(U100=0,"",U100))))) ->  | T100: =IF(OR(type=1,type=2),AF100,IF(type=3,AJ100,IF(type=4,AH100,IF(AND(bol=1,vorm=3)=TRUE,Z100,IF(AND(bol=1,vorm=1)=TRUE,V100,IF(AND(bol=1,vorm=2)=TRUE,X100,IF(AND(bol=2,vorm=1)=TRUE,AB100,IF(AND(bol=2,vorm=2)=TRUE,AD100,"")))))))) -> 0 | U100: =IF(OR(type=1,type=2),AG100,IF(type=3,AK100,IF(type=4,AI100,IF(AND(bol=1,vorm=3)=TRUE,AA100,IF(AND(bol=1,vorm=1)=TRUE,W100,IF(AND(bol=1,vorm=2)=TRUE,Y100,IF(AND(bol=2,vorm=1)=TRUE,AC100,IF(AND(bol=2,vorm=2)=TRUE,AE100,"")))))))) -> 0 | AH100: 130 | AI100: 190 | BN100: 120 210 | BO100: 120 | BP100: 210 | BQ100: 140 | BR100: 230 | BS100: 2 | BT100: 2 | BU100: 2 | BV100: 2 | BW100: 150 | BX100: 240 | BY100: 2 | BZ100: 2 | CA100: 2 | CB100: 2 | CC100: 2 | CD100: 2 | CE100: 2 | CF100: 2 | CG100: 2 | CH100: 2 | CI100: 2 | CJ100: 2 | CK100: 2 | CL100: 2 | CM100: 2 | CN100: 2 | CZ100: 130160 | DA100: 130 | DB100: 160 | DC100: pvc EP 25
T101: 0 | U101: 0 | AH101: 130 | AI101: 200 | BN101: 120 240 | BO101: 120 | BP101: 240 | BQ101: 140 | BR101: 260 | BS101: 2 | BT101: 2 | BU101: 2 | BV101: 2 | BW101: 150 | BX101: 270 | BY101: 2 | BZ101: 2 | CA101: 2 | CB101: 2 | CC101: 2 | CD101: 2 | CE101: 2 | CF101: 2 | CG101: 2 | CH101: 2 | CI101: 2 | CJ101: 2 | CK101: 2 | CL101: 2 | CM101: 2 | CN101: 2 | CZ101: 130190 | DA101: 130 | DB101: 190 | DC101: pvc EP 25
T102: 0 | U102: 0 | AH102: 130 | AI102: 220 | BN102: 130 160 | BO102: 130 | BP102: 160 | BQ102: 150 | BR102: 180 | BS102: 2 | BT102: 2 | BU102: 2 | BV102: 2 | BW102: 160 | BX102: 190 | BY102: 2 | BZ102: 2 | CA102: 2 | CB102: 2 | CC102: 2 | CD102: 2 | CE102: 2 | CF102: 2 | CG102: 2 | CH102: 2 | CI102: 2 | CJ102: 2 | CK102: 2 | CL102: 2 | CM102: 2 | CN102: 2 | CZ102: 130200 | DA102: 130 | DB102: 200 | DC102: pvc EP 25
T103: 0 | U103: 0 | AH103: 130 | AI103: 230 | BN103: 130 190 | BO103: 130 | BP103: 190 | BQ103: 150 | BR103: 210 | BS103: 2 | BT103: 2 | BU103: 2 | BV103: 2 | BW103: 160 | BX103: 220 | BY103: 2 | BZ103: 2 | CA103: 2 | CB103: 2 | CC103: 2 | CD103: 2 | CE103: 2 | CF103: 2 | CG103: 2 | CH103: 2 | CI103: 2 | CJ103: 2 | CK103: 2 | CL103: 2 | CM103: 2 | CN103: 2 | CZ103: 130220 | DA103: 130 | DB103: 220 | DC103: pvc EP 25
T104: 0 | U104: 0 | AH104: 130 | AI104: 250 | BN104: 130 200 | BO104: 130 | BP104: 200 | BQ104: 150 | BR104: 220 | BS104: 2 | BT104: 2 | BU104: 2 | BV104: 2 | BW104: 160 | BX104: 230 | BY104: 2 | BZ104: 2 | CA104: 2 | CB104: 2 | CC104: 2 | CD104: 2 | CE104: 2 | CF104: 2 | CG104: 2 | CH104: 2 | CI104: 2 | CJ104: 2 | CK104: 2 | CL104: 2 | CM104: 2 | CN104: 2 | CZ104: 130230 | DA104: 130 | DB104: 230 | DC104: pvc EP 25
T105: 0 | U105: 0 | AH105: 130 | AI105: 280 | BN105: 130 220 | BO105: 130 | BP105: 220 | BQ105: 150 | BR105: 240 | BS105: 2 | BT105: 2 | BU105: 2 | BV105: 2 | BW105: 160 | BX105: 250 | BY105: 2 | BZ105: 2 | CA105: 2 | CB105: 2 | CC105: 2 | CD105: 2 | CE105: 2 | CF105: 2 | CG105: 2 | CH105: 2 | CI105: 2 | CJ105: 2 | CK105: 2 | CL105: 2 | CM105: 2 | CN105: 2 | CZ105: 130250 | DA105: 130 | DB105: 250 | DC105: pvc EP 25
T106: 0 | U106: 0 | AH106: Ø | AI106: 140 | BN106: 130 230 | BO106: 130 | BP106: 230 | BQ106: 150 | BR106: 250 | BS106: 2 | BT106: 2 | BU106: 2 | BV106: 2 | BW106: 160 | BX106: 260 | BY106: 2 | BZ106: 2 | CA106: 2 | CB106: 2 | CC106: 2 | CD106: 2 | CE106: 2 | CF106: 2 | CG106: 2 | CH106: 2 | CI106: 2 | CJ106: 2 | CK106: 2 | CL106: 2 | CM106: 2 | CN106: 2 | CZ106: 130280 | DA106: 130 | DB106: 280 | DC106: pvc EP 25
T107: 0 | U107: 0 | AH107: 140 | AI107: 140 | BN107: 130 250 | BO107: 130 | BP107: 250 | BQ107: 150 | BR107: 270 | BS107: 2 | BT107: 2 | BU107: 2 | BV107: 2 | BW107: 160 | BX107: 280 | BY107: 2 | BZ107: 2 | CA107: 2 | CB107: 2 | CC107: 2 | CD107: 2 | CE107: 2 | CF107: 2 | CG107: 2 | CH107: 2 | CI107: 2 | CJ107: 2 | CK107: 2 | CL107: 2 | CM107: 2 | CN107: 2 | CZ107: 145170 | DA107: 145 | DB107: 170 | DC107: pvc EP 25
T108: =IF(OR(type=1,type=2),AF108,IF(type=3,AJ108,IF(type=4,AH108,IF(AND(bol=1,vorm=3)=TRUE,Z108,IF(AND(bol=1,vorm=1)=TRUE,V108,IF(AND(bol=1,vorm=2)=TRUE,X108,IF(AND(bol=2,vorm=1)=TRUE,AB108,IF(AND(bol=2,vorm=2)=TRUE,AD108,"")))))))) -> 0 | U108: 0 | AH108: 145 | AI108: 170 | BN108: 130 280 | BO108: 130 | BP108: 280 | BQ108: 150 | BR108: 300 | BS108: 2 | BT108: 2 | BU108: 2 | BV108: 2 | BW108: 160 | BX108: 310 | BY108: 2 | BZ108: 2 | CA108: 2 | CB108: 2 | CC108: 2 | CD108: 2 | CE108: 2 | CF108: 2 | CG108: 2 | CH108: 2 | CI108: 2 | CJ108: 2 | CK108: 2 | CL108: 2 | CM108: 2 | CN108: 2 | CZ108: 160200 | DA108: 160 | DB108: 200 | DC108: pvc EP 25
T109: 0 | U109: 0 | AH109: 150 | AI109: 150 | BN109: 145 170 | BO109: 145 | BP109: 170 | BQ109: 165 | BR109: 190 | BS109: 2 | BT109: 2 | BU109: 2 | BV109: 2 | BW109: 175 | BX109: 200 | BY109: 2 | BZ109: 2 | CA109: 2 | CB109: 2 | CC109: 2 | CD109: 2 | CE109: 2 | CF109: 2 | CG109: 2 | CH109: 2 | CI109: 2 | CJ109: 2 | CK109: 2 | CL109: 2 | CM109: 2 | CN109: 2 | CZ109: 160220 | DA109: 160 | DB109: 220 | DC109: pvc EP 25
T110: 0 | U110: 0 | AH110: 155 | AI110: 155 | BN110: 160 200 | BO110: 160 | BP110: 200 | BQ110: 180 | BR110: 220 | BS110: 2 | BT110: 2 | BU110: 2 | BV110: 2 | BW110: 190 | BX110: 230 | BY110: 2 | BZ110: 2 | CA110: 2 | CB110: 2 | CC110: 2 | CD110: 2 | CE110: 2 | CF110: 2 | CG110: 2 | CH110: 2 | CI110: 2 | CJ110: 2 | CK110: 2 | CL110: 2 | CM110: 2 | CN110: 2 | CZ110: 160230 | DA110: 160 | DB110: 230 | DC110: pvc EP 25
T111: 0 | U111: 0 | AH111: Ø | AI111: 160 | BN111: 160 220 | BO111: 160 | BP111: 220 | BQ111: 180 | BR111: 240 | BS111: 2 | BT111: 2 | BU111: 2 | BV111: 2 | BW111: 190 | BX111: 250 | BY111: 2 | BZ111: 2 | CA111: 2 | CB111: 2 | CC111: 2 | CD111: 2 | CE111: 2 | CF111: 2 | CG111: 2 | CH111: 2 | CI111: 2 | CJ111: 2 | CK111: 2 | CL111: 2 | CM111: 2 | CN111: 2 | CZ111: 160250 | DA111: 160 | DB111: 250 | DC111: pvc EP 25
A112: g-values | T112: 0 | U112: 0 | AH112: 160 | AI112: 160 | BN112: 160 230 | BO112: 160 | BP112: 230 | BQ112: 180 | BR112: 250 | BS112: 2 | BT112: 2 | BU112: 2 | BV112: 2 | BW112: 190 | BX112: 260 | BY112: 2 | BZ112: 2 | CA112: 2 | CB112: 2 | CC112: 2 | CD112: 2 | CE112: 2 | CF112: 2 | CG112: 2 | CH112: 2 | CI112: 2 | CJ112: 2 | CK112: 2 | CL112: 2 | CM112: 2 | CN112: 2 | CZ112: 160280 | DA112: 160 | DB112: 280 | DC112: pvc EP 25
B113: EP10 | C113: EP16 | D113: 5W | E113: 4W | F113: 3W | G113: 2W | H113: 1W | I113: Skylux iDome | J113: TOPX 25 | K113: iWindow 2 | L113: iWindow3 | M113: Vitira | T113: 0 | U113: 0 | AH113: 160 | AI113: 200 | BN113: 160 250 | BO113: 160 | BP113: 250 | BQ113: 180 | BR113: 270 | BS113: 2 | BT113: 2 | BU113: 2 | BV113: 2 | BW113: 190 | BX113: 280 | BY113: 2 | BZ113: 2 | CA113: 2 | CB113: 2 | CC113: 2 | CD113: 2 | CE113: 2 | CF113: 2 | CG113: 2 | CH113: 2 | CI113: 2 | CJ113: 2 | CK113: 2 | CL113: 2 | CM113: 2 | CN113: 2
A114: clear | D114: 0.47 | E114: 0.54 | F114: 0.65 | G114: 0.75 | H114: 0.87 | I114: 0.53 | J114: 0.66 | K114: =IF(kleur=2,0.5,IF(kleur=3,0.4,0.52)) -> 0.52 | L114: =IF(kleur=2,0.41,IF(kleur=3,0.33,0.42)) -> 0.42 | M114: 0.59 | T114: 0 | U114: 0 | AH114: 160 | AI114: 220 | BN114: 160 280 | BO114: 160 | BP114: 280 | BQ114: 180 | BR114: 300 | BS114: 2 | BT114: 2 | BU114: 2 | BV114: 2 | BW114: 190 | BX114: 310 | BY114: 2 | BZ114: 2 | CA114: 2 | CB114: 2 | CC114: 2 | CD114: 2 | CE114: 2 | CF114: 2 | CG114: 2 | CH114: 2 | CI114: 2 | CJ114: 2 | CK114: 2 | CL114: 2 | CM114: 2 | CN114: 2
A115: opal PMMA | B115: 0.43 | D115: 0.41 | E115: 0.48 | F115: 0.51 | G115: 0.58 | H115: 0.76 | T115: 0 | U115: 0 | AH115: 160 | AI115: 230
A116: clear PC | D116: 0.47 | E116: 0.52 | F116: 0.63 | G116: 0.72 | H116: 0.83 | T116: 0 | U116: 0 | AH116: =IF(kleur>2,160,"") ->  | AI116: =IF(kleur>2,250,"") -> 
A117: opal PC | B117: 0.41 | C117: 0.32 | D117: 0.41 | E117: 0.46 | F117: 0.48 | G117: 0.63 | H117: 0.6 | Q117: =R117 &" "&S117 ->  | T117: 0 | U117: 0 | AH117: =IF(kleur>2,160,"") ->  | AI117: =IF(kleur>2,280,"") -> 
A118: heatstop PC | E118: 0.32 | F118: 0.39 | G118: 0.45 | H118: 0.59 | T118: 0 | U118: 0 | AH118: Ø | AI118: 170
A119: g-values | B119: =INDEX(B114:B118,kleur) -> 0 | C119: 0 | D119: 0.47 | E119: 0.54 | F119: 0.65 | G119: 0.75 | H119: 0.87 | T119: 0 | U119: 0 | AH119: 170 | AI119: 170 | AT119: =AU119&" "&AV119 -> 
M120: =IF(glas=2,"-",IF(glas=1,IF(raam=4,J114*INDEX(B119:H119,type),INDEX(B119:H119,type)),IF(glas=3,I114*INDEX(B119:H119,type),IF(glas=4,K114,IF(glas=5,L114,IF(glas=6,M114,"Kies type")))))) -> 0.65 | Q120: =R120 &" "&S120 ->  | T120: 0 | U120: 0 | AH120: Ø | AI120: 180
T121: 0 | U121: 0 | AH121: 180 | AI121: 180 | AT121: =AU121&" "&AV121 -> 
A122: surface outer sheet dome | B122: =IF(glas<4,IF(OR(vorm=3,AND(OR(type=4,type=3),K19=0)),C127,INDEX(B124:B125,bol)),IF(glas=4,(K19+75)*(L19+75)/1000000,IF(glas=6,(K19+20)*(L19+20)/1000000,(K19+28)*(L19+28)/1000000))) -> 1.124444103 | C122: = At | F122: zone of transition | G122: =IF(raam=2,G125,IF(OR(raam=3,AND(raam=4,vorm<3),raam=5,raam=6),G127,IF(raam=13,G126,IF(OR(raam=7,raam=8),G129,IF(OR(raam=9,raam=10),G130,IF(OR(raam=11,raam=12),G131,G124)))))) -> 4 | H122: = lt | I122: =IF(raam=2,I125,IF(OR(raam=3,AND(raam=4,vorm<3),raam=5,raam=6),I127,IF(raam=13,I126,IF(OR(raam=7,raam=8),I129,IF(OR(raam=9,raam=10),I130,IF(OR(raam=11,raam=12),I131,I124)))))) -> 0.038 | J122: = ψt | Q122: =R122 &" "&S122 ->  | T122: 0 | U122: 0 | AH122: Ø | AI122: 200
F123: transparent part | Q123: =R123 &" "&S123 ->  | T123: 0 | U123: 0 | AH123: 200 | AI123: 200
A124: round | B124: =A131*LARGE(K19:L19,1)/1000000 -> 1.124444103 | C124: (outer sheet) | F124: Skylux | G124: =IF(vorm<3,((($K$19+$L$19)*2/1000)+8*$H124),($L$19+2*$H124)/1000*3.14) -> 4 | H124: 0 | I124: =J124 -> 0.038 | J124: 0.038 | K124: PE mousse | T124: 0 | U124: 0
A125: pyramidal | B125: =A135 -> 1.154700538 | C125: (outer sheet) | F125: Skylux + pvc | G125: 3.9656 | H125: -0.0043 | I125: =J125 -> 0.038 | J125: 0.038 | K125: PE mousse
A126: sphere | C126: round | F126: Skylux + prv | G126: 4.1672 | H126: 0.0209 | I126: 0.038 | J126: 0.038 | K126: PE mousse
A127: =SMALL(K19:L19,1) -> 1000 | B127: chord | C127: =($L$19*$L$19/1000000+4*$A$128/1000*$A$128/1000)*PI()/4 -> 0.9374512478 | F127: Skylux + EP | G127: 3.632 | H127: -0.046 | I127: 0.077 | J127: 0.077 | K127: IFT Rosenheim Alu spacer
A128: =pijlbol*10 -> 220 | B128: rise of arc | F128: Skylux + Aluminium | G128: 4.13488 | H128: 0.01686 | I128: 0.038 | J128: 0.038 | K128: PE mousse
A129: =($A$127/2)/(SIN($A$130*PI()/180/2)) -> 678.1818182 | B129: radius | F129: iDome | G129: 4.16 | H129: 0.02 | I129: 0.041 | J129: 0.041 | K129: IFT Rosenheim
A130: =4*ATAN($A$128/($A$127/2))*180/PI() -> 94.99797797 | B130: alfa ° | F130: iWindow2 | G130: 4.224 | H130: 0.028 | I130: 0.041 | J130: 0.041 | K130: IFT Rosenheim
A131: =A130/360*2*PI()*A129 -> 1124.444103 | B131: arc length | F131: iWindow3 | G131: 4.6 | H131: 0.075 | I131: 0.038 | J131: 0.038 | K131: IFT Rosenheim
A132: piramide:
A133: 30 | B133: =SMALL(K19:L19,1) -> 1000 | C133: =LARGE(K19:L19,1) -> 1000 | D133: =(C133-B133) -> 0 | F133: zone of transition | G133: =G135 -> 0 | H133: = le | I133: =I135 -> 0 | J133: = ψe
A134: =B133/2 -> 500 | B134: =A134/COS(A133*PI()/180) -> 577.3502692 | C134: =2*B133*B134/1000000 -> 1.154700538 | D134: =D133*B134*2/1000000 -> 0 | F134: edge profile 1
A135: =SUM(C134+D134) -> 1.154700538 | B135: = surface of pyramidal outer wall | G135: 0 | H135: = le | I135: 0 | J135: = ψe
F137: zone of transition | G137: =G139 -> 4.36 | H137: = le | I137: =I139 -> 0.041 | J137: = ψe
F138: edge profile 2
G139: =IF(vorm<3,((($K$19+$L$19)*2/1000)+8*$D$99),($L$19+2*D99)/1000*3.14) -> 4.36 | H139: = le | I139: 0.041 | J139: = ψe
A142: D.4.2 | B142: =(IF(raam=1,0,$F$95*$B$95)+IF(adap=1,0,$F$99*B99)+$B$122*invoerblad!E15+$G$122*$I$122)/(IF(raam=1,0,$F$95)+IF(adap=1,0,$F$99)+$B$122) -> 1.835177907 | C142: W/m².K | E142: Ur of individual rooflights including the edge profile | H142: Ur = (Ae x Ue + At x Ut + lt x ψt) / (Ae + At)
A143: D.4.3 // D.4.5 | B143: =($B$75*$B$73+IF(raam=1,0,$F$95*$B$95)+IF(adap=1,0,$F$99*B99)+$B$122*invoerblad!E15+$G$122*$I$122+IF(raam=1,0,$G$133*$I$133)+IF(adap=1,0,$G$137*$I$137))/($B$75+IF(raam=1,0,$F$95)+IF(adap=1,0,$F$99)+$B$122) -> 1.405700698 | C143: W/m².K | E143: Ur of individual rooflights including/excluding the edge profile and including upstand | H143: Urc = (Aup x Uup + Ae x Ue + At x Ut + le x ψe + lt x ψt) / (Aup + Ae + At)
A144: D.4.4 | B144: =(($B$75+IF(raam=1,0,$F$95)+IF(adap=1,0,$F$99))*$B$73+$B$122*invoerblad!E15+$G$122*$I$122)/($B$75+IF(raam=1,0,$F$95)+IF(adap=1,0,$F$99)+$B$122) -> 1.405700698 | C144: W/m².K | E144: Urc of individual rooflights including the edge profile and upstand (alternative method) | H144: Urc = ((Aup + Ae) x Uup,e + At x Ut + lt x ψt) / (Aup + Ae + At)

Sheet taal (hidden)
C1: n | D1: f | E1: d | F1: e | G1: Hrvatski (croatian) | H1: Polski | I1: Czech | J1: Latvian
A2: =IF(B2=0,"",B2) -> taal | B2: =INDEX(C2:J2,taal) -> taal | C2: taal | D2: langue | E2: Sprache | F2: language | G2: jezik | H2: język | I2: Jazyk | J2: Valoda
A3: bol | B3: bol | C3: bol | D3: bombée | E3: Bogenförmig | F3: spherical shaped | G3: zaobljena | H3: sferyczna | I3: Oblouk | J3: Sfēriskas formas
A4: piramide | B4: piramide | C4: piramide | D4: pyramidale | E4: Pyramidenförmig | F4: pyramid | G4: piramidalna | H4: piramidalna | I4: Pyramida | J4: Piramīda
A5: vierkant | B5: vierkant | C5: vierkant | D5: carré | E5: quadratisch | F5: square | G5: kvadratna | H5: kwadratowa | I5: Čtverec | J5: Kvadrāts
A6: rechthoekig | B6: rechthoekig | C6: rechthoekig | D6: rectangulaire | E6: rechteckig | F6: rectangular | G6: pravokutna | H6: prostokątna | I6: Obdélník | J6: Taisnstūrveida
A7: rond | B7: rond | C7: rond | D7: circulaire | E7: rund | F7: round | G7: okrugla | H7: okrągła | I7: Kruh | J7: Apļveida
A8: vorm | B8: vorm | C8: vorm | D8: forme | E8: Form | F8: shape | G8: oblik | H8: kształt - | I8: Tvar | J8: Forma
A9: niet mogelijk | B9: niet mogelijk | C9: niet mogelijk | D9: na pas possible | E9: nicht Möglich | F9: not possible | G9: nema mogućnosti | H9: niewykonalne | I9: Není možno | J9: Nav iespējams
A10: pvc-opstand | B10: pvc-opstand | C10: pvc-opstand | D10: costière en pvc | E10: pvc Aufsatzkränz | F10: pvc-curb | G10: pvc nastavni vijenac | H10: z pvc | I10: pvc manžeta | J10: PVC pamatne
A11: polyesteropstand | B11: polyesteropstand | C11: polyesteropstand | D11: costière en polyester | E11: GFK Aufsatzkränz | F11: polyestercurb | G11: Poliester nastavni vijenac | H11: poliestrowa | I11: Polyesterová manžeta | J11: Poliestera pamatne
A12: metalen opstand | B12: metalen opstand | C12: metalen opstand | D12: costière métallique | E12: Metallaufsatzkränz | F12: metal curb | G12: metalni nastavni vijenac | H12: metalowa | I12: Železný rám | J12: Metāla pamatne
A13: =IF(B13=0,"",B13) -> metalen opstand EP | B13: metalen opstand EP | C13: metalen opstand EP | D13: costière métallique EP | E13: Metallaufsatzkränz EP | F13: metal curb EP | G13: metalni nastavni vijenac EP | H13: metalowa EP (Energy Profit) | I13: Železný rám EP | J13: Metāla pamatne
A14: eigen opstand | B14: eigen opstand | C14: eigen opstand | D14: propre costière | E14: eigene Aufsatzkränz | F14: own curb | G14: vlastiti vijenac | H14: własna | I14: Vlastní manžeta/rám | J14: Esošā pamatne
A15: opstand | B15: opstand | C15: opstand | D15: costière | E15: Aufsatzkränz | F15: curb | G15: nastavni vijenac | H15: podstawa | I15: Manžeta/rám | J15: Pamatne
A16: =IF(B16=0,"",B16) -> verhogingsopstand | B16: verhogingsopstand | C16: verhogingsopstand | D16: costière de rehausse | E16: ErhöhungsaAufsatzkränz | F16: raised curb | G16: nastavni vijenac povećanje | H16: podstawa zwiększenie | I16: Manžeta/rám zvýšit | J16: Pacelta pamatne
A17: =IF(B17=0,"",B17) -> geen | B17: geen | C17: geen | D17: non | E17: keine | F17: no | G17: ne | H17: nie | I17: žádný | J17: Nē
A18: A - maat | B18: A - maat | C18: A - maat | D18: mesure A | E18: A - Abmessung | F18: A - size | G18: A - nazivna mjera | H18: A - wymiar zewnętrzny kopułki | I18: Rozměr A | J18: A-Izmērs
A19: B - maat | B19: B - maat | C19: B - maat | D19: mesure B | E19: B - Abmessung | F19: B - size | G19: B - svjetlosna mjera | H19: B - wymiar w świetle kopułki | I19: Rozměr B | J19: B-Izmērs
A20: C - maat | B20: C - maat | C20: C - maat | D20: mesure C | E20: C - Abmessung | F20: C - size | G20: C - građ. Mjera | H20: C - wymiar w świetle dachu | I20: Rozměr C | J20: C-Izmērs
A21: PVC 16/00 | B21: PVC 16/00 | C21: PVC 16/00 | D21: PVC 16/00 | E21: PVC 16/00 | F21: PVC 16/00 | G21: PVC 16/00 | H21: PVC 16/00 | I21: PVC 16/00 | J21: PVC 16/00
A22: PVC 16/20 | B22: PVC 16/20 | C22: PVC 16/20 | D22: PVC 16/20 | E22: PVC 16/20 | F22: PVC 16/20 | G22: PVC 16/20 | H22: PVC 16/20 | I22: PVC 16/20 | J22: PVC 16/20
A23: PVC 30/20 | B23: PVC 30/20 | C23: PVC 30/20 | D23: PVC 30/20 | E23: PVC 30/20 | F23: PVC 30/20 | G23: PVC 30/20 | H23: PVC 30/20 | I23: PVC 30/20 | J23: PVC 30/20
A24: =IF(B24=0,"",B24) -> uitvoering | B24: uitvoering | C24: uitvoering | D24: type | E24: Ausführung | F24: type | G24: izvedba | H24: typ - | I24: Typ | J24: Tips
A25: =IF(B25=0,"",B25) -> EP10 koepel | B25: EP10 koepel | C25: EP10 koepel | D25: coupole EP10 | E25: EP10 Lichtkuppel | F25: EP10 skydome | G25: EP10 svjetlosna kupola | H25: EP 10 (Energy Profit) | I25: Kopule EP10 | J25: EP10 Skydome-Kupols
A26: =IF(B26=0,"",B26) -> EP16 koepel | B26: EP16 koepel | C26: EP16 koepel | D26: coupole EP16 | E26: EP16 Lichtkuppel | F26: EP16 skydome | G26: EP16 svjetlosna kupola | H26: EP 16 (Energy Profit) | I26: Kopule EP16 | J26: EP16 skydome-Kupols
A27: =IF(B27=0,"",B27) -> vijfwandig | B27: vijfwandig | C27: vijfwandig | D27: cinq paroi | E27: Fünfschalig | F27: five walled | G27: pet stijenki | H27: 5 - warstwowa | I27: pěti-vrstvá | J27: Piecu slāņu kupols
A28: =IF(B28=0,"",B28) -> vierwandig | B28: vierwandig | C28: vierwandig | D28: quatre paroi | E28: Vierschalig | F28: four walled | G28: četirislojna | H28: 4 - warstwowa | I28: čtyř-vrstvá | J28: Četru slāņu kupols
A29: driewandig | B29: driewandig | C29: driewandig | D29: triple paroi | E29: Dreischalig | F29: triple walled | G29: troslojna | H29: 3 - warstwowa | I29: tří-vrstvá | J29: Trīs slāņu kupols
A30: dubbelwandig | B30: dubbelwandig | C30: dubbelwandig | D30: double paroi | E30: Doppelchalig | F30: double walled | G30: dvoslojna | H30: 2 - warstwowa | I30: dvoj-vrstvá | J30: Divu slāņu kupols
A31: enkelwandig | B31: enkelwandig | C31: enkelwandig | D31: simple paroi | E31: Einschalig | F31: single walled | G31: jednoslojna | H31: 1 - warstwowa | I31: jedno-vrstvá | J31: Viena slāņa kupols
A32: dagmaat B | B32: dagmaat B | C32: dagmaat B | D32: ouverture jour B | E32: Tageslichtmass B | F32: daylight size B | G32: svjetlosna mjera B | H32: B - wymiar w świetle kopułki | I32: Velikost světlíku B | J32: Dienas gaismas izmērs B
A33: dakopening C | B33: dakopening C | C33: dakopening C | D33: ouverture à la base C | E33: Dachöffnung C | F33: roofopening C | G33: građ. mjera C | H33: C - wymiar w świetle dachu | I33: Střešní otvor C | J33: Jumta atvērums C
A34: overmeten maat A | B34: =INDEX(C34:J34,taal) -> overmeten maat A | C34: overmeten maat A | D34: mesure extérieure A | E34: Gesamtbreite A | F34: overall domesize A | G34: nazivna mjera A | H34: A - wymiar zewnętrzny kopułki | I34: Celková velikost kopule A | J34: Kopējais izmērs A
A35: niet verkrijgbaar | B35: niet verkrijgbaar | C35: niet verkrijgbaar | D35: ne pas livrable | E35: nicht Lieferbar | F35: not available | G35: nema mogućnosti | H35: nie wykonalne | I35: Není k dispozici | J35: Nav pieejams
A36: lichtkoepel | B36: lichtkoepel | C36: lichtkoepel | D36: coupole | E36: Lichtkuppel | F36: skydome | G36: kupola | H36: kopułka | I36: Kopule | J36: Skydome-Kupols
A37: lichtkoepel + HR++ glas | B37: lichtkoepel + HR++ glas | C37: lichtkoepel + HR++ glas | D37: coupole + verre HR++ | E37: Lichtkuppel + Glas HR++ | F37: skydome + glass HR++ | G37: kupola + čaša HR++ | H37: kopułka + szkło HR++ | I37: Kopule + sklo HR++ | J37: Skydome-Kupols+HR++Stikls
A38: glas HR++ | B38: glas HR++ | C38: glas HR++ | D38: verre HR++ | E38: Glas HR++ | F38: glass HR++ | G38: čaša HR++ | H38: szkło HR++ | I38: Sklo HR++ | J38: Stikls HR++
A39: oppervlakte | B39: oppervlakte | C39: oppervlakte | D39: surface | E39: Oberfläche | F39: surface | G39: površina | H39: powierzchnia | I39: Povrch | J39: Platība
A40: t.o.v. de geprojecteerde oppte | B40: t.o.v. de geprojecteerde oppte | C40: t.o.v. de geprojecteerde oppte | D40: à la surface projetée | E40: zum projizierten Oberfläche | F40: to the projected area | G40: na projicirano područje | H40: do projektowanego obszaru | I40: do projektované oblasti | J40: uz prognozēto zonu
A41: Ut-waarde | B41: Ut-waarde | C41: Ut-waarde | D41: valeur Ut | E41: Ut-Wert | F41: Ut-value | G41: Ut-vrijednost | H41: Wartość Ut | I41: Ut-hodnota | J41: Ut-Vērtība
A42: =IF(B42=0,"",B42) -> Ug-waarde | B42: Ug-waarde | C42: Ug-waarde | D42: valeur Ug | E42: Ug-Wert | F42: Ug-value | G42: Ug-vrijednost | H42: Wartość Ug | I42: Ug-hodnota | J42: Ug-Vērtība
A43: =IF(B43=0,"",B43) -> Ue-waarde | B43: Ue-waarde | C43: Ue-waarde | D43: valeur Ue | E43: Ue-Wert | F43: Ue-value | G43: Ue-vrijednost | H43: Wartość Ue | I43: Ue hodnota | J43: Ue-Vērtība
A44: =IF(B44=0,"",B44) -> Urc-waarde | B44: Urc-waarde | C44: Urc-waarde | D44: valeur Urc | E44: Urc-Wert | F44: Urc-value | G44: Urc-vrijednost | H44: Wartość Urc | I44: Urc-hodnota | J44: Urc-Vērtība
A45: =IF(B45=0,"",B45) -> Url-waarde | B45: Url-waarde | C45: Url-waarde | D45: valeur Url | E45: Url-Wert | F45: Url-value | G45: Url-vrijednost | H45: Wartość Url | I45: Url hodnota | J45: Url-Vērtība
A46: g-waarde | B46: g-waarde | C46: g-waarde | D46: valeur g | E46: g-Wert | F46: g-value | G46: g-vrijednost | H46: Wartość g | I46: g-hodnota | J46: g-Vērtība
A47: opstand | B47: opstand | C47: opstand | D47: costière | E47: Aufsatzkränz | F47: curb | G47: nastavni vijenac | H47: podstawa | I47: Manžeta/rám | J47: Pamatne
A48: helder | B48: helder | C48: helder | D48: clair | E48: klar | F48: clear | G48: kristal | H48: przezroczysta | I48: Čirá | J48: Caurspīdīgs
A49: opaal | B49: opaal | C49: opaal | D49: opalin | E49: opal | F49: opal | G49: opal | H49: mleczna | I49: Opál | J49: Matēta virsma
A50: heatstop | B50: heatstop | C50: heatstop | D50: heatstop | E50: heatstop | F50: heatstop | G50: heatstop | H50: heatstop | I50: Úprava proti prohřívání | J50: Karstumu bloķējošais slānis
A51: =IF(B51=0,"",B51) -> verduisterend | B51: =INDEX(C51:J51,taal) -> verduisterend | C51: verduisterend | D51: occultant | E51: verdunkelung | F51: blackout | G51: zasjeniti | H51: zaciemnienie | I51: výpadek proudu | J51: aptumšošana
A52: =IF(B52=0,"",B52) -> zonwerend glas | B52: =INDEX(C52:J52,taal) -> zonwerend glas | C52: zonwerend glas | D52: vitrage à contrôle solaire | E52: wärmereflektierendes Glas | F52: heat reflective glass | G52: staklo koje reflektira toplinu | H52: szkło odbijające ciepło | I52: sklo odrážející teplo | J52: siltumu atstarojošs stikls
A53: =IF(B53=0,"",B53) -> PMMA | B53: PMMA | C53: PMMA | D53: PMMA | E53: PMMA | F53: PMMA | G53: akril | H53: akrylowa | I53: Akryl (PMMA) | J53: Akrila loksne
A54: PC | B54: PC | C54: PC | D54: PC | E54: PC | F54: PC | G54: polikarbonat | H54: poliwęglanowa | I54: Polykarbonát (PC) | J54: Polikarbonāta loksne
A55: kleur | B55: kleur | C55: kleur | D55: couleur | E55: Farbe | F55: colour | G55: boja | H55: kolor - | I55: Barva | J55: Krāsa
A56: kleurkeuze? | B56: kleurkeuze? | C56: kleurkeuze? | D56: choix de couleur ? | E56: Farbewahl ? | F56: Choose the colour | G56: izaberi boju | H56: wybór koloru | I56: Zvolte barvu | J56: Izvēlēties krāsu
A57: lichtkoepel | B57: lichtkoepel | C57: lichtkoepel | D57: coupole | E57: Lichtkuppel | F57: skydome | G57: kupola | H57: kopułka | I57: Kopule | J57: Kupols
A58: =IF(B58=0,"",B58) -> Pergotop IP32/IP89 | B58: =INDEX(C58:J58,taal) -> Pergotop IP32/IP89 | C58: Pergotop IP32/IP89 | D58: Pergotop IP32/IP89 | E58: Pergotop IP32/IP89 | F58: Pergotop IP32/IP89 | G58: Pergotop IP32/IP89 | H58: Pergotop IP32/IP89 | I58: Pergotop IP32/IP89 | J58: Pergotop IP32/IP89
A59: =IF(B59=0,"",B59) -> opstand | B59: =INDEX(C59:J59,taal) -> opstand | C59: opstand | D59: costière | E59: Aufsatzkränz | F59: curb | G59: vijenac | H59: podstawa | I59: manžeta/rám | J59: Pamatne
A60: NIET geïsoleerd | B60: NIET geïsoleerd | C60: NIET geïsoleerd | D60: NON isolé | E60: NICHT isoliert | F60: NOT insulated | G60: nije izolirano | H60: nieizolowane | I60: Neizolované | J60: Siltumizolācija
A61: kleur kiezen | B61: kleur kiezen | C61: kleur kiezen | D61: choisissez la couleur | E61: wählen Sie die Farbe | F61: select your colour | G61: odaberi boju | H61: wybierz kolor | I61: Vyberte barvu | J61: Atlasiet savu krāsu
A62: selecteer hoger | B62: selecteer hoger | C62: selecteer hoger | D62: faites votre choix plus haut | E62: wählen Sie obenan | F62: make your choice above | G62: odaberi | H62: wybierz | I62: Vyberte vyšší | J62: Izvēlietes no augstāk minētajiem
A63: raam | B63: raam | C63: raam | D63: châssis | E63: Rahmen | F63: frame | G63: okvir | H63: rama | I63: Rám | J63: Rāmis
A64: =IF(B64=0,"",B64) -> adapterraam | B64: =INDEX(C64:J64,taal) -> adapterraam | C64: adapterraam | D64: châssis d'adaptation | E64: Adapterrahmen | F64: adapter frame | G64: okvir adaptera | H64: rama adaptera | I64: rám adaptéru | J64: adaptera rāmis
A65: =IF(B65=0,"",B65) -> U-waarde bepaling van Skylux lichtkoepels volgens norm EN 1873:2014+A1:2016 | B65: U-waarde bepaling van Skylux lichtkoepels volgens norm EN 1873:2014+A1:2016 | C65: U-waarde bepaling van Skylux lichtkoepels volgens norm EN 1873:2014+A1:2016 | D65: Détermination de la valeur U des coupoles Skylux selon le norme EN 1873:2014+A1:2016 | E65: U-Wert Berechnung von Skylux Lichtkuppeln nach die Norme EN 1873:2014+A1:2016 | F65: U-value calculation of Skylux skylights according to the norm EN 1873:2014+A1:2016 | G65: U-vrijednost Skylux proizvoda prema normama EN 1873:2014+A1:2016 | H65: U - obliczenie wartości izolacyjności świetlików SKYLUX zgodnie z normą EN 1873:2014+A1:2016 | I65: Výpočet hodnoty-U světlíků Skylux je v souladu s normami EN 1873:2014+A1:2016 | J65: Skylux virsgaismas U vērtības aprēķins saskaņā ar normu EN 1873: 2014 + A1: 2016
A66: Skylux heeft het grootste gamma CE gekeurde lichtkoepels voor elk project. | B66: Skylux heeft het grootste gamma CE gekeurde lichtkoepels voor elk project. | C66: Skylux heeft het grootste gamma CE gekeurde lichtkoepels voor elk project. | D66: Skylux vous offre le plus grand assortiment en coupoles avec certification CE pour chaque projet. | E66: Skylux hat das weiteste Sortiment an CE geprüften Lichtkuppeln für jedes Projekt. | F66: Skylux has the largest range of CE approved skylights for every project. | G66: Skylux ima najveći izbor proizvoda sa CE certifikatom za svaki projekt | H66: SKYLUX ma najwięcej wariantów świetlików certyfikowanych CE do zastosowania w każdym projekcie. | I66: Skylux má nejširší sortiment CE testovaných světlíků pro každý projekt | J66: Skylux ir lielākais CE apstiprināto virsgaismas klāsts katram projektam.
A67: type | B67: type | C67: type | D67: type | E67: Typ | F67: type | G67: tip | H67: typ | I67: Typ | J67: Tips
A68: op aanvraag | B68: op aanvraag | C68: op aanvraag | D68: sur demande | E68: auf Anfrage | F68: on request | G68: na zahtjev | H68: na zamówienie | I68: Na vyžádání | J68: Pēc pieprasījuma
A69: maak andere keuze! | B69: maak andere keuze! | C69: maak andere keuze! | D69: faire un autre choix! | E69: andere Wahl! | F69: make another selection! | H69: dokonaj innego wyboru! | I69: Provést jný výběr | J69: Veikt vēl vienu atlasi
A70: Uup-waarde | B70: Uup-waarde | C70: Uup-waarde | D70: valeur Uup | E70: Uup-Wert | F70: Uup-value | G70: Uup-vrijednost | H70: Wartość Uup | I70: Uup-hodnota | J70: Uup-Vērtība
A71: =IF(B71=0,"",B71) -> dikte dakisolatie | B71: dikte dakisolatie | C71: dikte dakisolatie | D71: épaisseur d'isolation de toiture | E71: Stärke Dachdämmung | F71: thickness roof insulation | G71: krov izolacija | H71: izolacja dachu | I71: izolace střech | J71: Jumta siltumizolācijas biezums
A72: =IF(B72=0,"",B72) -> Controleer uw ingave ! | B72: =INDEX(C72:J72,taal) -> Controleer uw ingave ! | C72: Controleer uw ingave ! | D72: Contrölez les paramètres ! | E72: Daten überprüfen ! | F72: Check the input ! | G72: Provjerite ulaz! | H72: Sprawdź dane wejściowe ! | I72: Zkontrolujte zadání! | J72: Pārbaudiet ievadi!
